{"text_format":"1","workbook":"xlsx","n_sheets":13,"sheets":["1. Id","2. Ensino","3. Ext","4. Pesq","5. Orient","6. Prod. Acad","7. At. Adm","8. Eventos","9. Bancas","10. Periód","11. Info. Compl.","Impressão","Planilha Síntese"],"not_rendered":{"charts":0,"images":0,"macros":1,"external_links":0,"defined_names":12,"comments":12,"pivot_tables":0},"unopened":[],"bounds":{"document_bytes":16777216,"sheet_cells":100000,"rows_first":2000,"rows_last":500,"rows_between":2000,"halvings":0,"cell_chars":16384,"cell_head_chars":4096},"cells_cut":0,"cells_raw":0,"read":"whole","date_system":"1900"}

{"sheet":"1. Id","index":0,"n_rows":16,"n_cols":2,"rows_kept":16,"cut":false,"hidden":false,"merged":[[13,0,14,1],[15,0,16,1],[0,0,0,1],[2,0,2,1],[10,0,10,1],[11,0,11,1],[12,0,12,1]]}
["RELATÓRIO INDIVIDUAL DE TRABALHO"]
["Interstício:","2020"]
["1. IDENTIFICAÇÃO"]
["Docente:"]
["Regime de Trabalho: "]
["Graduação - Classe e Nível:"]
["SIAPE:"]
["Núcleo(s):"]
["Programa(s) de Pós-Graduação ao qual está vinculado(a) e vínculo"]
[]
["Obs.: "]
["1.     O preenchimento deverá ser feito a partir das atividades realizadas pelo docente no ano de 2020. "]
["2.     Para as atividades de ensino deverão ser registradas aquelas referentes ao ano de 2020. "]
["3.     Somente deverão ser preenchidos os itens de cada atividade referentes às realizações do docente, os demais deverão permanecer em branco. "]
[]
["4.     Todas as atividades realizadas deverão estar devidamente descritas, em especial as produções acadêmicas, para integrar o Relatório Anual da Faculdade de Arquitetura, componente da prestação de contas da Universidade Federal da Bahia à Controladoria Geral da União. "]

{"sheet":"2. Ensino","index":1,"n_rows":63,"n_cols":1,"rows_kept":63,"cut":false,"hidden":false,"merged":[[37,0,37,1],[50,0,50,1],[0,0,0,1],[1,0,1,1],[36,0,36,1],[2,0,2,1],[19,0,19,1]]}
["2. ATIVIDADES DE ENSINO"]
["2.1. Aulas na graduação"]
["2020.1"]
["Código e nome da disciplina:"]
["Número de turmas: "]
["Carga horária semanal:"]
["Carga horária semestral:"]
["Código e nome da disciplina:"]
["Número de turmas: "]
["Carga horária semanal:"]
["Carga horária semestral:"]
["Código e nome da disciplina:"]
["Número de turmas: "]
["Carga horária semanal:"]
["Carga horária semestral:"]
["Código e nome da disciplina:"]
["Número de turmas: "]
["Carga horária semanal:"]
["Carga horária semestral:"]
["SLS"]
["Código e nome da disciplina:"]
["Número de turmas: "]
["Carga horária semanal:"]
["Carga horária semestral:"]
["Código e nome da disciplina:"]
["Número de turmas: "]
["Carga horária semanal:"]
["Carga horária semestral:"]
["Código e nome da disciplina:"]
["Número de turmas: "]
["Carga horária semanal:"]
["Carga horária semestral:"]
["Código e nome da disciplina:"]
["Número de turmas: "]
["Carga horária semanal:"]
["Carga horária semestral:"]
["2.2. Aulas na pós-graduação"]
["2020.1"]
["Código e nome da disciplina:"]
["Número de turmas: "]
["Carga horária semanal:"]
["Carga horária semestral:"]
["Código e nome da disciplina:"]
["Número de turmas: "]
["Carga horária semanal:"]
["Carga horária semestral:"]
["Código e nome da disciplina:"]
["Número de turmas: "]
["Carga horária semanal:"]
["Carga horária semestral:"]
["SLS"]
["Código e nome da disciplina:"]
["Número de turmas: "]
["Carga horária semanal:"]
["Carga horária semestral:"]
["Código e nome da disciplina:"]
["Número de turmas: "]
["Carga horária semanal:"]
["Carga horária semestral:"]
["Código e nome da disciplina:"]
["Número de turmas: "]
["Carga horária semanal:"]
["Carga horária semestral:"]

{"sheet":"3. Ext","index":2,"n_rows":525,"n_cols":10,"rows_kept":525,"cut":false,"hidden":false,"merged":[[504,0,504,1],[0,0,0,1],[7,0,7,1],[49,0,49,1],[91,0,91,1],[133,0,133,1],[431,0,431,1],[170,0,170,1],[353,0,353,1],[275,0,275,1],[197,0,197,1],[1,0,1,1],[191,0,191,1]]}
["3. ATIVIDADES DE EXTENSÃO"]
["3.1. Coordenação de projetos de extensão de caráter permanente"]
["Projeto:",null,null,null,null,null,null,null,null,""]
["Datas de início e fim (mês / ano):"]
["Carga horária semanal:"]
["Carga horária total:"]
["Relação com Projeto de Pesquisa e/ou Atividade de Ensino? Qual?"]
["Discentes vinculados:"]
["Nome:"]
["Tipo:"]
["E-mail:"]
["CPF (apenas para aluno de graduação):"]
["Período de vinculação (mês/ano):"]
["Tipo de bolsa (quando aplicável):"]
["Nome:"]
["Tipo:"]
["E-mail:"]
["CPF (apenas para aluno de graduação):"]
["Período de vinculação (mês/ano):"]
["Tipo de bolsa (quando aplicável):"]
["Nome:"]
["Tipo:"]
["E-mail:"]
["CPF (apenas para aluno de graduação):"]
["Período de vinculação (mês/ano):"]
["Tipo de bolsa (quando aplicável):"]
["Nome:"]
["Tipo:"]
["E-mail:"]
["CPF (apenas para aluno de graduação):"]
["Período de vinculação (mês/ano):"]
["Tipo de bolsa (quando aplicável):"]
["Nome:"]
["Tipo:"]
["E-mail:"]
["CPF (apenas para aluno de graduação):"]
["Período de vinculação (mês/ano):"]
["Tipo de bolsa (quando aplicável):"]
["Nome:"]
["Tipo:"]
["E-mail:"]
["CPF (apenas para aluno de graduação):"]
["Período de vinculação (mês/ano):"]
["Tipo de bolsa (quando aplicável):"]
["Projeto:"]
["Datas de início e fim (mês / ano):"]
["Carga horária semanal:"]
["Carga horária total:"]
["Relação com Projeto de Pesquisa e/ou Atividade de Ensino? Qual?"]
["Discentes vinculados:"]
["Nome:"]
["Tipo:"]
["E-mail:"]
["CPF (apenas para aluno de graduação):"]
["Período de vinculação (mês/ano):"]
["Tipo de bolsa (quando aplicável):"]
["Nome:"]
["Tipo:"]
["E-mail:"]
["CPF (apenas para aluno de graduação):"]
["Período de vinculação (mês/ano):"]
["Tipo de bolsa (quando aplicável):"]
["Nome:"]
["Tipo:"]
["E-mail:"]
["CPF (apenas para aluno de graduação):"]
["Período de vinculação (mês/ano):"]
["Tipo de bolsa (quando aplicável):"]
["Nome:"]
["Tipo:"]
["E-mail:"]
["CPF (apenas para aluno de graduação):"]
["Período de vinculação (mês/ano):"]
["Tipo de bolsa (quando aplicável):"]
["Nome:"]
["Tipo:"]
["E-mail:"]
["CPF (apenas para aluno de graduação):"]
["Período de vinculação (mês/ano):"]
["Tipo de bolsa (quando aplicável):"]
["Nome:"]
["Tipo:"]
["E-mail:"]
["CPF (apenas para aluno de graduação):"]
["Período de vinculação (mês/ano):"]
["Tipo de bolsa (quando aplicável):"]
["Projeto:"]
["Datas de início e fim (mês / ano):"]
["Carga horária semanal:"]
["Carga horária total:"]
["Relação com Projeto de Pesquisa e/ou Atividade de Ensino? Qual?"]
["Discentes vinculados:"]
["Nome:"]
["Tipo:"]
["E-mail:"]
["CPF (apenas para aluno de graduação):"]
["Período de vinculação (mês/ano):"]
["Tipo de bolsa (quando aplicável):"]
["Nome:"]
["Tipo:"]
["E-mail:"]
["CPF (apenas para aluno de graduação):"]
["Período de vinculação (mês/ano):"]
["Tipo de bolsa (quando aplicável):"]
["Nome:"]
["Tipo:"]
["E-mail:"]
["CPF (apenas para aluno de graduação):"]
["Período de vinculação (mês/ano):"]
["Tipo de bolsa (quando aplicável):"]
["Nome:"]
["Tipo:"]
["E-mail:"]
["CPF (apenas para aluno de graduação):"]
["Período de vinculação (mês/ano):"]
["Tipo de bolsa (quando aplicável):"]
["Nome:"]
["Tipo:"]
["E-mail:"]
["CPF (apenas para aluno de graduação):"]
["Período de vinculação (mês/ano):"]
["Tipo de bolsa (quando aplicável):"]
["Nome:"]
["Tipo:"]
["E-mail:"]
["CPF (apenas para aluno de graduação):"]
["Período de vinculação (mês/ano):"]
["Tipo de bolsa (quando aplicável):"]
["Projeto:"]
["Datas de início e fim (mês / ano):"]
["Carga horária semanal:"]
["Carga horária total:"]
["Relação com Projeto de Pesquisa e/ou Atividade de Ensino? Qual?"]
["Discentes vinculados:"]
["Nome:"]
["Tipo:"]
["E-mail:"]
["CPF (apenas para aluno de graduação):"]
["Período de vinculação (mês/ano):"]
["Tipo de bolsa (quando aplicável):"]
["Nome:"]
["Tipo:"]
["E-mail:"]
["CPF (apenas para aluno de graduação):"]
["Período de vinculação (mês/ano):"]
["Tipo de bolsa (quando aplicável):"]
["Nome:"]
["Tipo:"]
["E-mail:"]
["CPF (apenas para aluno de graduação):"]
["Período de vinculação (mês/ano):"]
["Tipo de bolsa (quando aplicável):"]
["Nome:"]
["Tipo:"]
["E-mail:"]
["CPF (apenas para aluno de graduação):"]
["Período de vinculação (mês/ano):"]
["Tipo de bolsa (quando aplicável):"]
["Nome:"]
["Tipo:"]
["E-mail:"]
["CPF (apenas para aluno de graduação):"]
["Período de vinculação (mês/ano):"]
["Tipo de bolsa (quando aplicável):"]
["Nome:"]
["Tipo:"]
["E-mail:"]
["CPF (apenas para aluno de graduação):"]
["Período de vinculação (mês/ano):"]
["Tipo de bolsa (quando aplicável):"]
["3.2. Participação em projetos de extensão de caráter permanente"]
["Projeto:"]
["Datas de início e fim (mês / ano):"]
["Carga horária semanal:"]
["Carga horária total:"]
["Relação com Projeto de Pesquisa e/ou Atividade de Ensino? Qual?"]
["Projeto:"]
["Datas de início e fim (mês / ano):"]
["Carga horária semanal:"]
["Carga horária total:"]
["Relação com Projeto de Pesquisa e/ou Atividade de Ensino? Qual?"]
["Projeto:"]
["Datas de início e fim (mês / ano):"]
["Carga horária semanal:"]
["Carga horária total:"]
["Relação com Projeto de Pesquisa e/ou Atividade de Ensino? Qual?"]
["Projeto:"]
["Datas de início e fim (mês / ano):"]
["Carga horária semanal:"]
["Carga horária total:"]
["Relação com Projeto de Pesquisa e/ou Atividade de Ensino? Qual?"]
["3.3. Coordenação de projetos de extensão de caráter eventual"]
["Projeto:"]
["Datas de início e fim (mês / ano):"]
["Carga horária semanal:"]
["Carga horária total:"]
["Relação com Projeto de Pesquisa e/ou Atividade de Ensino? Qual?"]
["Discentes vinculados:"]
["Nome:"]
["Tipo:"]
["E-mail:"]
["CPF (apenas para aluno de graduação):"]
["Período de vinculação (mês/ano):"]
["Tipo de bolsa (quando aplicável):"]
["Nome:"]
["Tipo:"]
["E-mail:"]
["CPF (apenas para aluno de graduação):"]
["Período de vinculação (mês/ano):"]
["Tipo de bolsa (quando aplicável):"]
["Nome:"]
["Tipo:"]
["E-mail:"]
["CPF (apenas para aluno de graduação):"]
["Período de vinculação (mês/ano):"]
["Tipo de bolsa (quando aplicável):"]
["Nome:"]
["Tipo:"]
["E-mail:"]
["CPF (apenas para aluno de graduação):"]
["Período de vinculação (mês/ano):"]
["Tipo de bolsa (quando aplicável):"]
["Nome:"]
["Tipo:"]
["E-mail:"]
["CPF (apenas para aluno de graduação):"]
["Período de vinculação (mês/ano):"]
["Tipo de bolsa (quando aplicável):"]
["Nome:"]
["Tipo:"]
["E-mail:"]
["CPF (apenas para aluno de graduação):"]
["Período de vinculação (mês/ano):"]
["Tipo de bolsa (quando aplicável):"]
["Nome:"]
["Tipo:"]
["E-mail:"]
["CPF (apenas para aluno de graduação):"]
["Período de vinculação:"]
["Tipo de bolsa (quando aplicável):"]
["Nome:"]
["Tipo:"]
["E-mail:"]
["CPF (apenas para aluno de graduação):"]
["Período de vinculação:"]
["Tipo de bolsa (quando aplicável):"]
["Nome:"]
["Tipo:"]
["E-mail:"]
["CPF (apenas para aluno de graduação):"]
["Período de vinculação:"]
["Tipo de bolsa (quando aplicável):"]
["Nome:"]
["Tipo:"]
["E-mail:"]
["CPF (apenas para aluno de graduação):"]
["Período de vinculação:"]
["Tipo de bolsa (quando aplicável):"]
["Nome:"]
["Tipo:"]
["E-mail:"]
["CPF (apenas para aluno de graduação):"]
["Período de vinculação:"]
["Tipo de bolsa (quando aplicável):"]
["Nome:"]
["Tipo:"]
["E-mail:"]
["CPF (apenas para aluno de graduação):"]
["Período de vinculação:"]
["Tipo de bolsa (quando aplicável):"]
["Projeto:"]
["Datas de início e fim (mês / ano):"]
["Carga horária semanal:"]
["Carga horária total:"]
["Relação com Projeto de Pesquisa e/ou Atividade de Ensino? Qual?"]
["Discentes vinculados:"]
["Nome:"]
["Tipo:"]
["E-mail:"]
["CPF (apenas para aluno de graduação):"]
["Período de vinculação (mês/ano):"]
["Tipo de bolsa (quando aplicável):"]
["Nome:"]
["Tipo:"]
["E-mail:"]
["CPF (apenas para aluno de graduação):"]
["Período de vinculação (mês/ano):"]
["Tipo de bolsa (quando aplicável):"]
["Nome:"]
["Tipo:"]
["E-mail:"]
["CPF (apenas para aluno de graduação):"]
["Período de vinculação (mês/ano):"]
["Tipo de bolsa (quando aplicável):"]
["Nome:"]
["Tipo:"]
["E-mail:"]
["CPF (apenas para aluno de graduação):"]
["Período de vinculação (mês/ano):"]
["Tipo de bolsa (quando aplicável):"]
["Nome:"]
["Tipo:"]
["E-mail:"]
["CPF (apenas para aluno de graduação):"]
["Período de vinculação (mês/ano):"]
["Tipo de bolsa (quando aplicável):"]
["Nome:"]
["Tipo:"]
["E-mail:"]
["CPF (apenas para aluno de graduação):"]
["Período de vinculação (mês/ano):"]
["Tipo de bolsa (quando aplicável):"]
["Nome:"]
["Tipo:"]
["E-mail:"]
["CPF (apenas para aluno de graduação):"]
["Período de vinculação:"]
["Tipo de bolsa (quando aplicável):"]
["Nome:"]
["Tipo:"]
["E-mail:"]
["CPF (apenas para aluno de graduação):"]
["Período de vinculação:"]
["Tipo de bolsa (quando aplicável):"]
["Nome:"]
["Tipo:"]
["E-mail:"]
["CPF (apenas para aluno de graduação):"]
["Período de vinculação:"]
["Tipo de bolsa (quando aplicável):"]
["Nome:"]
["Tipo:"]
["E-mail:"]
["CPF (apenas para aluno de graduação):"]
["Período de vinculação:"]
["Tipo de bolsa (quando aplicável):"]
["Nome:"]
["Tipo:"]
["E-mail:"]
["CPF (apenas para aluno de graduação):"]
["Período de vinculação:"]
["Tipo de bolsa (quando aplicável):"]
["Nome:"]
["Tipo:"]
["E-mail:"]
["CPF (apenas para aluno de graduação):"]
["Período de vinculação:"]
["Tipo de bolsa (quando aplicável):"]
["Projeto:"]
["Datas de início e fim (mês / ano):"]
["Carga horária semanal:"]
["Carga horária total:"]
["Relação com Projeto de Pesquisa e/ou Atividade de Ensino? Qual?"]
["Discentes vinculados:"]
["Nome:"]
["Tipo:"]
["E-mail:"]
["CPF (apenas para aluno de graduação):"]
["Período de vinculação (mês/ano):"]
["Tipo de bolsa (quando aplicável):"]
["Nome:"]
["Tipo:"]
["E-mail:"]
["CPF (apenas para aluno de graduação):"]
["Período de vinculação (mês/ano):"]
["Tipo de bolsa (quando aplicável):"]
["Nome:"]
["Tipo:"]
["E-mail:"]
["CPF (apenas para aluno de graduação):"]
["Período de vinculação (mês/ano):"]
["Tipo de bolsa (quando aplicável):"]
["Nome:"]
["Tipo:"]
["E-mail:"]
["CPF (apenas para aluno de graduação):"]
["Período de vinculação (mês/ano):"]
["Tipo de bolsa (quando aplicável):"]
["Nome:"]
["Tipo:"]
["E-mail:"]
["CPF (apenas para aluno de graduação):"]
["Período de vinculação (mês/ano):"]
["Tipo de bolsa (quando aplicável):"]
["Nome:"]
["Tipo:"]
["E-mail:"]
["CPF (apenas para aluno de graduação):"]
["Período de vinculação (mês/ano):"]
["Tipo de bolsa (quando aplicável):"]
["Nome:"]
["Tipo:"]
["E-mail:"]
["CPF (apenas para aluno de graduação):"]
["Período de vinculação:"]
["Tipo de bolsa (quando aplicável):"]
["Nome:"]
["Tipo:"]
["E-mail:"]
["CPF (apenas para aluno de graduação):"]
["Período de vinculação:"]
["Tipo de bolsa (quando aplicável):"]
["Nome:"]
["Tipo:"]
["E-mail:"]
["CPF (apenas para aluno de graduação):"]
["Período de vinculação:"]
["Tipo de bolsa (quando aplicável):"]
["Nome:"]
["Tipo:"]
["E-mail:"]
["CPF (apenas para aluno de graduação):"]
["Período de vinculação:"]
["Tipo de bolsa (quando aplicável):"]
["Nome:"]
["Tipo:"]
["E-mail:"]
["CPF (apenas para aluno de graduação):"]
["Período de vinculação:"]
["Tipo de bolsa (quando aplicável):"]
["Nome:"]
["Tipo:"]
["E-mail:"]
["CPF (apenas para aluno de graduação):"]
["Período de vinculação:"]
["Tipo de bolsa (quando aplicável):"]
["Projeto:"]
["Datas de início e fim (mês / ano):"]
["Carga horária semanal:"]
["Carga horária total:"]
["Relação com Projeto de Pesquisa e/ou Atividade de Ensino? Qual?"]
["Discentes vinculados:"]
["Nome:"]
["Tipo:"]
["E-mail:"]
["CPF (apenas para aluno de graduação):"]
["Período de vinculação (mês/ano):"]
["Tipo de bolsa (quando aplicável):"]
["Nome:"]
["Tipo:"]
["E-mail:"]
["CPF (apenas para aluno de graduação):"]
["Período de vinculação (mês/ano):"]
["Tipo de bolsa (quando aplicável):"]
["Nome:"]
["Tipo:"]
["E-mail:"]
["CPF (apenas para aluno de graduação):"]
["Período de vinculação (mês/ano):"]
["Tipo de bolsa (quando aplicável):"]
["Nome:"]
["Tipo:"]
["E-mail:"]
["CPF (apenas para aluno de graduação):"]
["Período de vinculação (mês/ano):"]
["Tipo de bolsa (quando aplicável):"]
["Nome:"]
["Tipo:"]
["E-mail:"]
["CPF (apenas para aluno de graduação):"]
["Período de vinculação (mês/ano):"]
["Tipo de bolsa (quando aplicável):"]
["Nome:"]
["Tipo:"]
["E-mail:"]
["CPF (apenas para aluno de graduação):"]
["Período de vinculação (mês/ano):"]
["Tipo de bolsa (quando aplicável):"]
["Nome:"]
["Tipo:"]
["E-mail:"]
["CPF (apenas para aluno de graduação):"]
["Período de vinculação:"]
["Tipo de bolsa (quando aplicável):"]
["Nome:"]
["Tipo:"]
["E-mail:"]
["CPF (apenas para aluno de graduação):"]
["Período de vinculação:"]
["Tipo de bolsa (quando aplicável):"]
["Nome:"]
["Tipo:"]
["E-mail:"]
["CPF (apenas para aluno de graduação):"]
["Período de vinculação:"]
["Tipo de bolsa (quando aplicável):"]
["Nome:"]
["Tipo:"]
["E-mail:"]
["CPF (apenas para aluno de graduação):"]
["Período de vinculação:"]
["Tipo de bolsa (quando aplicável):"]
["Nome:"]
["Tipo:"]
["E-mail:"]
["CPF (apenas para aluno de graduação):"]
["Período de vinculação:"]
["Tipo de bolsa (quando aplicável):"]
["Nome:"]
["Tipo:"]
["E-mail:"]
["CPF (apenas para aluno de graduação):"]
["Período de vinculação:"]
["Tipo de bolsa (quando aplicável):"]
["3.4. Participação em projetos de extensão de caráter eventual"]
["Projeto:"]
["Datas de início e fim (mês / ano):"]
["Carga horária semanal:"]
["Carga horária total:"]
["Relação com Projeto de Pesquisa e/ou Atividade de Ensino? Qual?"]
["Projeto:"]
["Datas de início e fim (mês / ano):"]
["Carga horária semanal:"]
["Carga horária total:"]
["Relação com Projeto de Pesquisa e/ou Atividade de Ensino? Qual?"]
["Projeto:"]
["Datas de início e fim (mês / ano):"]
["Carga horária semanal:"]
["Carga horária total:"]
["Relação com Projeto de Pesquisa e/ou Atividade de Ensino? Qual?"]
["Projeto:"]
["Datas de início e fim (mês / ano):"]
["Carga horária semanal:"]
["Carga horária total:"]
["Relação com Projeto de Pesquisa e/ou Atividade de Ensino? Qual?"]

{"sheet":"4. Pesq","index":3,"n_rows":588,"n_cols":1,"rows_kept":588,"cut":false,"hidden":false,"merged":[[208,0,208,1],[584,0,584,1],[586,0,586,1],[482,0,482,1],[14,0,14,1],[245,0,245,1],[481,0,481,1],[24,0,24,1],[256,0,256,1],[303,0,303,1],[350,0,350,1],[397,0,397,1],[444,0,444,1],[533,0,533,1],[70,0,70,1],[162,0,162,1],[116,0,116,1],[0,0,0,1],[1,0,1,1],[5,0,5,1],[9,0,9,1],[13,0,13,1]]}
["4. ATIVIDADES DE PESQUISA"]
["4.1. Coordenação de grupo de pesquisa registrado no CNPq"]
["Nome e descrição do grupo de pesquisa:"]
["Nome e descrição do grupo de pesquisa:"]
["Nome e descrição do grupo de pesquisa:"]
["4.2. Participação em grupo(s) de pesquisa registrado(s) no CNPq – informar o(s) nome(s) do(s) grupo(s)"]
["Nome do grupo de pesquisa e instituição:"]
["Nome do grupo de pesquisa e instituição:"]
["Nome do grupo de pesquisa e instituição:"]
["4.3. Coordenação de laboratório"]
["Nome e descrição do laboratório:"]
["Nome e descrição do laboratório:"]
["Nome e descrição do laboratório:"]
["4.4. Coordenação de projetos de pesquisas"]
["4.4.1. Coordenação de pesquisas em andamento."]
["Pesquisa:"]
["Data de início (mês/ano):"]
["Carga horária semanal:"]
["Vinculado a um ou mais grupos de pesquisa? Quais?"]
["Vinculação institucional:"]
["Outra instutuição (quando aplicável)"]
["Financiamento(s)? Quais?"]
["Cooperações; Redes ou articulações interinstitucionais de pesquisa; Redes formalizadas ou informais? Quais?"]
["Relação com Projeto de Extensão e/ou Atividade de Ensino? Qual?"]
["Discentes vinculados:"]
["Nome:"]
["Tipo:"]
["E-mail:"]
["CPF (apenas para aluno de graduação):"]
["Período de vinculação (mês/ano):"]
["Tipo de bolsa (quando aplicável):"]
["Nome:"]
["Tipo:"]
["E-mail:"]
["CPF (apenas para aluno de graduação):"]
["Período de vinculação (mês/ano):"]
["Tipo de bolsa (quando aplicável):"]
["Nome:"]
["Tipo:"]
["E-mail:"]
["CPF (apenas para aluno de graduação):"]
["Período de vinculação (mês/ano):"]
["Tipo de bolsa (quando aplicável):"]
["Nome:"]
["Tipo:"]
["E-mail:"]
["CPF (apenas para aluno de graduação):"]
["Período de vinculação (mês/ano):"]
["Tipo de bolsa (quando aplicável):"]
["Nome:"]
["Tipo:"]
["E-mail:"]
["CPF (apenas para aluno de graduação):"]
["Período de vinculação (mês/ano):"]
["Tipo de bolsa (quando aplicável):"]
["Nome:"]
["Tipo:"]
["E-mail:"]
["CPF (apenas para aluno de graduação):"]
["Período de vinculação (mês/ano):"]
["Tipo de bolsa (quando aplicável):"]
["Pesquisa:"]
["Data de início (mês/ano):"]
["Carga horária semanal:"]
["Vinculado a um ou mais grupos de pesquisa? Quais?"]
["Vinculação institucional:"]
["Outra instutuição (quando aplicável)"]
["Financiamento(s)? Quais?"]
["Cooperações; Redes ou articulações interinstitucionais de pesquisa; Redes formalizadas ou informais? Quais?"]
["Relação com Projeto de Extensão e/ou Atividade de Ensino? Qual?"]
["Discentes vinculados:"]
["Nome:"]
["Tipo:"]
["E-mail:"]
["CPF (apenas para aluno de graduação):"]
["Período de vinculação (mês/ano):"]
["Tipo de bolsa (quando aplicável):"]
["Nome:"]
["Tipo:"]
["E-mail:"]
["CPF (apenas para aluno de graduação):"]
["Período de vinculação (mês/ano):"]
["Tipo de bolsa (quando aplicável):"]
["Nome:"]
["Tipo:"]
["E-mail:"]
["CPF (apenas para aluno de graduação):"]
["Período de vinculação (mês/ano):"]
["Tipo de bolsa (quando aplicável):"]
["Nome:"]
["Tipo:"]
["E-mail:"]
["CPF (apenas para aluno de graduação):"]
["Período de vinculação (mês/ano):"]
["Tipo de bolsa (quando aplicável):"]
["Nome:"]
["Tipo:"]
["E-mail:"]
["CPF (apenas para aluno de graduação):"]
["Período de vinculação (mês/ano):"]
["Tipo de bolsa (quando aplicável):"]
["Nome:"]
["Tipo:"]
["E-mail:"]
["CPF (apenas para aluno de graduação):"]
["Período de vinculação (mês/ano):"]
["Tipo de bolsa (quando aplicável):"]
["Pesquisa:"]
["Data de início (mês/ano):"]
["Carga horária semanal:"]
["Vinculado a um ou mais grupos de pesquisa? Quais?"]
["Vinculação institucional:"]
["Outra instutuição (quando aplicável)"]
["Financiamento(s)? Quais?"]
["Cooperações; Redes ou articulações interinstitucionais de pesquisa; Redes formalizadas ou informais? Quais?"]
["Relação com Projeto de Extensão e/ou Atividade de Ensino? Qual?"]
["Discentes vinculados:"]
["Nome:"]
["Tipo:"]
["E-mail:"]
["CPF (apenas para aluno de graduação):"]
["Período de vinculação (mês/ano):"]
["Tipo de bolsa (quando aplicável):"]
["Nome:"]
["Tipo:"]
["E-mail:"]
["CPF (apenas para aluno de graduação):"]
["Período de vinculação (mês/ano):"]
["Tipo de bolsa (quando aplicável):"]
["Nome:"]
["Tipo:"]
["E-mail:"]
["CPF (apenas para aluno de graduação):"]
["Período de vinculação (mês/ano):"]
["Tipo de bolsa (quando aplicável):"]
["Nome:"]
["Tipo:"]
["E-mail:"]
["CPF (apenas para aluno de graduação):"]
["Período de vinculação (mês/ano):"]
["Tipo de bolsa (quando aplicável):"]
["Nome:"]
["Tipo:"]
["E-mail:"]
["CPF (apenas para aluno de graduação):"]
["Período de vinculação (mês/ano):"]
["Tipo de bolsa (quando aplicável):"]
["Nome:"]
["Tipo:"]
["E-mail:"]
["CPF (apenas para aluno de graduação):"]
["Período de vinculação (mês/ano):"]
["Tipo de bolsa (quando aplicável):"]
["Pesquisa:"]
["Data de início (mês/ano):"]
["Carga horária semanal:"]
["Vinculado a um ou mais grupos de pesquisa? Quais?"]
["Vinculação institucional:"]
["Outra instutuição (quando aplicável)"]
["Financiamento(s)? Quais?"]
["Cooperações; Redes ou articulações interinstitucionais de pesquisa; Redes formalizadas ou informais? Quais?"]
["Relação com Projeto de Extensão e/ou Atividade de Ensino? Qual?"]
["Discentes vinculados:"]
["Nome:"]
["Tipo:"]
["E-mail:"]
["CPF (apenas para aluno de graduação):"]
["Período de vinculação (mês/ano):"]
["Tipo de bolsa (quando aplicável):"]
["Nome:"]
["Tipo:"]
["E-mail:"]
["CPF (apenas para aluno de graduação):"]
["Período de vinculação (mês/ano):"]
["Tipo de bolsa (quando aplicável):"]
["Nome:"]
["Tipo:"]
["E-mail:"]
["CPF (apenas para aluno de graduação):"]
["Período de vinculação (mês/ano):"]
["Tipo de bolsa (quando aplicável):"]
["Nome:"]
["Tipo:"]
["E-mail:"]
["CPF (apenas para aluno de graduação):"]
["Período de vinculação (mês/ano):"]
["Tipo de bolsa (quando aplicável):"]
["Nome:"]
["Tipo:"]
["E-mail:"]
["CPF (apenas para aluno de graduação):"]
["Período de vinculação (mês/ano):"]
["Tipo de bolsa (quando aplicável):"]
["Nome:"]
["Tipo:"]
["E-mail:"]
["CPF (apenas para aluno de graduação):"]
["Período de vinculação (mês/ano):"]
["Tipo de bolsa (quando aplicável):"]
["Pesquisa:"]
["Data de início (mês/ano):"]
["Carga horária semanal:"]
["Vinculado a um ou mais grupos de pesquisa? Quais?"]
["Vinculação institucional:"]
["Outra instutuição (quando aplicável)"]
["Financiamento(s)? Quais?"]
["Cooperações; Redes ou articulações interinstitucionais de pesquisa; Redes formalizadas ou informais? Quais?"]
["Relação com Projeto de Extensão e/ou Atividade de Ensino? Qual?"]
["Discentes vinculados:"]
["Nome:"]
["Tipo:"]
["E-mail:"]
["CPF (apenas para aluno de graduação):"]
["Período de vinculação (mês/ano):"]
["Tipo de bolsa (quando aplicável):"]
["Nome:"]
["Tipo:"]
["E-mail:"]
["CPF (apenas para aluno de graduação):"]
["Período de vinculação (mês/ano):"]
["Tipo de bolsa (quando aplicável):"]
["Nome:"]
["Tipo:"]
["E-mail:"]
["CPF (apenas para aluno de graduação):"]
["Período de vinculação (mês/ano):"]
["Tipo de bolsa (quando aplicável):"]
["Nome:"]
["Tipo:"]
["E-mail:"]
["CPF (apenas para aluno de graduação):"]
["Período de vinculação (mês/ano):"]
["Tipo de bolsa (quando aplicável):"]
["Nome:"]
["Tipo:"]
["E-mail:"]
["CPF (apenas para aluno de graduação):"]
["Período de vinculação (mês/ano):"]
["Tipo de bolsa (quando aplicável):"]
["Nome:"]
["Tipo:"]
["E-mail:"]
["CPF (apenas para aluno de graduação):"]
["Período de vinculação (mês/ano):"]
["Tipo de bolsa (quando aplicável):"]
["4.4.2. Coordenação de pesquisas finalizadas em 2020."]
["Pesquisa:"]
["Datas de início e fim (mês / ano):"]
["Carga horária semanal:"]
["Carga horária total:"]
["Vinculado a um ou mais grupos de pesquisa? Quais?"]
["Vinculação institucional:"]
["Outra instutuição (quando aplicável)"]
["Financiamento? Qual?"]
["Articulações? Quais?"]
["Relação com Projeto de Extensão e/ou Atividade de Ensino? Qual?"]
["Discentes vinculados:"]
["Nome:"]
["Tipo:"]
["E-mail:"]
["CPF (apenas para aluno de graduação):"]
["Período de vinculação:"]
["Tipo de bolsa (quando aplicável):"]
["Nome:"]
["Tipo:"]
["E-mail:"]
["CPF (apenas para aluno de graduação):"]
["Período de vinculação:"]
["Tipo de bolsa (quando aplicável):"]
["Nome:"]
["Tipo:"]
["E-mail:"]
["CPF (apenas para aluno de graduação):"]
["Período de vinculação:"]
["Tipo de bolsa (quando aplicável):"]
["Nome:"]
["Tipo:"]
["E-mail:"]
["CPF (apenas para aluno de graduação):"]
["Período de vinculação:"]
["Tipo de bolsa (quando aplicável):"]
["Nome:"]
["Tipo:"]
["E-mail:"]
["CPF (apenas para aluno de graduação):"]
["Período de vinculação:"]
["Tipo de bolsa (quando aplicável):"]
["Nome:"]
["Tipo:"]
["E-mail:"]
["CPF (apenas para aluno de graduação):"]
["Período de vinculação:"]
["Tipo de bolsa (quando aplicável):"]
["Pesquisa:"]
["Datas de início e fim (mês / ano):"]
["Carga horária semanal:"]
["Carga horária total:"]
["Vinculado a um ou mais grupos de pesquisa? Quais?"]
["Vinculação institucional:"]
["Outra instutuição (quando aplicável)"]
["Financiamento? Qual?"]
["Articulações? Quais?"]
["Relação com Projeto de Extensão e/ou Atividade de Ensino? Qual?"]
["Discentes vinculados:"]
["Nome:"]
["Tipo:"]
["E-mail:"]
["CPF (apenas para aluno de graduação):"]
["Período de vinculação:"]
["Tipo de bolsa (quando aplicável):"]
["Nome:"]
["Tipo:"]
["E-mail:"]
["CPF (apenas para aluno de graduação):"]
["Período de vinculação:"]
["Tipo de bolsa (quando aplicável):"]
["Nome:"]
["Tipo:"]
["E-mail:"]
["CPF (apenas para aluno de graduação):"]
["Período de vinculação:"]
["Tipo de bolsa (quando aplicável):"]
["Nome:"]
["Tipo:"]
["E-mail:"]
["CPF (apenas para aluno de graduação):"]
["Período de vinculação:"]
["Tipo de bolsa (quando aplicável):"]
["Nome:"]
["Tipo:"]
["E-mail:"]
["CPF (apenas para aluno de graduação):"]
["Período de vinculação:"]
["Tipo de bolsa (quando aplicável):"]
["Nome:"]
["Tipo:"]
["E-mail:"]
["CPF (apenas para aluno de graduação):"]
["Período de vinculação:"]
["Tipo de bolsa (quando aplicável):"]
["Pesquisa:"]
["Datas de início e fim (mês / ano):"]
["Carga horária semanal:"]
["Carga horária total:"]
["Vinculado a um ou mais grupos de pesquisa? Quais?"]
["Vinculação institucional:"]
["Outra instutuição (quando aplicável)"]
["Financiamento? Qual?"]
["Articulações? Quais?"]
["Relação com Projeto de Extensão e/ou Atividade de Ensino? Qual?"]
["Discentes vinculados:"]
["Nome:"]
["Tipo:"]
["E-mail:"]
["CPF (apenas para aluno de graduação):"]
["Período de vinculação:"]
["Tipo de bolsa (quando aplicável):"]
["Nome:"]
["Tipo:"]
["E-mail:"]
["CPF (apenas para aluno de graduação):"]
["Período de vinculação:"]
["Tipo de bolsa (quando aplicável):"]
["Nome:"]
["Tipo:"]
["E-mail:"]
["CPF (apenas para aluno de graduação):"]
["Período de vinculação:"]
["Tipo de bolsa (quando aplicável):"]
["Nome:"]
["Tipo:"]
["E-mail:"]
["CPF (apenas para aluno de graduação):"]
["Período de vinculação:"]
["Tipo de bolsa (quando aplicável):"]
["Nome:"]
["Tipo:"]
["E-mail:"]
["CPF (apenas para aluno de graduação):"]
["Período de vinculação:"]
["Tipo de bolsa (quando aplicável):"]
["Nome:"]
["Tipo:"]
["E-mail:"]
["CPF (apenas para aluno de graduação):"]
["Período de vinculação:"]
["Tipo de bolsa (quando aplicável):"]
["Pesquisa:"]
["Datas de início e fim (mês / ano):"]
["Carga horária semanal:"]
["Carga horária total:"]
["Vinculado a um ou mais grupos de pesquisa? Quais?"]
["Vinculação institucional:"]
["Outra instutuição (quando aplicável)"]
["Financiamento? Qual?"]
["Articulações? Quais?"]
["Relação com Projeto de Extensão e/ou Atividade de Ensino? Qual?"]
["Discentes vinculados:"]
["Nome:"]
["Tipo:"]
["E-mail:"]
["CPF (apenas para aluno de graduação):"]
["Período de vinculação:"]
["Tipo de bolsa (quando aplicável):"]
["Nome:"]
["Tipo:"]
["E-mail:"]
["CPF (apenas para aluno de graduação):"]
["Período de vinculação:"]
["Tipo de bolsa (quando aplicável):"]
["Nome:"]
["Tipo:"]
["E-mail:"]
["CPF (apenas para aluno de graduação):"]
["Período de vinculação:"]
["Tipo de bolsa (quando aplicável):"]
["Nome:"]
["Tipo:"]
["E-mail:"]
["CPF (apenas para aluno de graduação):"]
["Período de vinculação:"]
["Tipo de bolsa (quando aplicável):"]
["Nome:"]
["Tipo:"]
["E-mail:"]
["CPF (apenas para aluno de graduação):"]
["Período de vinculação:"]
["Tipo de bolsa (quando aplicável):"]
["Nome:"]
["Tipo:"]
["E-mail:"]
["CPF (apenas para aluno de graduação):"]
["Período de vinculação:"]
["Tipo de bolsa (quando aplicável):"]
["Pesquisa:"]
["Datas de início e fim (mês / ano):"]
["Carga horária semanal:"]
["Carga horária total:"]
["Vinculado a um ou mais grupos de pesquisa? Quais?"]
["Vinculação institucional:"]
["Outra instutuição (quando aplicável)"]
["Financiamento? Qual?"]
["Articulações? Quais?"]
["Relação com Projeto de Extensão e/ou Atividade de Ensino? Qual?"]
["Discentes vinculados:"]
["Nome:"]
["Tipo:"]
["E-mail:"]
["CPF (apenas para aluno de graduação):"]
["Período de vinculação:"]
["Tipo de bolsa (quando aplicável):"]
["Nome:"]
["Tipo:"]
["E-mail:"]
["CPF (apenas para aluno de graduação):"]
["Período de vinculação:"]
["Tipo de bolsa (quando aplicável):"]
["Nome:"]
["Tipo:"]
["E-mail:"]
["CPF (apenas para aluno de graduação):"]
["Período de vinculação:"]
["Tipo de bolsa (quando aplicável):"]
["Nome:"]
["Tipo:"]
["E-mail:"]
["CPF (apenas para aluno de graduação):"]
["Período de vinculação:"]
["Tipo de bolsa (quando aplicável):"]
["Nome:"]
["Tipo:"]
["E-mail:"]
["CPF (apenas para aluno de graduação):"]
["Período de vinculação:"]
["Tipo de bolsa (quando aplicável):"]
["Nome:"]
["Tipo:"]
["E-mail:"]
["CPF (apenas para aluno de graduação):"]
["Período de vinculação:"]
["Tipo de bolsa (quando aplicável):"]
["4.5. Participação em projetos de pesquisas"]
["4.5.1. Participação de pesquisas em andamento."]
["Pesquisa:"]
["Data de início (mês / ano):"]
["Carga horária semanal:"]
["Carga horária total:"]
["Vinculado a um ou mais grupos de pesquisa? Quais?"]
["Vinculação institucional:"]
["Outra instutuição (quando aplicável)"]
["Financiamento? Qual?"]
["Articulações? Quais?"]
["Relação com Projeto de Extensão e/ou Atividade de Ensino? Qual?"]
["Pesquisa:"]
["Data de início (mês / ano):"]
["Carga horária semanal:"]
["Carga horária total:"]
["Vinculado a um ou mais grupos de pesquisa? Quais?"]
["Vinculação institucional:"]
["Outra instutuição (quando aplicável)"]
["Financiamento? Qual?"]
["Articulações? Quais?"]
["Relação com Projeto de Extensão e/ou Atividade de Ensino? Qual?"]
["Pesquisa:"]
["Data de início (mês / ano):"]
["Carga horária semanal:"]
["Carga horária total:"]
["Vinculado a um ou mais grupos de pesquisa? Quais?"]
["Vinculação institucional:"]
["Outra instutuição (quando aplicável)"]
["Financiamento? Qual?"]
["Articulações? Quais?"]
["Relação com Projeto de Extensão e/ou Atividade de Ensino? Qual?"]
["Pesquisa:"]
["Data de início (mês / ano):"]
["Carga horária semanal:"]
["Carga horária total:"]
["Vinculado a um ou mais grupos de pesquisa? Quais?"]
["Vinculação institucional:"]
["Outra instutuição (quando aplicável)"]
["Financiamento? Qual?"]
["Articulações? Quais?"]
["Relação com Projeto de Extensão e/ou Atividade de Ensino? Qual?"]
["Pesquisa:"]
["Data de início (mês / ano):"]
["Carga horária semanal:"]
["Carga horária total:"]
["Vinculado a um ou mais grupos de pesquisa? Quais?"]
["Vinculação institucional:"]
["Outra instutuição (quando aplicável)"]
["Financiamento? Qual?"]
["Articulações? Quais?"]
["Relação com Projeto de Extensão e/ou Atividade de Ensino? Qual?"]
["4.5.2. Participação de pesquisas finalizadas em 2020."]
["Pesquisa:"]
["Datas de início e fim (mês / ano):"]
["Carga horária semanal:"]
["Carga horária total:"]
["Vinculado a um ou mais grupos de pesquisa? Quais?"]
["Vinculação institucional:"]
["Outra instutuição (quando aplicável)"]
["Financiamento? Qual?"]
["Articulações? Quais?"]
["Relação com Projeto de Extensão e/ou Atividade de Ensino? Qual?"]
["Pesquisa:"]
["Datas de início e fim (mês / ano):"]
["Carga horária semanal:"]
["Carga horária total:"]
["Vinculado a um ou mais grupos de pesquisa? Quais?"]
["Vinculação institucional:"]
["Outra instutuição (quando aplicável)"]
["Financiamento? Qual?"]
["Articulações? Quais?"]
["Relação com Projeto de Extensão e/ou Atividade de Ensino? Qual?"]
["Pesquisa:"]
["Datas de início e fim (mês / ano):"]
["Carga horária semanal:"]
["Carga horária total:"]
["Vinculado a um ou mais grupos de pesquisa? Quais?"]
["Vinculação institucional:"]
["Outra instutuição (quando aplicável)"]
["Financiamento? Qual?"]
["Articulações? Quais?"]
["Relação com Projeto de Extensão e/ou Atividade de Ensino? Qual?"]
["Pesquisa:"]
["Datas de início e fim (mês / ano):"]
["Carga horária semanal:"]
["Carga horária total:"]
["Vinculado a um ou mais grupos de pesquisa? Quais?"]
["Vinculação institucional:"]
["Outra instutuição (quando aplicável)"]
["Financiamento? Qual?"]
["Articulações? Quais?"]
["Relação com Projeto de Extensão e/ou Atividade de Ensino? Qual?"]
["Pesquisa:"]
["Datas de início e fim (mês / ano):"]
["Carga horária semanal:"]
["Carga horária total:"]
["Vinculado a um ou mais grupos de pesquisa? Quais?"]
["Vinculação institucional:"]
["Outra instutuição (quando aplicável)"]
["Financiamento? Qual?"]
["Articulações? Quais?"]
["Relação com Projeto de Extensão e/ou Atividade de Ensino? Qual?"]
["4.6. Consultorias, assessorias e assistências técnicas vinculadas às pesquisas"]
["Descrição:"]
["4.7. Interfaces entre pesquisa/extensão e ensino (Criação, articulação ou promoção relacionada à pesquisa: de disciplinas, projetos de extensão, de Grupos ou linhas de pesquisa, de jornais, revistas, plataformas, observatórios, promoção de Seminários / eventos, debates em rede, grupos de estudos, outros)"]
["Descrição:"]

{"sheet":"5. Orient","index":4,"n_rows":48,"n_cols":1,"rows_kept":48,"cut":false,"hidden":false,"merged":[[42,0,42,1],[45,0,45,1],[27,0,27,1],[30,0,30,1],[33,0,33,1],[36,0,36,1],[39,0,39,1],[24,0,24,1],[0,0,0,1],[1,0,1,1],[2,0,2,1],[5,0,5,1],[8,0,8,1],[11,0,11,1],[13,0,13,1],[15,0,15,1],[17,0,17,1],[18,0,18,1],[21,0,21,1]]}
["5. ATIVIDADES DE ORIENTAÇÃO"]
["5.1. Orientação de estudantes de graduação:"]
["TFG:"]
["Quatidade de alunos anual:"]
["Nome(s) do(s) aluno(s), título(s) do(s) trabalho(s) e semestre(s):"]
["Coorientação TFG:"]
["Quatidade de alunos anual:"]
["Nome(s) do(s) aluno(s), título(s) do(s) trabalho(s) e semestre(s):"]
["Monitoria:"]
["Quatidade de alunos anual:"]
["Nome(s) do(s) aluno(s), nome(s) da(s) disciplina(s) e semestre(s):"]
["PIBIC e afins:"]
["Quatidade de alunos anual:"]
["Extensão:"]
["Quatidade de alunos anual:"]
["Voluntários e colaboradores:"]
["Quatidade de alunos anual:"]
["5.2. Orientação de estudantes de pós-graduação "]
["Doutorado:"]
["Quatidade de alunos anual:"]
["Nome(s) do(s) aluno(s), título(s) do(s) trabalho(s) e semestre(s):"]
["Coorientação Doutorado:"]
["Quatidade de alunos anual:"]
["Nome(s) do(s) aluno(s), título(s) do(s) trabalho(s) e semestre(s):"]
["Mestrado:"]
["Quatidade de alunos anual:"]
["Nome(s) do(s) aluno(s), título(s) do(s) trabalho(s) e semestre(s):"]
["Coorientação Mestrado:"]
["Quatidade de alunos anual:"]
["Nome(s) do(s) aluno(s), título(s) do(s) trabalho(s) e semestre(s):"]
["Mestrado Profissional:"]
["Quatidade de alunos anual:"]
["Nome(s) do(s) aluno(s), título(s) do(s) trabalho(s) e semestre(s):"]
["Coorientação Mestrado Profissional:"]
["Quatidade de alunos anual:"]
["Nome(s) do(s) aluno(s), título(s) do(s) trabalho(s) e semestre(s):"]
["Residência AU+E:"]
["Quatidade de alunos anual:"]
["Nome(s) do(s) aluno(s), título(s) do(s) trabalho(s) e semestre(s):"]
["Coorientação Residência:"]
["Quatidade de alunos anual:"]
["Nome(s) do(s) aluno(s), título(s) do(s) trabalho(s) e semestre(s):"]
["Tirocínio Docente:"]
["Quatidade de alunos anual:"]
["Nome(s) do(s) aluno(s), nome(s) da(s) disciplina(s) e semestre(s):"]
["Tutor:"]
["Quatidade de alunos anual:"]
["Nome(s) do(s) aluno(s), nome(s) da(s) pesquisa(s) e semestre(s):"]

{"sheet":"6. Prod. Acad","index":5,"n_rows":16,"n_cols":1,"rows_kept":16,"cut":false,"hidden":false,"merged":[]}
["6. PRODUÇÃO ACADÊMICA (preencher seguindo a norma ABNT 6023_2018; indicar claramente todos os autores envolvidos, em ordem de autoria; e identificar se a produção tem relação com alguma pesquisa e com qual)"]
["6.1. Autoria ou co-autoria de livro especializado (colocar ISBN)"]
[]
["6.2. Organização de livro (colocar ISBN)"]
[]
["6.3. Capítulo de Livro (colocar ISBN)"]
[]
["6.4. Publicação de artigo em periódico especializado em autoria ou co-autoria (colocar ISSN)"]
[]
["6.5. Publicação de trabalhos completos em anais de congressos ou simpósios, suplementos de periódicos ou cadernos especiais de jornais, na área de atuação do docente  em autoria ou co-autoria (colocar ISBN)"]
[]
["6.6. Obras artísticas, cientificas, técnicas ou outras na área de atuação do docente em autoria ou co-autoria"]
[]
["6.7. Publicações em sites e blogs na área de atuação do docente em autoria ou co-autoria"]
[]
["6.8. Formatação e/ou alimentação de sites vinculados às pesquisas individualmente ou em grupo"]

{"sheet":"7. At. Adm","index":6,"n_rows":28,"n_cols":1,"rows_kept":28,"cut":false,"hidden":false,"merged":[[26,0,26,1],[0,0,0,1],[1,0,1,1],[6,0,6,1],[15,0,15,1],[24,0,24,1]]}
["7. ATIVIDADES ADMINISTRATIVAS"]
["7.1. Exercício de cargo "]
["Cargo:"]
["Vigência:"]
["Cargo:"]
["Vigência:"]
["7.2. Representação Interna"]
["Representação:"]
["Vigência:"]
["Representação:"]
["Vigência:"]
["Representação:"]
["Vigência:"]
["Representação:"]
["Vigência:"]
["7.3. Representação Externa à UFBA"]
["Representação:"]
["Vigência:"]
["Representação:"]
["Vigência:"]
["Representação:"]
["Vigência:"]
["Representação:"]
["Vigência:"]
["7.4. Participação em Comissão "]
["Descrição:"]
["7.5. Outras atividades administrativas definidas pela Instituição "]
["Descrição:"]

{"sheet":"8. Eventos","index":7,"n_rows":19,"n_cols":1,"rows_kept":19,"cut":false,"hidden":false,"merged":[]}
["8. PARTICIPAÇÃO EM EVENTOS"]
["Evento"]
["8.1. Coordenação geral (identificar se possui relação com pesquisa e qual)"]
[]
["8.2. Participação de comissão organizadora (identificar se possui relação com pesquisa e qual)"]
[]
["8.3. Participação em comitê científico"]
[]
["8.4. Apresentação de palestra ou conferência (identificar se possui relação com pesquisa e qual)"]
[]
["8.5. Coordenação de mesa "]
[]
["8.6.  Participação de mesa como debatedor"]
[]
["8.7. Apresentação de comunicação  (identificar se possui relação com pesquisa e qual)"]
[]
["8.8. Participação em workshop ou similar"]
[]
["8.9. Ouvinte"]

{"sheet":"9. Bancas","index":8,"n_rows":10,"n_cols":1,"rows_kept":10,"cut":false,"hidden":false,"merged":[]}
["9. PARTICIPAÇÃO EM BANCAS EXAMINADORAS"]
["9.1. Trabalho Final de Graduação – TFG"]
[]
["9.2. Dissertação de Mestrado"]
[]
["9.3. Tese de Doutorado"]
[]
["9.4. Concurso "]
[]
["9.5. Processos seletivos na UFBA "]

{"sheet":"10. Periód","index":9,"n_rows":4,"n_cols":1,"rows_kept":4,"cut":false,"hidden":false,"merged":[]}
["10. MEMBRO DE CORPO EDITORIAL E REVISOR DE PERIÓDICO"]
["10.1. Membro de corpo editorial"]
[]
["10.2. Revisor de periódico"]

{"sheet":"11. Info. Compl.","index":10,"n_rows":4,"n_cols":2,"rows_kept":4,"cut":false,"hidden":false,"merged":[[0,0,0,1]]}
["11. INFORMAÇÕES COMPLEMENTARES"]
["Descrição:"]
["12. LOCAL/ DATA","13. ASSINATURA"]
["Salvador, xx de dezembro de 2020"]

{"sheet":"Impressão","index":11,"n_rows":1317,"n_cols":10,"rows_kept":1317,"cut":false,"hidden":false,"merged":[[1249,0,1249,1],[1265,0,1265,1],[1274,0,1274,1],[1276,0,1276,1],[1281,0,1281,1],[1256,0,1256,1],[1278,0,1278,1],[1279,0,1279,1],[1289,0,1289,1],[28,0,28,1],[45,0,45,1],[46,0,46,1],[59,0,59,1],[1251,0,1251,1],[0,0,0,1],[2,0,2,1],[9,0,9,1],[10,0,10,1],[11,0,11,1],[853,0,853,1],[1041,0,1041,1],[1078,0,1078,1],[1079,0,1079,1],[1130,0,1130,1],[900,0,900,1],[947,0,947,1],[994,0,994,1],[805,0,805,1],[1250,0,1250,1],[1244,0,1244,1],[1234,0,1234,1],[1238,0,1238,1],[1242,0,1242,1],[611,0,611,1],[621,0,621,1],[667,0,667,1],[713,0,713,1],[1313,0,1313,1],[1291,0,1291,1],[1295,0,1295,1],[1298,0,1298,1],[1300,0,1300,1],[1297,0,1297,1],[1302,0,1302,1],[1304,0,1304,1],[1306,0,1306,1],[1309,0,1309,1],[1311,0,1311,1],[1308,0,1308,1],[1283,0,1283,1],[1285,0,1285,1],[1287,0,1287,1],[1293,0,1293,1],[1235,0,1235,1],[1237,0,1237,1],[1239,0,1239,1],[1241,0,1241,1],[72,0,72,1],[73,0,73,1],[79,0,79,1],[121,0,121,1],[163,0,163,1],[606,0,606,1],[610,0,610,1],[205,0,205,1],[242,0,242,1],[263,0,263,1],[597,0,597,1],[598,0,598,1],[602,0,602,1],[269,0,269,1],[347,0,347,1],[425,0,425,1],[503,0,503,1],[576,0,576,1],[759,0,759,1],[1181,0,1181,1],[1183,0,1183,1],[1185,0,1185,1],[1186,0,1186,1],[1187,0,1187,1],[1190,0,1190,1],[1193,0,1193,1],[1196,0,1196,1],[842,0,842,1],[1221,0,1221,1],[1224,0,1224,1],[1227,0,1227,1],[1230,0,1230,1],[1236,0,1236,1],[1240,0,1240,1],[1246,0,1246,1],[1248,0,1248,1],[1198,0,1198,1],[1200,0,1200,1],[1202,0,1202,1],[1203,0,1203,1],[1206,0,1206,1],[1209,0,1209,1],[1212,0,1212,1],[1215,0,1215,1],[1218,0,1218,1],[1233,0,1233,1],[1243,0,1243,1],[1245,0,1245,1],[1247,0,1247,1]]}
["RELATÓRIO INDIVIDUAL DE TRABALHO"]
["Interstício:",2020]
["1. IDENTIFICAÇÃO"]
["Docente:",{"$f":"'1. Id'!B4","v":0}]
["Regime de Trabalho: ",{"$f":"'1. Id'!B5","v":0}]
["Graduação - Classe e Nível:",{"$f":"'1. Id'!B6","v":0}]
["SIAPE:",{"$f":"'1. Id'!B7","v":0}]
["Núcleo(s):",{"$f":"'1. Id'!B8","v":0}]
["Programa(s) de Pós-Graduação ao qual está vinculado(a) e vínculo",{"$f":"'1. Id'!B9","v":0}]
["2. ATIVIDADES DE ENSINO"]
["2.1. Aulas  na graduação"]
["2020"]
["Código e nome da disciplina:",{"$f":"'2. Ensino'!$B4","v":0}]
["Número de turmas: ",{"$f":"'2. Ensino'!$B5","v":0}]
["Carga horária semanal:",{"$f":"'2. Ensino'!$B6","v":0}]
["Carga horária semestral:",{"$f":"'2. Ensino'!$B7","v":0}]
["Código e nome da disciplina:",{"$f":"'2. Ensino'!$B8","v":0}]
["Número de turmas: ",{"$f":"'2. Ensino'!$B9","v":0}]
["Carga horária semanal:",{"$f":"'2. Ensino'!$B10","v":0}]
["Carga horária semestral:",{"$f":"'2. Ensino'!$B11","v":0}]
["Código e nome da disciplina:",{"$f":"'2. Ensino'!$B12","v":0}]
["Número de turmas: ",{"$f":"'2. Ensino'!$B13","v":0}]
["Carga horária semanal:",{"$f":"'2. Ensino'!$B14","v":0}]
["Carga horária semestral:",{"$f":"'2. Ensino'!$B15","v":0}]
["Código e nome da disciplina:",{"$f":"'2. Ensino'!$B16","v":0}]
["Número de turmas: ",{"$f":"'2. Ensino'!$B17","v":0}]
["Carga horária semanal:",{"$f":"'2. Ensino'!$B18","v":0}]
["Carga horária semestral:",{"$f":"'2. Ensino'!$B19","v":0}]
["SLS"]
["Código e nome da disciplina:",{"$f":"'2. Ensino'!$B21","v":0}]
["Número de turmas: ",{"$f":"'2. Ensino'!$B22","v":0}]
["Carga horária semanal:",{"$f":"'2. Ensino'!$B23","v":0}]
["Carga horária semestral:",{"$f":"'2. Ensino'!$B24","v":0}]
["Código e nome da disciplina:",{"$f":"'2. Ensino'!$B25","v":0}]
["Número de turmas: ",{"$f":"'2. Ensino'!$B26","v":0}]
["Carga horária semanal:",{"$f":"'2. Ensino'!$B27","v":0}]
["Carga horária semestral:",{"$f":"'2. Ensino'!$B28","v":0}]
["Código e nome da disciplina:",{"$f":"'2. Ensino'!$B29","v":0}]
["Número de turmas: ",{"$f":"'2. Ensino'!$B30","v":0}]
["Carga horária semanal:",{"$f":"'2. Ensino'!$B31","v":0}]
["Carga horária semestral:",{"$f":"'2. Ensino'!$B32","v":0}]
["Código e nome da disciplina:",{"$f":"'2. Ensino'!$B33","v":0}]
["Número de turmas: ",{"$f":"'2. Ensino'!$B34","v":0}]
["Carga horária semanal:",{"$f":"'2. Ensino'!$B35","v":0}]
["Carga horária semestral:",{"$f":"'2. Ensino'!$B36","v":0}]
["2.2. Aulas  na pós-graduação"]
["2020.1"]
["Código e nome da disciplina:",{"$f":"'2. Ensino'!$B39","v":0}]
["Número de turmas: ",{"$f":"'2. Ensino'!$B40","v":0}]
["Carga horária semanal:",{"$f":"'2. Ensino'!$B41","v":0}]
["Carga horária semestral:",{"$f":"'2. Ensino'!$B42","v":0}]
["Código e nome da disciplina:",{"$f":"'2. Ensino'!$B43","v":0}]
["Número de turmas: ",{"$f":"'2. Ensino'!$B44","v":0}]
["Carga horária semanal:",{"$f":"'2. Ensino'!$B45","v":0}]
["Carga horária semestral:",{"$f":"'2. Ensino'!$B46","v":0}]
["Código e nome da disciplina:",{"$f":"'2. Ensino'!$B47","v":0}]
["Número de turmas: ",{"$f":"'2. Ensino'!$B48","v":0}]
["Carga horária semanal:",{"$f":"'2. Ensino'!$B49","v":0}]
["Carga horária semestral:",{"$f":"'2. Ensino'!$B50","v":0}]
["SLS"]
["Código e nome da disciplina:",{"$f":"'2. Ensino'!$B52","v":0}]
["Número de turmas: ",{"$f":"'2. Ensino'!$B53","v":0}]
["Carga horária semanal:",{"$f":"'2. Ensino'!$B54","v":0}]
["Carga horária semestral:",{"$f":"'2. Ensino'!$B55","v":0}]
["Código e nome da disciplina:",{"$f":"'2. Ensino'!$B56","v":0}]
["Número de turmas: ",{"$f":"'2. Ensino'!$B57","v":0}]
["Carga horária semanal:",{"$f":"'2. Ensino'!$B58","v":0}]
["Carga horária semestral:",{"$f":"'2. Ensino'!$B59","v":0}]
["Código e nome da disciplina:",{"$f":"'2. Ensino'!$B60","v":0}]
["Número de turmas: ",{"$f":"'2. Ensino'!$B61","v":0}]
["Carga horária semanal:",{"$f":"'2. Ensino'!$B62","v":0}]
["Carga horária semestral:",{"$f":"'2. Ensino'!$B63","v":0}]
["3. ATIVIDADES DE EXTENSÃO"]
["3.1. Coordenação de projetos de extensão de caráter permanente"]
["Projeto:",{"$f":"'3. Ext'!$B3","v":0},null,null,null,null,null,null,null,""]
["Datas de início e fim (mês / ano):",{"$f":"'3. Ext'!$B4","v":0}]
["Carga horária semanal:",{"$f":"'3. Ext'!$B5","v":0}]
["Carga horária total:",{"$f":"'3. Ext'!$B6","v":0}]
["Relação com Projeto de Pesquisa e/ou Atividade de Ensino? Qual?",{"$f":"'3. Ext'!$B7","v":0}]
["Discentes vinculados:"]
["Nome:",{"$f":"'3. Ext'!$B9","v":0}]
["Tipo:",{"$f":"'3. Ext'!$B10","v":0}]
["E-mail:",{"$f":"'3. Ext'!$B11","v":0}]
["CPF (apenas para aluno de graduação):",{"$f":"'3. Ext'!$B12","v":0}]
["Período de vinculação (mês/ano):",{"$f":"'3. Ext'!$B13","v":0}]
["Tipo de bolsa (quando aplicável):",{"$f":"'3. Ext'!$B14","v":0}]
["Nome:",{"$f":"'3. Ext'!$B15","v":0}]
["Tipo:",{"$f":"'3. Ext'!$B16","v":0}]
["E-mail:",{"$f":"'3. Ext'!$B17","v":0}]
["CPF (apenas para aluno de graduação):",{"$f":"'3. Ext'!$B18","v":0}]
["Período de vinculação (mês/ano):",{"$f":"'3. Ext'!$B19","v":0}]
["Tipo de bolsa (quando aplicável):",{"$f":"'3. Ext'!$B20","v":0}]
["Nome:",{"$f":"'3. Ext'!$B21","v":0}]
["Tipo:",{"$f":"'3. Ext'!$B22","v":0}]
["E-mail:",{"$f":"'3. Ext'!$B23","v":0}]
["CPF (apenas para aluno de graduação):",{"$f":"'3. Ext'!$B24","v":0}]
["Período de vinculação (mês/ano):",{"$f":"'3. Ext'!$B25","v":0}]
["Tipo de bolsa (quando aplicável):",{"$f":"'3. Ext'!$B26","v":0}]
["Nome:",{"$f":"'3. Ext'!$B27","v":0}]
["Tipo:",{"$f":"'3. Ext'!$B28","v":0}]
["E-mail:",{"$f":"'3. Ext'!$B29","v":0}]
["CPF (apenas para aluno de graduação):",{"$f":"'3. Ext'!$B30","v":0}]
["Período de vinculação (mês/ano):",{"$f":"'3. Ext'!$B31","v":0}]
["Tipo de bolsa (quando aplicável):",{"$f":"'3. Ext'!$B32","v":0}]
["Nome:",{"$f":"'3. Ext'!$B33","v":0}]
["Tipo:",{"$f":"'3. Ext'!$B34","v":0}]
["E-mail:",{"$f":"'3. Ext'!$B35","v":0}]
["CPF (apenas para aluno de graduação):",{"$f":"'3. Ext'!$B36","v":0}]
["Período de vinculação (mês/ano):",{"$f":"'3. Ext'!$B37","v":0}]
["Tipo de bolsa (quando aplicável):",{"$f":"'3. Ext'!$B38","v":0}]
["Nome:",{"$f":"'3. Ext'!$B39","v":0}]
["Tipo:",{"$f":"'3. Ext'!$B40","v":0}]
["E-mail:",{"$f":"'3. Ext'!$B41","v":0}]
["CPF (apenas para aluno de graduação):",{"$f":"'3. Ext'!$B42","v":0}]
["Período de vinculação (mês/ano):",{"$f":"'3. Ext'!$B43","v":0}]
["Tipo de bolsa (quando aplicável):",{"$f":"'3. Ext'!$B44","v":0}]
["Projeto:",{"$f":"'3. Ext'!$B45","v":0}]
["Datas de início e fim (mês / ano):",{"$f":"'3. Ext'!$B46","v":0}]
["Carga horária semanal:",{"$f":"'3. Ext'!$B47","v":0}]
["Carga horária total:",{"$f":"'3. Ext'!$B48","v":0}]
["Relação com Projeto de Pesquisa e/ou Atividade de Ensino? Qual?",{"$f":"'3. Ext'!$B49","v":0}]
["Discentes vinculados:"]
["Nome:",{"$f":"'3. Ext'!$B51","v":0}]
["Tipo:",{"$f":"'3. Ext'!$B52","v":0}]
["E-mail:",{"$f":"'3. Ext'!$B53","v":0}]
["CPF (apenas para aluno de graduação):",{"$f":"'3. Ext'!$B54","v":0}]
["Período de vinculação (mês/ano):",{"$f":"'3. Ext'!$B55","v":0}]
["Tipo de bolsa (quando aplicável):",{"$f":"'3. Ext'!$B56","v":0}]
["Nome:",{"$f":"'3. Ext'!$B57","v":0}]
["Tipo:",{"$f":"'3. Ext'!$B58","v":0}]
["E-mail:",{"$f":"'3. Ext'!$B59","v":0}]
["CPF (apenas para aluno de graduação):",{"$f":"'3. Ext'!$B60","v":0}]
["Período de vinculação (mês/ano):",{"$f":"'3. Ext'!$B61","v":0}]
["Tipo de bolsa (quando aplicável):",{"$f":"'3. Ext'!$B62","v":0}]
["Nome:",{"$f":"'3. Ext'!$B63","v":0}]
["Tipo:",{"$f":"'3. Ext'!$B64","v":0}]
["E-mail:",{"$f":"'3. Ext'!$B65","v":0}]
["CPF (apenas para aluno de graduação):",{"$f":"'3. Ext'!$B66","v":0}]
["Período de vinculação (mês/ano):",{"$f":"'3. Ext'!$B67","v":0}]
["Tipo de bolsa (quando aplicável):",{"$f":"'3. Ext'!$B68","v":0}]
["Nome:",{"$f":"'3. Ext'!$B69","v":0}]
["Tipo:",{"$f":"'3. Ext'!$B70","v":0}]
["E-mail:",{"$f":"'3. Ext'!$B71","v":0}]
["CPF (apenas para aluno de graduação):",{"$f":"'3. Ext'!$B72","v":0}]
["Período de vinculação (mês/ano):",{"$f":"'3. Ext'!$B73","v":0}]
["Tipo de bolsa (quando aplicável):",{"$f":"'3. Ext'!$B74","v":0}]
["Nome:",{"$f":"'3. Ext'!$B75","v":0}]
["Tipo:",{"$f":"'3. Ext'!$B76","v":0}]
["E-mail:",{"$f":"'3. Ext'!$B77","v":0}]
["CPF (apenas para aluno de graduação):",{"$f":"'3. Ext'!$B78","v":0}]
["Período de vinculação (mês/ano):",{"$f":"'3. Ext'!$B79","v":0}]
["Tipo de bolsa (quando aplicável):",{"$f":"'3. Ext'!$B80","v":0}]
["Nome:",{"$f":"'3. Ext'!$B81","v":0}]
["Tipo:",{"$f":"'3. Ext'!$B82","v":0}]
["E-mail:",{"$f":"'3. Ext'!$B83","v":0}]
["CPF (apenas para aluno de graduação):",{"$f":"'3. Ext'!$B84","v":0}]
["Período de vinculação (mês/ano):",{"$f":"'3. Ext'!$B85","v":0}]
["Tipo de bolsa (quando aplicável):",{"$f":"'3. Ext'!$B86","v":0}]
["Projeto:",{"$f":"'3. Ext'!$B87","v":0}]
["Datas de início e fim (mês / ano):",{"$f":"'3. Ext'!$B88","v":0}]
["Carga horária semanal:",{"$f":"'3. Ext'!$B89","v":0}]
["Carga horária total:",{"$f":"'3. Ext'!$B90","v":0}]
["Relação com Projeto de Pesquisa e/ou Atividade de Ensino? Qual?",{"$f":"'3. Ext'!$B91","v":0}]
["Discentes vinculados:"]
["Nome:",{"$f":"'3. Ext'!$B93","v":0}]
["Tipo:",{"$f":"'3. Ext'!$B94","v":0}]
["E-mail:",{"$f":"'3. Ext'!$B95","v":0}]
["CPF (apenas para aluno de graduação):",{"$f":"'3. Ext'!$B96","v":0}]
["Período de vinculação (mês/ano):",{"$f":"'3. Ext'!$B97","v":0}]
["Tipo de bolsa (quando aplicável):",{"$f":"'3. Ext'!$B98","v":0}]
["Nome:",{"$f":"'3. Ext'!$B99","v":0}]
["Tipo:",{"$f":"'3. Ext'!$B100","v":0}]
["E-mail:",{"$f":"'3. Ext'!$B101","v":0}]
["CPF (apenas para aluno de graduação):",{"$f":"'3. Ext'!$B102","v":0}]
["Período de vinculação (mês/ano):",{"$f":"'3. Ext'!$B103","v":0}]
["Tipo de bolsa (quando aplicável):",{"$f":"'3. Ext'!$B104","v":0}]
["Nome:",{"$f":"'3. Ext'!$B105","v":0}]
["Tipo:",{"$f":"'3. Ext'!$B106","v":0}]
["E-mail:",{"$f":"'3. Ext'!$B107","v":0}]
["CPF (apenas para aluno de graduação):",{"$f":"'3. Ext'!$B108","v":0}]
["Período de vinculação (mês/ano):",{"$f":"'3. Ext'!$B109","v":0}]
["Tipo de bolsa (quando aplicável):",{"$f":"'3. Ext'!$B110","v":0}]
["Nome:",{"$f":"'3. Ext'!$B111","v":0}]
["Tipo:",{"$f":"'3. Ext'!$B112","v":0}]
["E-mail:",{"$f":"'3. Ext'!$B113","v":0}]
["CPF (apenas para aluno de graduação):",{"$f":"'3. Ext'!$B114","v":0}]
["Período de vinculação (mês/ano):",{"$f":"'3. Ext'!$B115","v":0}]
["Tipo de bolsa (quando aplicável):",{"$f":"'3. Ext'!$B116","v":0}]
["Nome:",{"$f":"'3. Ext'!$B117","v":0}]
["Tipo:",{"$f":"'3. Ext'!$B118","v":0}]
["E-mail:",{"$f":"'3. Ext'!$B119","v":0}]
["CPF (apenas para aluno de graduação):",{"$f":"'3. Ext'!$B120","v":0}]
["Período de vinculação (mês/ano):",{"$f":"'3. Ext'!$B121","v":0}]
["Tipo de bolsa (quando aplicável):",{"$f":"'3. Ext'!$B122","v":0}]
["Nome:",{"$f":"'3. Ext'!$B123","v":0}]
["Tipo:",{"$f":"'3. Ext'!$B124","v":0}]
["E-mail:",{"$f":"'3. Ext'!$B125","v":0}]
["CPF (apenas para aluno de graduação):",{"$f":"'3. Ext'!$B126","v":0}]
["Período de vinculação (mês/ano):",{"$f":"'3. Ext'!$B127","v":0}]
["Tipo de bolsa (quando aplicável):",{"$f":"'3. Ext'!$B128","v":0}]
["Projeto:",{"$f":"'3. Ext'!$B129","v":0}]
["Datas de início e fim (mês / ano):",{"$f":"'3. Ext'!$B130","v":0}]
["Carga horária semanal:",{"$f":"'3. Ext'!$B131","v":0}]
["Carga horária total:",{"$f":"'3. Ext'!$B132","v":0}]
["Relação com Projeto de Pesquisa e/ou Atividade de Ensino? Qual?",{"$f":"'3. Ext'!$B133","v":0}]
["Discentes vinculados:"]
["Nome:",{"$f":"'3. Ext'!$B135","v":0}]
["Tipo:",{"$f":"'3. Ext'!$B136","v":0}]
["E-mail:",{"$f":"'3. Ext'!$B137","v":0}]
["CPF (apenas para aluno de graduação):",{"$f":"'3. Ext'!$B138","v":0}]
["Período de vinculação (mês/ano):",{"$f":"'3. Ext'!$B139","v":0}]
["Tipo de bolsa (quando aplicável):",{"$f":"'3. Ext'!$B140","v":0}]
["Nome:",{"$f":"'3. Ext'!$B141","v":0}]
["Tipo:",{"$f":"'3. Ext'!$B142","v":0}]
["E-mail:",{"$f":"'3. Ext'!$B143","v":0}]
["CPF (apenas para aluno de graduação):",{"$f":"'3. Ext'!$B144","v":0}]
["Período de vinculação (mês/ano):",{"$f":"'3. Ext'!$B145","v":0}]
["Tipo de bolsa (quando aplicável):",{"$f":"'3. Ext'!$B146","v":0}]
["Nome:",{"$f":"'3. Ext'!$B147","v":0}]
["Tipo:",{"$f":"'3. Ext'!$B148","v":0}]
["E-mail:",{"$f":"'3. Ext'!$B149","v":0}]
["CPF (apenas para aluno de graduação):",{"$f":"'3. Ext'!$B150","v":0}]
["Período de vinculação (mês/ano):",{"$f":"'3. Ext'!$B151","v":0}]
["Tipo de bolsa (quando aplicável):",{"$f":"'3. Ext'!$B152","v":0}]
["Nome:",{"$f":"'3. Ext'!$B153","v":0}]
["Tipo:",{"$f":"'3. Ext'!$B154","v":0}]
["E-mail:",{"$f":"'3. Ext'!$B155","v":0}]
["CPF (apenas para aluno de graduação):",{"$f":"'3. Ext'!$B156","v":0}]
["Período de vinculação (mês/ano):",{"$f":"'3. Ext'!$B157","v":0}]
["Tipo de bolsa (quando aplicável):",{"$f":"'3. Ext'!$B158","v":0}]
["Nome:",{"$f":"'3. Ext'!$B159","v":0}]
["Tipo:",{"$f":"'3. Ext'!$B160","v":0}]
["E-mail:",{"$f":"'3. Ext'!$B161","v":0}]
["CPF (apenas para aluno de graduação):",{"$f":"'3. Ext'!$B162","v":0}]
["Período de vinculação (mês/ano):",{"$f":"'3. Ext'!$B163","v":0}]
["Tipo de bolsa (quando aplicável):",{"$f":"'3. Ext'!$B164","v":0}]
["Nome:",{"$f":"'3. Ext'!$B165","v":0}]
["Tipo:",{"$f":"'3. Ext'!$B166","v":0}]
["E-mail:",{"$f":"'3. Ext'!$B167","v":0}]
["CPF (apenas para aluno de graduação):",{"$f":"'3. Ext'!$B168","v":0}]
["Período de vinculação (mês/ano):",{"$f":"'3. Ext'!$B169","v":0}]
["Tipo de bolsa (quando aplicável):",{"$f":"'3. Ext'!$B170","v":0}]
["3.2. Participação em projetos de extensão de caráter permanente"]
["Projeto:",{"$f":"'3. Ext'!$B172","v":0}]
["Datas de início e fim (mês / ano):",{"$f":"'3. Ext'!$B173","v":0}]
["Carga horária semanal:",{"$f":"'3. Ext'!$B174","v":0}]
["Carga horária total:",{"$f":"'3. Ext'!$B175","v":0}]
["Relação com Projeto de Pesquisa e/ou Atividade de Ensino? Qual?",{"$f":"'3. Ext'!$B176","v":0}]
["Projeto:",{"$f":"'3. Ext'!$B177","v":0}]
["Datas de início e fim (mês / ano):",{"$f":"'3. Ext'!$B178","v":0}]
["Carga horária semanal:",{"$f":"'3. Ext'!$B179","v":0}]
["Carga horária total:",{"$f":"'3. Ext'!$B180","v":0}]
["Relação com Projeto de Pesquisa e/ou Atividade de Ensino? Qual?",{"$f":"'3. Ext'!$B181","v":0}]
["Projeto:",{"$f":"'3. Ext'!$B182","v":0}]
["Datas de início e fim (mês / ano):",{"$f":"'3. Ext'!$B183","v":0}]
["Carga horária semanal:",{"$f":"'3. Ext'!$B184","v":0}]
["Carga horária total:",{"$f":"'3. Ext'!$B185","v":0}]
["Relação com Projeto de Pesquisa e/ou Atividade de Ensino? Qual?",{"$f":"'3. Ext'!$B186","v":0}]
["Projeto:",{"$f":"'3. Ext'!$B187","v":0}]
["Datas de início e fim (mês / ano):",{"$f":"'3. Ext'!$B188","v":0}]
["Carga horária semanal:",{"$f":"'3. Ext'!$B189","v":0}]
["Carga horária total:",{"$f":"'3. Ext'!$B190","v":0}]
["Relação com Projeto de Pesquisa e/ou Atividade de Ensino? Qual?",{"$f":"'3. Ext'!$B191","v":0}]
["3.3. Coordenação de projetos de extensão de caráter eventual"]
["Projeto:",{"$f":"'3. Ext'!$B193","v":0}]
["Datas de início e fim (mês / ano):",{"$f":"'3. Ext'!$B194","v":0}]
["Carga horária semanal:",{"$f":"'3. Ext'!$B195","v":0}]
["Carga horária total:",{"$f":"'3. Ext'!$B196","v":0}]
["Relação com Projeto de Pesquisa e/ou Atividade de Ensino? Qual?",{"$f":"'3. Ext'!$B197","v":0}]
["Discentes vinculados:"]
["Nome:",{"$f":"'3. Ext'!$B199","v":0}]
["Tipo:",{"$f":"'3. Ext'!$B200","v":0}]
["E-mail:",{"$f":"'3. Ext'!$B201","v":0}]
["CPF (apenas para aluno de graduação):",{"$f":"'3. Ext'!$B202","v":0}]
["Período de vinculação (mês/ano):",{"$f":"'3. Ext'!$B203","v":0}]
["Tipo de bolsa (quando aplicável):",{"$f":"'3. Ext'!$B204","v":0}]
["Nome:",{"$f":"'3. Ext'!$B205","v":0}]
["Tipo:",{"$f":"'3. Ext'!$B206","v":0}]
["E-mail:",{"$f":"'3. Ext'!$B207","v":0}]
["CPF (apenas para aluno de graduação):",{"$f":"'3. Ext'!$B208","v":0}]
["Período de vinculação (mês/ano):",{"$f":"'3. Ext'!$B209","v":0}]
["Tipo de bolsa (quando aplicável):",{"$f":"'3. Ext'!$B210","v":0}]
["Nome:",{"$f":"'3. Ext'!$B211","v":0}]
["Tipo:",{"$f":"'3. Ext'!$B212","v":0}]
["E-mail:",{"$f":"'3. Ext'!$B213","v":0}]
["CPF (apenas para aluno de graduação):",{"$f":"'3. Ext'!$B214","v":0}]
["Período de vinculação (mês/ano):",{"$f":"'3. Ext'!$B215","v":0}]
["Tipo de bolsa (quando aplicável):",{"$f":"'3. Ext'!$B216","v":0}]
["Nome:",{"$f":"'3. Ext'!$B217","v":0}]
["Tipo:",{"$f":"'3. Ext'!$B218","v":0}]
["E-mail:",{"$f":"'3. Ext'!$B219","v":0}]
["CPF (apenas para aluno de graduação):",{"$f":"'3. Ext'!$B220","v":0}]
["Período de vinculação (mês/ano):",{"$f":"'3. Ext'!$B221","v":0}]
["Tipo de bolsa (quando aplicável):",{"$f":"'3. Ext'!$B222","v":0}]
["Nome:",{"$f":"'3. Ext'!$B223","v":0}]
["Tipo:",{"$f":"'3. Ext'!$B224","v":0}]
["E-mail:",{"$f":"'3. Ext'!$B225","v":0}]
["CPF (apenas para aluno de graduação):",{"$f":"'3. Ext'!$B226","v":0}]
["Período de vinculação (mês/ano):",{"$f":"'3. Ext'!$B227","v":0}]
["Tipo de bolsa (quando aplicável):",{"$f":"'3. Ext'!$B228","v":0}]
["Nome:",{"$f":"'3. Ext'!$B229","v":0}]
["Tipo:",{"$f":"'3. Ext'!$B230","v":0}]
["E-mail:",{"$f":"'3. Ext'!$B231","v":0}]
["CPF (apenas para aluno de graduação):",{"$f":"'3. Ext'!$B232","v":0}]
["Período de vinculação (mês/ano):",{"$f":"'3. Ext'!$B233","v":0}]
["Tipo de bolsa (quando aplicável):",{"$f":"'3. Ext'!$B234","v":0}]
["Nome:",{"$f":"'3. Ext'!$B235","v":0}]
["Tipo:",{"$f":"'3. Ext'!$B236","v":0}]
["E-mail:",{"$f":"'3. Ext'!$B237","v":0}]
["CPF (apenas para aluno de graduação):",{"$f":"'3. Ext'!$B238","v":0}]
["Período de vinculação:",{"$f":"'3. Ext'!$B239","v":0}]
["Tipo de bolsa (quando aplicável):",{"$f":"'3. Ext'!$B240","v":0}]
["Nome:",{"$f":"'3. Ext'!$B241","v":0}]
["Tipo:",{"$f":"'3. Ext'!$B242","v":0}]
["E-mail:",{"$f":"'3. Ext'!$B243","v":0}]
["CPF (apenas para aluno de graduação):",{"$f":"'3. Ext'!$B244","v":0}]
["Período de vinculação:",{"$f":"'3. Ext'!$B245","v":0}]
["Tipo de bolsa (quando aplicável):",{"$f":"'3. Ext'!$B246","v":0}]
["Nome:",{"$f":"'3. Ext'!$B247","v":0}]
["Tipo:",{"$f":"'3. Ext'!$B248","v":0}]
["E-mail:",{"$f":"'3. Ext'!$B249","v":0}]
["CPF (apenas para aluno de graduação):",{"$f":"'3. Ext'!$B250","v":0}]
["Período de vinculação:",{"$f":"'3. Ext'!$B251","v":0}]
["Tipo de bolsa (quando aplicável):",{"$f":"'3. Ext'!$B252","v":0}]
["Nome:",{"$f":"'3. Ext'!$B253","v":0}]
["Tipo:",{"$f":"'3. Ext'!$B254","v":0}]
["E-mail:",{"$f":"'3. Ext'!$B255","v":0}]
["CPF (apenas para aluno de graduação):",{"$f":"'3. Ext'!$B256","v":0}]
["Período de vinculação:",{"$f":"'3. Ext'!$B257","v":0}]
["Tipo de bolsa (quando aplicável):",{"$f":"'3. Ext'!$B258","v":0}]
["Nome:",{"$f":"'3. Ext'!$B259","v":0}]
["Tipo:",{"$f":"'3. Ext'!$B260","v":0}]
["E-mail:",{"$f":"'3. Ext'!$B261","v":0}]
["CPF (apenas para aluno de graduação):",{"$f":"'3. Ext'!$B262","v":0}]
["Período de vinculação:",{"$f":"'3. Ext'!$B263","v":0}]
["Tipo de bolsa (quando aplicável):",{"$f":"'3. Ext'!$B264","v":0}]
["Nome:",{"$f":"'3. Ext'!$B265","v":0}]
["Tipo:",{"$f":"'3. Ext'!$B266","v":0}]
["E-mail:",{"$f":"'3. Ext'!$B267","v":0}]
["CPF (apenas para aluno de graduação):",{"$f":"'3. Ext'!$B268","v":0}]
["Período de vinculação:",{"$f":"'3. Ext'!$B269","v":0}]
["Tipo de bolsa (quando aplicável):",{"$f":"'3. Ext'!$B270","v":0}]
["Projeto:",{"$f":"'3. Ext'!$B271","v":0}]
["Datas de início e fim (mês / ano):",{"$f":"'3. Ext'!$B272","v":0}]
["Carga horária semanal:",{"$f":"'3. Ext'!$B273","v":0}]
["Carga horária total:",{"$f":"'3. Ext'!$B274","v":0}]
["Relação com Projeto de Pesquisa e/ou Atividade de Ensino? Qual?",{"$f":"'3. Ext'!$B275","v":0}]
["Discentes vinculados:"]
["Nome:",{"$f":"'3. Ext'!$B277","v":0}]
["Tipo:",{"$f":"'3. Ext'!$B278","v":0}]
["E-mail:",{"$f":"'3. Ext'!$B279","v":0}]
["CPF (apenas para aluno de graduação):",{"$f":"'3. Ext'!$B280","v":0}]
["Período de vinculação (mês/ano):",{"$f":"'3. Ext'!$B281","v":0}]
["Tipo de bolsa (quando aplicável):",{"$f":"'3. Ext'!$B282","v":0}]
["Nome:",{"$f":"'3. Ext'!$B283","v":0}]
["Tipo:",{"$f":"'3. Ext'!$B284","v":0}]
["E-mail:",{"$f":"'3. Ext'!$B285","v":0}]
["CPF (apenas para aluno de graduação):",{"$f":"'3. Ext'!$B286","v":0}]
["Período de vinculação (mês/ano):",{"$f":"'3. Ext'!$B287","v":0}]
["Tipo de bolsa (quando aplicável):",{"$f":"'3. Ext'!$B288","v":0}]
["Nome:",{"$f":"'3. Ext'!$B289","v":0}]
["Tipo:",{"$f":"'3. Ext'!$B290","v":0}]
["E-mail:",{"$f":"'3. Ext'!$B291","v":0}]
["CPF (apenas para aluno de graduação):",{"$f":"'3. Ext'!$B292","v":0}]
["Período de vinculação (mês/ano):",{"$f":"'3. Ext'!$B293","v":0}]
["Tipo de bolsa (quando aplicável):",{"$f":"'3. Ext'!$B294","v":0}]
["Nome:",{"$f":"'3. Ext'!$B295","v":0}]
["Tipo:",{"$f":"'3. Ext'!$B296","v":0}]
["E-mail:",{"$f":"'3. Ext'!$B297","v":0}]
["CPF (apenas para aluno de graduação):",{"$f":"'3. Ext'!$B298","v":0}]
["Período de vinculação (mês/ano):",{"$f":"'3. Ext'!$B299","v":0}]
["Tipo de bolsa (quando aplicável):",{"$f":"'3. Ext'!$B300","v":0}]
["Nome:",{"$f":"'3. Ext'!$B301","v":0}]
["Tipo:",{"$f":"'3. Ext'!$B302","v":0}]
["E-mail:",{"$f":"'3. Ext'!$B303","v":0}]
["CPF (apenas para aluno de graduação):",{"$f":"'3. Ext'!$B304","v":0}]
["Período de vinculação (mês/ano):",{"$f":"'3. Ext'!$B305","v":0}]
["Tipo de bolsa (quando aplicável):",{"$f":"'3. Ext'!$B306","v":0}]
["Nome:",{"$f":"'3. Ext'!$B307","v":0}]
["Tipo:",{"$f":"'3. Ext'!$B308","v":0}]
["E-mail:",{"$f":"'3. Ext'!$B309","v":0}]
["CPF (apenas para aluno de graduação):",{"$f":"'3. Ext'!$B310","v":0}]
["Período de vinculação (mês/ano):",{"$f":"'3. Ext'!$B311","v":0}]
["Tipo de bolsa (quando aplicável):",{"$f":"'3. Ext'!$B312","v":0}]
["Nome:",{"$f":"'3. Ext'!$B313","v":0}]
["Tipo:",{"$f":"'3. Ext'!$B314","v":0}]
["E-mail:",{"$f":"'3. Ext'!$B315","v":0}]
["CPF (apenas para aluno de graduação):",{"$f":"'3. Ext'!$B316","v":0}]
["Período de vinculação:",{"$f":"'3. Ext'!$B317","v":0}]
["Tipo de bolsa (quando aplicável):",{"$f":"'3. Ext'!$B318","v":0}]
["Nome:",{"$f":"'3. Ext'!$B319","v":0}]
["Tipo:",{"$f":"'3. Ext'!$B320","v":0}]
["E-mail:",{"$f":"'3. Ext'!$B321","v":0}]
["CPF (apenas para aluno de graduação):",{"$f":"'3. Ext'!$B322","v":0}]
["Período de vinculação:",{"$f":"'3. Ext'!$B323","v":0}]
["Tipo de bolsa (quando aplicável):",{"$f":"'3. Ext'!$B324","v":0}]
["Nome:",{"$f":"'3. Ext'!$B325","v":0}]
["Tipo:",{"$f":"'3. Ext'!$B326","v":0}]
["E-mail:",{"$f":"'3. Ext'!$B327","v":0}]
["CPF (apenas para aluno de graduação):",{"$f":"'3. Ext'!$B328","v":0}]
["Período de vinculação:",{"$f":"'3. Ext'!$B329","v":0}]
["Tipo de bolsa (quando aplicável):",{"$f":"'3. Ext'!$B330","v":0}]
["Nome:",{"$f":"'3. Ext'!$B331","v":0}]
["Tipo:",{"$f":"'3. Ext'!$B332","v":0}]
["E-mail:",{"$f":"'3. Ext'!$B333","v":0}]
["CPF (apenas para aluno de graduação):",{"$f":"'3. Ext'!$B334","v":0}]
["Período de vinculação:",{"$f":"'3. Ext'!$B335","v":0}]
["Tipo de bolsa (quando aplicável):",{"$f":"'3. Ext'!$B336","v":0}]
["Nome:",{"$f":"'3. Ext'!$B337","v":0}]
["Tipo:",{"$f":"'3. Ext'!$B338","v":0}]
["E-mail:",{"$f":"'3. Ext'!$B339","v":0}]
["CPF (apenas para aluno de graduação):",{"$f":"'3. Ext'!$B340","v":0}]
["Período de vinculação:",{"$f":"'3. Ext'!$B341","v":0}]
["Tipo de bolsa (quando aplicável):",{"$f":"'3. Ext'!$B342","v":0}]
["Nome:",{"$f":"'3. Ext'!$B343","v":0}]
["Tipo:",{"$f":"'3. Ext'!$B344","v":0}]
["E-mail:",{"$f":"'3. Ext'!$B345","v":0}]
["CPF (apenas para aluno de graduação):",{"$f":"'3. Ext'!$B346","v":0}]
["Período de vinculação:",{"$f":"'3. Ext'!$B347","v":0}]
["Tipo de bolsa (quando aplicável):",{"$f":"'3. Ext'!$B348","v":0}]
["Projeto:",{"$f":"'3. Ext'!$B349","v":0}]
["Datas de início e fim (mês / ano):",{"$f":"'3. Ext'!$B350","v":0}]
["Carga horária semanal:",{"$f":"'3. Ext'!$B351","v":0}]
["Carga horária total:",{"$f":"'3. Ext'!$B352","v":0}]
["Relação com Projeto de Pesquisa e/ou Atividade de Ensino? Qual?",{"$f":"'3. Ext'!$B353","v":0}]
["Discentes vinculados:"]
["Nome:",{"$f":"'3. Ext'!$B355","v":0}]
["Tipo:",{"$f":"'3. Ext'!$B356","v":0}]
["E-mail:",{"$f":"'3. Ext'!$B357","v":0}]
["CPF (apenas para aluno de graduação):",{"$f":"'3. Ext'!$B358","v":0}]
["Período de vinculação (mês/ano):",{"$f":"'3. Ext'!$B359","v":0}]
["Tipo de bolsa (quando aplicável):",{"$f":"'3. Ext'!$B360","v":0}]
["Nome:",{"$f":"'3. Ext'!$B361","v":0}]
["Tipo:",{"$f":"'3. Ext'!$B362","v":0}]
["E-mail:",{"$f":"'3. Ext'!$B363","v":0}]
["CPF (apenas para aluno de graduação):",{"$f":"'3. Ext'!$B364","v":0}]
["Período de vinculação (mês/ano):",{"$f":"'3. Ext'!$B365","v":0}]
["Tipo de bolsa (quando aplicável):",{"$f":"'3. Ext'!$B366","v":0}]
["Nome:",{"$f":"'3. Ext'!$B367","v":0}]
["Tipo:",{"$f":"'3. Ext'!$B368","v":0}]
["E-mail:",{"$f":"'3. Ext'!$B369","v":0}]
["CPF (apenas para aluno de graduação):",{"$f":"'3. Ext'!$B370","v":0}]
["Período de vinculação (mês/ano):",{"$f":"'3. Ext'!$B371","v":0}]
["Tipo de bolsa (quando aplicável):",{"$f":"'3. Ext'!$B372","v":0}]
["Nome:",{"$f":"'3. Ext'!$B373","v":0}]
["Tipo:",{"$f":"'3. Ext'!$B374","v":0}]
["E-mail:",{"$f":"'3. Ext'!$B375","v":0}]
["CPF (apenas para aluno de graduação):",{"$f":"'3. Ext'!$B376","v":0}]
["Período de vinculação (mês/ano):",{"$f":"'3. Ext'!$B377","v":0}]
["Tipo de bolsa (quando aplicável):",{"$f":"'3. Ext'!$B378","v":0}]
["Nome:",{"$f":"'3. Ext'!$B379","v":0}]
["Tipo:",{"$f":"'3. Ext'!$B380","v":0}]
["E-mail:",{"$f":"'3. Ext'!$B381","v":0}]
["CPF (apenas para aluno de graduação):",{"$f":"'3. Ext'!$B382","v":0}]
["Período de vinculação (mês/ano):",{"$f":"'3. Ext'!$B383","v":0}]
["Tipo de bolsa (quando aplicável):",{"$f":"'3. Ext'!$B384","v":0}]
["Nome:",{"$f":"'3. Ext'!$B385","v":0}]
["Tipo:",{"$f":"'3. Ext'!$B386","v":0}]
["E-mail:",{"$f":"'3. Ext'!$B387","v":0}]
["CPF (apenas para aluno de graduação):",{"$f":"'3. Ext'!$B388","v":0}]
["Período de vinculação (mês/ano):",{"$f":"'3. Ext'!$B389","v":0}]
["Tipo de bolsa (quando aplicável):",{"$f":"'3. Ext'!$B390","v":0}]
["Nome:",{"$f":"'3. Ext'!$B391","v":0}]
["Tipo:",{"$f":"'3. Ext'!$B392","v":0}]
["E-mail:",{"$f":"'3. Ext'!$B393","v":0}]
["CPF (apenas para aluno de graduação):",{"$f":"'3. Ext'!$B394","v":0}]
["Período de vinculação:",{"$f":"'3. Ext'!$B395","v":0}]
["Tipo de bolsa (quando aplicável):",{"$f":"'3. Ext'!$B396","v":0}]
["Nome:",{"$f":"'3. Ext'!$B397","v":0}]
["Tipo:",{"$f":"'3. Ext'!$B398","v":0}]
["E-mail:",{"$f":"'3. Ext'!$B399","v":0}]
["CPF (apenas para aluno de graduação):",{"$f":"'3. Ext'!$B400","v":0}]
["Período de vinculação:",{"$f":"'3. Ext'!$B401","v":0}]
["Tipo de bolsa (quando aplicável):",{"$f":"'3. Ext'!$B402","v":0}]
["Nome:",{"$f":"'3. Ext'!$B403","v":0}]
["Tipo:",{"$f":"'3. Ext'!$B404","v":0}]
["E-mail:",{"$f":"'3. Ext'!$B405","v":0}]
["CPF (apenas para aluno de graduação):",{"$f":"'3. Ext'!$B406","v":0}]
["Período de vinculação:",{"$f":"'3. Ext'!$B407","v":0}]
["Tipo de bolsa (quando aplicável):",{"$f":"'3. Ext'!$B408","v":0}]
["Nome:",{"$f":"'3. Ext'!$B409","v":0}]
["Tipo:",{"$f":"'3. Ext'!$B410","v":0}]
["E-mail:",{"$f":"'3. Ext'!$B411","v":0}]
["CPF (apenas para aluno de graduação):",{"$f":"'3. Ext'!$B412","v":0}]
["Período de vinculação:",{"$f":"'3. Ext'!$B413","v":0}]
["Tipo de bolsa (quando aplicável):",{"$f":"'3. Ext'!$B414","v":0}]
["Nome:",{"$f":"'3. Ext'!$B415","v":0}]
["Tipo:",{"$f":"'3. Ext'!$B416","v":0}]
["E-mail:",{"$f":"'3. Ext'!$B417","v":0}]
["CPF (apenas para aluno de graduação):",{"$f":"'3. Ext'!$B418","v":0}]
["Período de vinculação:",{"$f":"'3. Ext'!$B419","v":0}]
["Tipo de bolsa (quando aplicável):",{"$f":"'3. Ext'!$B420","v":0}]
["Nome:",{"$f":"'3. Ext'!$B421","v":0}]
["Tipo:",{"$f":"'3. Ext'!$B422","v":0}]
["E-mail:",{"$f":"'3. Ext'!$B423","v":0}]
["CPF (apenas para aluno de graduação):",{"$f":"'3. Ext'!$B424","v":0}]
["Período de vinculação:",{"$f":"'3. Ext'!$B425","v":0}]
["Tipo de bolsa (quando aplicável):",{"$f":"'3. Ext'!$B426","v":0}]
["Projeto:",{"$f":"'3. Ext'!$B427","v":0}]
["Datas de início e fim (mês / ano):",{"$f":"'3. Ext'!$B428","v":0}]
["Carga horária semanal:",{"$f":"'3. Ext'!$B429","v":0}]
["Carga horária total:",{"$f":"'3. Ext'!$B430","v":0}]
["Relação com Projeto de Pesquisa e/ou Atividade de Ensino? Qual?",{"$f":"'3. Ext'!$B431","v":0}]
["Discentes vinculados:"]
["Nome:",{"$f":"'3. Ext'!$B433","v":0}]
["Tipo:",{"$f":"'3. Ext'!$B434","v":0}]
["E-mail:",{"$f":"'3. Ext'!$B435","v":0}]
["CPF (apenas para aluno de graduação):",{"$f":"'3. Ext'!$B436","v":0}]
["Período de vinculação (mês/ano):",{"$f":"'3. Ext'!$B437","v":0}]
["Tipo de bolsa (quando aplicável):",{"$f":"'3. Ext'!$B438","v":0}]
["Nome:",{"$f":"'3. Ext'!$B439","v":0}]
["Tipo:",{"$f":"'3. Ext'!$B440","v":0}]
["E-mail:",{"$f":"'3. Ext'!$B441","v":0}]
["CPF (apenas para aluno de graduação):",{"$f":"'3. Ext'!$B442","v":0}]
["Período de vinculação (mês/ano):",{"$f":"'3. Ext'!$B443","v":0}]
["Tipo de bolsa (quando aplicável):",{"$f":"'3. Ext'!$B444","v":0}]
["Nome:",{"$f":"'3. Ext'!$B445","v":0}]
["Tipo:",{"$f":"'3. Ext'!$B446","v":0}]
["E-mail:",{"$f":"'3. Ext'!$B447","v":0}]
["CPF (apenas para aluno de graduação):",{"$f":"'3. Ext'!$B448","v":0}]
["Período de vinculação (mês/ano):",{"$f":"'3. Ext'!$B449","v":0}]
["Tipo de bolsa (quando aplicável):",{"$f":"'3. Ext'!$B450","v":0}]
["Nome:",{"$f":"'3. Ext'!$B451","v":0}]
["Tipo:",{"$f":"'3. Ext'!$B452","v":0}]
["E-mail:",{"$f":"'3. Ext'!$B453","v":0}]
["CPF (apenas para aluno de graduação):",{"$f":"'3. Ext'!$B454","v":0}]
["Período de vinculação (mês/ano):",{"$f":"'3. Ext'!$B455","v":0}]
["Tipo de bolsa (quando aplicável):",{"$f":"'3. Ext'!$B456","v":0}]
["Nome:",{"$f":"'3. Ext'!$B457","v":0}]
["Tipo:",{"$f":"'3. Ext'!$B458","v":0}]
["E-mail:",{"$f":"'3. Ext'!$B459","v":0}]
["CPF (apenas para aluno de graduação):",{"$f":"'3. Ext'!$B460","v":0}]
["Período de vinculação (mês/ano):",{"$f":"'3. Ext'!$B461","v":0}]
["Tipo de bolsa (quando aplicável):",{"$f":"'3. Ext'!$B462","v":0}]
["Nome:",{"$f":"'3. Ext'!$B463","v":0}]
["Tipo:",{"$f":"'3. Ext'!$B464","v":0}]
["E-mail:",{"$f":"'3. Ext'!$B465","v":0}]
["CPF (apenas para aluno de graduação):",{"$f":"'3. Ext'!$B466","v":0}]
["Período de vinculação (mês/ano):",{"$f":"'3. Ext'!$B467","v":0}]
["Tipo de bolsa (quando aplicável):",{"$f":"'3. Ext'!$B468","v":0}]
["Nome:",{"$f":"'3. Ext'!$B469","v":0}]
["Tipo:",{"$f":"'3. Ext'!$B470","v":0}]
["E-mail:",{"$f":"'3. Ext'!$B471","v":0}]
["CPF (apenas para aluno de graduação):",{"$f":"'3. Ext'!$B472","v":0}]
["Período de vinculação:",{"$f":"'3. Ext'!$B473","v":0}]
["Tipo de bolsa (quando aplicável):",{"$f":"'3. Ext'!$B474","v":0}]
["Nome:",{"$f":"'3. Ext'!$B475","v":0}]
["Tipo:",{"$f":"'3. Ext'!$B476","v":0}]
["E-mail:",{"$f":"'3. Ext'!$B477","v":0}]
["CPF (apenas para aluno de graduação):",{"$f":"'3. Ext'!$B478","v":0}]
["Período de vinculação:",{"$f":"'3. Ext'!$B479","v":0}]
["Tipo de bolsa (quando aplicável):",{"$f":"'3. Ext'!$B480","v":0}]
["Nome:",{"$f":"'3. Ext'!$B481","v":0}]
["Tipo:",{"$f":"'3. Ext'!$B482","v":0}]
["E-mail:",{"$f":"'3. Ext'!$B483","v":0}]
["CPF (apenas para aluno de graduação):",{"$f":"'3. Ext'!$B484","v":0}]
["Período de vinculação:",{"$f":"'3. Ext'!$B485","v":0}]
["Tipo de bolsa (quando aplicável):",{"$f":"'3. Ext'!$B486","v":0}]
["Nome:",{"$f":"'3. Ext'!$B487","v":0}]
["Tipo:",{"$f":"'3. Ext'!$B488","v":0}]
["E-mail:",{"$f":"'3. Ext'!$B489","v":0}]
["CPF (apenas para aluno de graduação):",{"$f":"'3. Ext'!$B490","v":0}]
["Período de vinculação:",{"$f":"'3. Ext'!$B491","v":0}]
["Tipo de bolsa (quando aplicável):",{"$f":"'3. Ext'!$B492","v":0}]
["Nome:",{"$f":"'3. Ext'!$B493","v":0}]
["Tipo:",{"$f":"'3. Ext'!$B494","v":0}]
["E-mail:",{"$f":"'3. Ext'!$B495","v":0}]
["CPF (apenas para aluno de graduação):",{"$f":"'3. Ext'!$B496","v":0}]
["Período de vinculação:",{"$f":"'3. Ext'!$B497","v":0}]
["Tipo de bolsa (quando aplicável):",{"$f":"'3. Ext'!$B498","v":0}]
["Nome:",{"$f":"'3. Ext'!$B499","v":0}]
["Tipo:",{"$f":"'3. Ext'!$B500","v":0}]
["E-mail:",{"$f":"'3. Ext'!$B501","v":0}]
["CPF (apenas para aluno de graduação):",{"$f":"'3. Ext'!$B502","v":0}]
["Período de vinculação:",{"$f":"'3. Ext'!$B503","v":0}]
["Tipo de bolsa (quando aplicável):",{"$f":"'3. Ext'!$B504","v":0}]
["3.4. Participação em projetos de extensão de caráter eventual"]
["Projeto:",{"$f":"'3. Ext'!$B506","v":0}]
["Datas de início e fim (mês / ano):",{"$f":"'3. Ext'!$B507","v":0}]
["Carga horária semanal:",{"$f":"'3. Ext'!$B508","v":0}]
["Carga horária total:",{"$f":"'3. Ext'!$B509","v":0}]
["Relação com Projeto de Pesquisa e/ou Atividade de Ensino? Qual?",{"$f":"'3. Ext'!$B510","v":0}]
["Projeto:",{"$f":"'3. Ext'!$B511","v":0}]
["Datas de início e fim (mês / ano):",{"$f":"'3. Ext'!$B512","v":0}]
["Carga horária semanal:",{"$f":"'3. Ext'!$B513","v":0}]
["Carga horária total:",{"$f":"'3. Ext'!$B514","v":0}]
["Relação com Projeto de Pesquisa e/ou Atividade de Ensino? Qual?",{"$f":"'3. Ext'!$B515","v":0}]
["Projeto:",{"$f":"'3. Ext'!$B516","v":0}]
["Datas de início e fim (mês / ano):",{"$f":"'3. Ext'!$B517","v":0}]
["Carga horária semanal:",{"$f":"'3. Ext'!$B518","v":0}]
["Carga horária total:",{"$f":"'3. Ext'!$B519","v":0}]
["Relação com Projeto de Pesquisa e/ou Atividade de Ensino? Qual?",{"$f":"'3. Ext'!$B520","v":0}]
["Projeto:",{"$f":"'3. Ext'!$B521","v":0}]
["Datas de início e fim (mês / ano):",{"$f":"'3. Ext'!$B522","v":0}]
["Carga horária semanal:",{"$f":"'3. Ext'!$B523","v":0}]
["Carga horária total:",{"$f":"'3. Ext'!$B524","v":0}]
["Relação com Projeto de Pesquisa e/ou Atividade de Ensino? Qual?",{"$f":"'3. Ext'!$B525","v":0}]
["4. ATIVIDADES DE PESQUISA"]
["4.1. Coordenação de grupo de pesquisa registrado no CNPq"]
["Nome e descrição do grupo de pesquisa:",{"$f":"'4. Pesq'!$B3","v":0}]
["Nome e descrição do grupo de pesquisa:",{"$f":"'4. Pesq'!$B4","v":0}]
["Nome e descrição do grupo de pesquisa:",{"$f":"'4. Pesq'!$B5","v":0}]
["4.2. Participação em grupo(s) de pesquisa registrado(s) no CNPq – informar o(s) nome(s) do(s) grupo(s)"]
["Nome do grupo de pesquisa e instituição:",{"$f":"'4. Pesq'!$B7","v":0}]
["Nome do grupo de pesquisa e instituição:",{"$f":"'4. Pesq'!$B8","v":0}]
["Nome do grupo de pesquisa e instituição:",{"$f":"'4. Pesq'!$B9","v":0}]
["4.3. Coordenação de laboratório"]
["Nome e descrição do laboratório:",{"$f":"'4. Pesq'!$B11","v":0}]
["Nome e descrição do laboratório:",{"$f":"'4. Pesq'!$B12","v":0}]
["Nome e descrição do laboratório:",{"$f":"'4. Pesq'!$B13","v":0}]
["4.4. Coordenação de projetos de pesquisas"]
["4.4.1. Coordenação de pesquisas em andamento."]
["Pesquisa:",{"$f":"'4. Pesq'!$B16","v":0}]
["Data de início (mês/ano):",{"$f":"'4. Pesq'!$B17","v":0}]
["Carga horária semanal:",{"$f":"'4. Pesq'!$B18","v":0}]
["Vinculado a um ou mais grupos de pesquisa? Quais?",{"$f":"'4. Pesq'!$B19","v":0}]
["Vinculação institucional:",{"$f":"'4. Pesq'!$B20","v":0}]
["Outra instutuição (quando aplicável)",{"$f":"'4. Pesq'!$B21","v":0}]
["Financiamento(s)? Quais?",{"$f":"'4. Pesq'!$B22","v":0}]
["Cooperações; Redes ou articulações interinstitucionais de pesquisa; Redes formalizadas ou informais? Quais?",{"$f":"'4. Pesq'!$B23","v":0}]
["Relação com Projeto de Extensão e/ou Atividade de Ensino? Qual?",{"$f":"'4. Pesq'!$B24","v":0}]
["Discentes vinculados:"]
["Nome:",{"$f":"'4. Pesq'!$B26","v":0}]
["Tipo:",{"$f":"'4. Pesq'!$B27","v":0}]
["E-mail:",{"$f":"'4. Pesq'!$B28","v":0}]
["CPF (apenas para aluno de graduação):",{"$f":"'4. Pesq'!$B29","v":0}]
["Período de vinculação (mês/ano):",{"$f":"'4. Pesq'!$B30","v":0}]
["Tipo de bolsa (quando aplicável):",{"$f":"'4. Pesq'!$B31","v":0}]
["Nome:",{"$f":"'4. Pesq'!$B32","v":0}]
["Tipo:",{"$f":"'4. Pesq'!$B33","v":0}]
["E-mail:",{"$f":"'4. Pesq'!$B34","v":0}]
["CPF (apenas para aluno de graduação):",{"$f":"'4. Pesq'!$B35","v":0}]
["Período de vinculação (mês/ano):",{"$f":"'4. Pesq'!$B36","v":0}]
["Tipo de bolsa (quando aplicável):",{"$f":"'4. Pesq'!$B37","v":0}]
["Nome:",{"$f":"'4. Pesq'!$B38","v":0}]
["Tipo:",{"$f":"'4. Pesq'!$B39","v":0}]
["E-mail:",{"$f":"'4. Pesq'!$B40","v":0}]
["CPF (apenas para aluno de graduação):",{"$f":"'4. Pesq'!$B41","v":0}]
["Período de vinculação (mês/ano):",{"$f":"'4. Pesq'!$B42","v":0}]
["Tipo de bolsa (quando aplicável):",{"$f":"'4. Pesq'!$B43","v":0}]
["Nome:",{"$f":"'4. Pesq'!$B44","v":0}]
["Tipo:",{"$f":"'4. Pesq'!$B45","v":0}]
["E-mail:",{"$f":"'4. Pesq'!$B46","v":0}]
["CPF (apenas para aluno de graduação):",{"$f":"'4. Pesq'!$B47","v":0}]
["Período de vinculação (mês/ano):",{"$f":"'4. Pesq'!$B48","v":0}]
["Tipo de bolsa (quando aplicável):",{"$f":"'4. Pesq'!$B49","v":0}]
["Nome:",{"$f":"'4. Pesq'!$B50","v":0}]
["Tipo:",{"$f":"'4. Pesq'!$B51","v":0}]
["E-mail:",{"$f":"'4. Pesq'!$B52","v":0}]
["CPF (apenas para aluno de graduação):",{"$f":"'4. Pesq'!$B53","v":0}]
["Período de vinculação (mês/ano):",{"$f":"'4. Pesq'!$B54","v":0}]
["Tipo de bolsa (quando aplicável):",{"$f":"'4. Pesq'!$B55","v":0}]
["Nome:",{"$f":"'4. Pesq'!$B56","v":0}]
["Tipo:",{"$f":"'4. Pesq'!$B57","v":0}]
["E-mail:",{"$f":"'4. Pesq'!$B58","v":0}]
["CPF (apenas para aluno de graduação):",{"$f":"'4. Pesq'!$B59","v":0}]
["Período de vinculação (mês/ano):",{"$f":"'4. Pesq'!$B60","v":0}]
["Tipo de bolsa (quando aplicável):",{"$f":"'4. Pesq'!$B61","v":0}]
["Pesquisa:",{"$f":"'4. Pesq'!$B62","v":0}]
["Data de início (mês/ano):",{"$f":"'4. Pesq'!$B63","v":0}]
["Carga horária semanal:",{"$f":"'4. Pesq'!$B64","v":0}]
["Vinculado a um ou mais grupos de pesquisa? Quais?",{"$f":"'4. Pesq'!$B65","v":0}]
["Vinculação institucional:",{"$f":"'4. Pesq'!$B66","v":0}]
["Outra instutuição (quando aplicável)",{"$f":"'4. Pesq'!$B67","v":0}]
["Financiamento(s)? Quais?",{"$f":"'4. Pesq'!$B68","v":0}]
["Cooperações; Redes ou articulações interinstitucionais de pesquisa; Redes formalizadas ou informais? Quais?",{"$f":"'4. Pesq'!$B69","v":0}]
["Relação com Projeto de Extensão e/ou Atividade de Ensino? Qual?",{"$f":"'4. Pesq'!$B70","v":0}]
["Discentes vinculados:"]
["Nome:",{"$f":"'4. Pesq'!$B72","v":0}]
["Tipo:",{"$f":"'4. Pesq'!$B73","v":0}]
["E-mail:",{"$f":"'4. Pesq'!$B74","v":0}]
["CPF (apenas para aluno de graduação):",{"$f":"'4. Pesq'!$B75","v":0}]
["Período de vinculação (mês/ano):",{"$f":"'4. Pesq'!$B76","v":0}]
["Tipo de bolsa (quando aplicável):",{"$f":"'4. Pesq'!$B77","v":0}]
["Nome:",{"$f":"'4. Pesq'!$B78","v":0}]
["Tipo:",{"$f":"'4. Pesq'!$B79","v":0}]
["E-mail:",{"$f":"'4. Pesq'!$B80","v":0}]
["CPF (apenas para aluno de graduação):",{"$f":"'4. Pesq'!$B81","v":0}]
["Período de vinculação (mês/ano):",{"$f":"'4. Pesq'!$B82","v":0}]
["Tipo de bolsa (quando aplicável):",{"$f":"'4. Pesq'!$B83","v":0}]
["Nome:",{"$f":"'4. Pesq'!$B84","v":0}]
["Tipo:",{"$f":"'4. Pesq'!$B85","v":0}]
["E-mail:",{"$f":"'4. Pesq'!$B86","v":0}]
["CPF (apenas para aluno de graduação):",{"$f":"'4. Pesq'!$B87","v":0}]
["Período de vinculação (mês/ano):",{"$f":"'4. Pesq'!$B88","v":0}]
["Tipo de bolsa (quando aplicável):",{"$f":"'4. Pesq'!$B89","v":0}]
["Nome:",{"$f":"'4. Pesq'!$B90","v":0}]
["Tipo:",{"$f":"'4. Pesq'!$B91","v":0}]
["E-mail:",{"$f":"'4. Pesq'!$B92","v":0}]
["CPF (apenas para aluno de graduação):",{"$f":"'4. Pesq'!$B93","v":0}]
["Período de vinculação (mês/ano):",{"$f":"'4. Pesq'!$B94","v":0}]
["Tipo de bolsa (quando aplicável):",{"$f":"'4. Pesq'!$B95","v":0}]
["Nome:",{"$f":"'4. Pesq'!$B96","v":0}]
["Tipo:",{"$f":"'4. Pesq'!$B97","v":0}]
["E-mail:",{"$f":"'4. Pesq'!$B98","v":0}]
["CPF (apenas para aluno de graduação):",{"$f":"'4. Pesq'!$B99","v":0}]
["Período de vinculação (mês/ano):",{"$f":"'4. Pesq'!$B100","v":0}]
["Tipo de bolsa (quando aplicável):",{"$f":"'4. Pesq'!$B101","v":0}]
["Nome:",{"$f":"'4. Pesq'!$B102","v":0}]
["Tipo:",{"$f":"'4. Pesq'!$B103","v":0}]
["E-mail:",{"$f":"'4. Pesq'!$B104","v":0}]
["CPF (apenas para aluno de graduação):",{"$f":"'4. Pesq'!$B105","v":0}]
["Período de vinculação (mês/ano):",{"$f":"'4. Pesq'!$B106","v":0}]
["Tipo de bolsa (quando aplicável):",{"$f":"'4. Pesq'!$B107","v":0}]
["Pesquisa:",{"$f":"'4. Pesq'!$B108","v":0}]
["Data de início (mês/ano):",{"$f":"'4. Pesq'!$B109","v":0}]
["Carga horária semanal:",{"$f":"'4. Pesq'!$B110","v":0}]
["Vinculado a um ou mais grupos de pesquisa? Quais?",{"$f":"'4. Pesq'!$B111","v":0}]
["Vinculação institucional:",{"$f":"'4. Pesq'!$B112","v":0}]
["Outra instutuição (quando aplicável)",{"$f":"'4. Pesq'!$B113","v":0}]
["Financiamento(s)? Quais?",{"$f":"'4. Pesq'!$B114","v":0}]
["Cooperações; Redes ou articulações interinstitucionais de pesquisa; Redes formalizadas ou informais? Quais?",{"$f":"'4. Pesq'!$B115","v":0}]
["Relação com Projeto de Extensão e/ou Atividade de Ensino? Qual?",{"$f":"'4. Pesq'!$B116","v":0}]
["Discentes vinculados:"]
["Nome:",{"$f":"'4. Pesq'!$B118","v":0}]
["Tipo:",{"$f":"'4. Pesq'!$B119","v":0}]
["E-mail:",{"$f":"'4. Pesq'!$B120","v":0}]
["CPF (apenas para aluno de graduação):",{"$f":"'4. Pesq'!$B121","v":0}]
["Período de vinculação (mês/ano):",{"$f":"'4. Pesq'!$B122","v":0}]
["Tipo de bolsa (quando aplicável):",{"$f":"'4. Pesq'!$B123","v":0}]
["Nome:",{"$f":"'4. Pesq'!$B124","v":0}]
["Tipo:",{"$f":"'4. Pesq'!$B125","v":0}]
["E-mail:",{"$f":"'4. Pesq'!$B126","v":0}]
["CPF (apenas para aluno de graduação):",{"$f":"'4. Pesq'!$B127","v":0}]
["Período de vinculação (mês/ano):",{"$f":"'4. Pesq'!$B128","v":0}]
["Tipo de bolsa (quando aplicável):",{"$f":"'4. Pesq'!$B129","v":0}]
["Nome:",{"$f":"'4. Pesq'!$B130","v":0}]
["Tipo:",{"$f":"'4. Pesq'!$B131","v":0}]
["E-mail:",{"$f":"'4. Pesq'!$B132","v":0}]
["CPF (apenas para aluno de graduação):",{"$f":"'4. Pesq'!$B133","v":0}]
["Período de vinculação (mês/ano):",{"$f":"'4. Pesq'!$B134","v":0}]
["Tipo de bolsa (quando aplicável):",{"$f":"'4. Pesq'!$B135","v":0}]
["Nome:",{"$f":"'4. Pesq'!$B136","v":0}]
["Tipo:",{"$f":"'4. Pesq'!$B137","v":0}]
["E-mail:",{"$f":"'4. Pesq'!$B138","v":0}]
["CPF (apenas para aluno de graduação):",{"$f":"'4. Pesq'!$B139","v":0}]
["Período de vinculação (mês/ano):",{"$f":"'4. Pesq'!$B140","v":0}]
["Tipo de bolsa (quando aplicável):",{"$f":"'4. Pesq'!$B141","v":0}]
["Nome:",{"$f":"'4. Pesq'!$B142","v":0}]
["Tipo:",{"$f":"'4. Pesq'!$B143","v":0}]
["E-mail:",{"$f":"'4. Pesq'!$B144","v":0}]
["CPF (apenas para aluno de graduação):",{"$f":"'4. Pesq'!$B145","v":0}]
["Período de vinculação (mês/ano):",{"$f":"'4. Pesq'!$B146","v":0}]
["Tipo de bolsa (quando aplicável):",{"$f":"'4. Pesq'!$B147","v":0}]
["Nome:",{"$f":"'4. Pesq'!$B148","v":0}]
["Tipo:",{"$f":"'4. Pesq'!$B149","v":0}]
["E-mail:",{"$f":"'4. Pesq'!$B150","v":0}]
["CPF (apenas para aluno de graduação):",{"$f":"'4. Pesq'!$B151","v":0}]
["Período de vinculação (mês/ano):",{"$f":"'4. Pesq'!$B152","v":0}]
["Tipo de bolsa (quando aplicável):",{"$f":"'4. Pesq'!$B153","v":0}]
["Pesquisa:",{"$f":"'4. Pesq'!$B154","v":0}]
["Data de início (mês/ano):",{"$f":"'4. Pesq'!$B155","v":0}]
["Carga horária semanal:",{"$f":"'4. Pesq'!$B156","v":0}]
["Vinculado a um ou mais grupos de pesquisa? Quais?",{"$f":"'4. Pesq'!$B157","v":0}]
["Vinculação institucional:",{"$f":"'4. Pesq'!$B158","v":0}]
["Outra instutuição (quando aplicável)",{"$f":"'4. Pesq'!$B159","v":0}]
["Financiamento(s)? Quais?",{"$f":"'4. Pesq'!$B160","v":0}]
["Cooperações; Redes ou articulações interinstitucionais de pesquisa; Redes formalizadas ou informais? Quais?",{"$f":"'4. Pesq'!$B161","v":0}]
["Relação com Projeto de Extensão e/ou Atividade de Ensino? Qual?",{"$f":"'4. Pesq'!$B162","v":0}]
["Discentes vinculados:"]
["Nome:",{"$f":"'4. Pesq'!$B164","v":0}]
["Tipo:",{"$f":"'4. Pesq'!$B165","v":0}]
["E-mail:",{"$f":"'4. Pesq'!$B166","v":0}]
["CPF (apenas para aluno de graduação):",{"$f":"'4. Pesq'!$B167","v":0}]
["Período de vinculação (mês/ano):",{"$f":"'4. Pesq'!$B168","v":0}]
["Tipo de bolsa (quando aplicável):",{"$f":"'4. Pesq'!$B169","v":0}]
["Nome:",{"$f":"'4. Pesq'!$B170","v":0}]
["Tipo:",{"$f":"'4. Pesq'!$B171","v":0}]
["E-mail:",{"$f":"'4. Pesq'!$B172","v":0}]
["CPF (apenas para aluno de graduação):",{"$f":"'4. Pesq'!$B173","v":0}]
["Período de vinculação (mês/ano):",{"$f":"'4. Pesq'!$B174","v":0}]
["Tipo de bolsa (quando aplicável):",{"$f":"'4. Pesq'!$B175","v":0}]
["Nome:",{"$f":"'4. Pesq'!$B176","v":0}]
["Tipo:",{"$f":"'4. Pesq'!$B177","v":0}]
["E-mail:",{"$f":"'4. Pesq'!$B178","v":0}]
["CPF (apenas para aluno de graduação):",{"$f":"'4. Pesq'!$B179","v":0}]
["Período de vinculação (mês/ano):",{"$f":"'4. Pesq'!$B180","v":0}]
["Tipo de bolsa (quando aplicável):",{"$f":"'4. Pesq'!$B181","v":0}]
["Nome:",{"$f":"'4. Pesq'!$B182","v":0}]
["Tipo:",{"$f":"'4. Pesq'!$B183","v":0}]
["E-mail:",{"$f":"'4. Pesq'!$B184","v":0}]
["CPF (apenas para aluno de graduação):",{"$f":"'4. Pesq'!$B185","v":0}]
["Período de vinculação (mês/ano):",{"$f":"'4. Pesq'!$B186","v":0}]
["Tipo de bolsa (quando aplicável):",{"$f":"'4. Pesq'!$B187","v":0}]
["Nome:",{"$f":"'4. Pesq'!$B188","v":0}]
["Tipo:",{"$f":"'4. Pesq'!$B189","v":0}]
["E-mail:",{"$f":"'4. Pesq'!$B190","v":0}]
["CPF (apenas para aluno de graduação):",{"$f":"'4. Pesq'!$B191","v":0}]
["Período de vinculação (mês/ano):",{"$f":"'4. Pesq'!$B192","v":0}]
["Tipo de bolsa (quando aplicável):",{"$f":"'4. Pesq'!$B193","v":0}]
["Nome:",{"$f":"'4. Pesq'!$B194","v":0}]
["Tipo:",{"$f":"'4. Pesq'!$B195","v":0}]
["E-mail:",{"$f":"'4. Pesq'!$B196","v":0}]
["CPF (apenas para aluno de graduação):",{"$f":"'4. Pesq'!$B197","v":0}]
["Período de vinculação (mês/ano):",{"$f":"'4. Pesq'!$B198","v":0}]
["Tipo de bolsa (quando aplicável):",{"$f":"'4. Pesq'!$B199","v":0}]
["Pesquisa:",{"$f":"'4. Pesq'!$B200","v":0}]
["Data de início (mês/ano):",{"$f":"'4. Pesq'!$B201","v":0}]
["Carga horária semanal:",{"$f":"'4. Pesq'!$B202","v":0}]
["Vinculado a um ou mais grupos de pesquisa? Quais?",{"$f":"'4. Pesq'!$B203","v":0}]
["Vinculação institucional:",{"$f":"'4. Pesq'!$B204","v":0}]
["Outra instutuição (quando aplicável)",{"$f":"'4. Pesq'!$B205","v":0}]
["Financiamento(s)? Quais?",{"$f":"'4. Pesq'!$B206","v":0}]
["Cooperações; Redes ou articulações interinstitucionais de pesquisa; Redes formalizadas ou informais? Quais?",{"$f":"'4. Pesq'!$B207","v":0}]
["Relação com Projeto de Extensão e/ou Atividade de Ensino? Qual?",{"$f":"'4. Pesq'!$B208","v":0}]
["Discentes vinculados:"]
["Nome:",{"$f":"'4. Pesq'!$B210","v":0}]
["Tipo:",{"$f":"'4. Pesq'!$B211","v":0}]
["E-mail:",{"$f":"'4. Pesq'!$B212","v":0}]
["CPF (apenas para aluno de graduação):",{"$f":"'4. Pesq'!$B213","v":0}]
["Período de vinculação (mês/ano):",{"$f":"'4. Pesq'!$B214","v":0}]
["Tipo de bolsa (quando aplicável):",{"$f":"'4. Pesq'!$B215","v":0}]
["Nome:",{"$f":"'4. Pesq'!$B216","v":0}]
["Tipo:",{"$f":"'4. Pesq'!$B217","v":0}]
["E-mail:",{"$f":"'4. Pesq'!$B218","v":0}]
["CPF (apenas para aluno de graduação):",{"$f":"'4. Pesq'!$B219","v":0}]
["Período de vinculação (mês/ano):",{"$f":"'4. Pesq'!$B220","v":0}]
["Tipo de bolsa (quando aplicável):",{"$f":"'4. Pesq'!$B221","v":0}]
["Nome:",{"$f":"'4. Pesq'!$B222","v":0}]
["Tipo:",{"$f":"'4. Pesq'!$B223","v":0}]
["E-mail:",{"$f":"'4. Pesq'!$B224","v":0}]
["CPF (apenas para aluno de graduação):",{"$f":"'4. Pesq'!$B225","v":0}]
["Período de vinculação (mês/ano):",{"$f":"'4. Pesq'!$B226","v":0}]
["Tipo de bolsa (quando aplicável):",{"$f":"'4. Pesq'!$B227","v":0}]
["Nome:",{"$f":"'4. Pesq'!$B228","v":0}]
["Tipo:",{"$f":"'4. Pesq'!$B229","v":0}]
["E-mail:",{"$f":"'4. Pesq'!$B230","v":0}]
["CPF (apenas para aluno de graduação):",{"$f":"'4. Pesq'!$B231","v":0}]
["Período de vinculação (mês/ano):",{"$f":"'4. Pesq'!$B232","v":0}]
["Tipo de bolsa (quando aplicável):",{"$f":"'4. Pesq'!$B233","v":0}]
["Nome:",{"$f":"'4. Pesq'!$B234","v":0}]
["Tipo:",{"$f":"'4. Pesq'!$B235","v":0}]
["E-mail:",{"$f":"'4. Pesq'!$B236","v":0}]
["CPF (apenas para aluno de graduação):",{"$f":"'4. Pesq'!$B237","v":0}]
["Período de vinculação (mês/ano):",{"$f":"'4. Pesq'!$B238","v":0}]
["Tipo de bolsa (quando aplicável):",{"$f":"'4. Pesq'!$B239","v":0}]
["Nome:",{"$f":"'4. Pesq'!$B240","v":0}]
["Tipo:",{"$f":"'4. Pesq'!$B241","v":0}]
["E-mail:",{"$f":"'4. Pesq'!$B242","v":0}]
["CPF (apenas para aluno de graduação):",{"$f":"'4. Pesq'!$B243","v":0}]
["Período de vinculação (mês/ano):",{"$f":"'4. Pesq'!$B244","v":0}]
["Tipo de bolsa (quando aplicável):",{"$f":"'4. Pesq'!$B245","v":0}]
["4.4.2. Coordenação de pesquisas finalizadas em 2020."]
["Pesquisa:",{"$f":"'4. Pesq'!$B247","v":0}]
["Datas de início e fim (mês / ano):",{"$f":"'4. Pesq'!$B248","v":0}]
["Carga horária semanal:",{"$f":"'4. Pesq'!$B249","v":0}]
["Carga horária total:",{"$f":"'4. Pesq'!$B250","v":0}]
["Vinculado a um ou mais grupos de pesquisa? Quais?",{"$f":"'4. Pesq'!$B251","v":0}]
["Vinculação institucional:",{"$f":"'4. Pesq'!$B252","v":0}]
["Outra instutuição (quando aplicável)",{"$f":"'4. Pesq'!$B253","v":0}]
["Financiamento? Qual?",{"$f":"'4. Pesq'!$B254","v":0}]
["Articulações? Quais?",{"$f":"'4. Pesq'!$B255","v":0}]
["Relação com Projeto de Extensão e/ou Atividade de Ensino? Qual?",{"$f":"'4. Pesq'!$B256","v":0}]
["Discentes vinculados:"]
["Nome:",{"$f":"'4. Pesq'!$B258","v":0}]
["Tipo:",{"$f":"'4. Pesq'!$B259","v":0}]
["E-mail:",{"$f":"'4. Pesq'!$B260","v":0}]
["CPF (apenas para aluno de graduação):",{"$f":"'4. Pesq'!$B261","v":0}]
["Período de vinculação:",{"$f":"'4. Pesq'!$B262","v":0}]
["Tipo de bolsa (quando aplicável):",{"$f":"'4. Pesq'!$B263","v":0}]
["Nome:",{"$f":"'4. Pesq'!$B264","v":0}]
["Tipo:",{"$f":"'4. Pesq'!$B265","v":0}]
["E-mail:",{"$f":"'4. Pesq'!$B266","v":0}]
["CPF (apenas para aluno de graduação):",{"$f":"'4. Pesq'!$B267","v":0}]
["Período de vinculação:",{"$f":"'4. Pesq'!$B268","v":0}]
["Tipo de bolsa (quando aplicável):",{"$f":"'4. Pesq'!$B269","v":0}]
["Nome:",{"$f":"'4. Pesq'!$B270","v":0}]
["Tipo:",{"$f":"'4. Pesq'!$B271","v":0}]
["E-mail:",{"$f":"'4. Pesq'!$B272","v":0}]
["CPF (apenas para aluno de graduação):",{"$f":"'4. Pesq'!$B273","v":0}]
["Período de vinculação:",{"$f":"'4. Pesq'!$B274","v":0}]
["Tipo de bolsa (quando aplicável):",{"$f":"'4. Pesq'!$B275","v":0}]
["Nome:",{"$f":"'4. Pesq'!$B276","v":0}]
["Tipo:",{"$f":"'4. Pesq'!$B277","v":0}]
["E-mail:",{"$f":"'4. Pesq'!$B278","v":0}]
["CPF (apenas para aluno de graduação):",{"$f":"'4. Pesq'!$B279","v":0}]
["Período de vinculação:",{"$f":"'4. Pesq'!$B280","v":0}]
["Tipo de bolsa (quando aplicável):",{"$f":"'4. Pesq'!$B281","v":0}]
["Nome:",{"$f":"'4. Pesq'!$B282","v":0}]
["Tipo:",{"$f":"'4. Pesq'!$B283","v":0}]
["E-mail:",{"$f":"'4. Pesq'!$B284","v":0}]
["CPF (apenas para aluno de graduação):",{"$f":"'4. Pesq'!$B285","v":0}]
["Período de vinculação:",{"$f":"'4. Pesq'!$B286","v":0}]
["Tipo de bolsa (quando aplicável):",{"$f":"'4. Pesq'!$B287","v":0}]
["Nome:",{"$f":"'4. Pesq'!$B288","v":0}]
["Tipo:",{"$f":"'4. Pesq'!$B289","v":0}]
["E-mail:",{"$f":"'4. Pesq'!$B290","v":0}]
["CPF (apenas para aluno de graduação):",{"$f":"'4. Pesq'!$B291","v":0}]
["Período de vinculação:",{"$f":"'4. Pesq'!$B292","v":0}]
["Tipo de bolsa (quando aplicável):",{"$f":"'4. Pesq'!$B293","v":0}]
["Pesquisa:",{"$f":"'4. Pesq'!$B294","v":0}]
["Datas de início e fim (mês / ano):",{"$f":"'4. Pesq'!$B295","v":0}]
["Carga horária semanal:",{"$f":"'4. Pesq'!$B296","v":0}]
["Carga horária total:",{"$f":"'4. Pesq'!$B297","v":0}]
["Vinculado a um ou mais grupos de pesquisa? Quais?",{"$f":"'4. Pesq'!$B298","v":0}]
["Vinculação institucional:",{"$f":"'4. Pesq'!$B299","v":0}]
["Outra instutuição (quando aplicável)",{"$f":"'4. Pesq'!$B300","v":0}]
["Financiamento? Qual?",{"$f":"'4. Pesq'!$B301","v":0}]
["Articulações? Quais?",{"$f":"'4. Pesq'!$B302","v":0}]
["Relação com Projeto de Extensão e/ou Atividade de Ensino? Qual?",{"$f":"'4. Pesq'!$B303","v":0}]
["Discentes vinculados:"]
["Nome:",{"$f":"'4. Pesq'!$B305","v":0}]
["Tipo:",{"$f":"'4. Pesq'!$B306","v":0}]
["E-mail:",{"$f":"'4. Pesq'!$B307","v":0}]
["CPF (apenas para aluno de graduação):",{"$f":"'4. Pesq'!$B308","v":0}]
["Período de vinculação:",{"$f":"'4. Pesq'!$B309","v":0}]
["Tipo de bolsa (quando aplicável):",{"$f":"'4. Pesq'!$B310","v":0}]
["Nome:",{"$f":"'4. Pesq'!$B311","v":0}]
["Tipo:",{"$f":"'4. Pesq'!$B312","v":0}]
["E-mail:",{"$f":"'4. Pesq'!$B313","v":0}]
["CPF (apenas para aluno de graduação):",{"$f":"'4. Pesq'!$B314","v":0}]
["Período de vinculação:",{"$f":"'4. Pesq'!$B315","v":0}]
["Tipo de bolsa (quando aplicável):",{"$f":"'4. Pesq'!$B316","v":0}]
["Nome:",{"$f":"'4. Pesq'!$B317","v":0}]
["Tipo:",{"$f":"'4. Pesq'!$B318","v":0}]
["E-mail:",{"$f":"'4. Pesq'!$B319","v":0}]
["CPF (apenas para aluno de graduação):",{"$f":"'4. Pesq'!$B320","v":0}]
["Período de vinculação:",{"$f":"'4. Pesq'!$B321","v":0}]
["Tipo de bolsa (quando aplicável):",{"$f":"'4. Pesq'!$B322","v":0}]
["Nome:",{"$f":"'4. Pesq'!$B323","v":0}]
["Tipo:",{"$f":"'4. Pesq'!$B324","v":0}]
["E-mail:",{"$f":"'4. Pesq'!$B325","v":0}]
["CPF (apenas para aluno de graduação):",{"$f":"'4. Pesq'!$B326","v":0}]
["Período de vinculação:",{"$f":"'4. Pesq'!$B327","v":0}]
["Tipo de bolsa (quando aplicável):",{"$f":"'4. Pesq'!$B328","v":0}]
["Nome:",{"$f":"'4. Pesq'!$B329","v":0}]
["Tipo:",{"$f":"'4. Pesq'!$B330","v":0}]
["E-mail:",{"$f":"'4. Pesq'!$B331","v":0}]
["CPF (apenas para aluno de graduação):",{"$f":"'4. Pesq'!$B332","v":0}]
["Período de vinculação:",{"$f":"'4. Pesq'!$B333","v":0}]
["Tipo de bolsa (quando aplicável):",{"$f":"'4. Pesq'!$B334","v":0}]
["Nome:",{"$f":"'4. Pesq'!$B335","v":0}]
["Tipo:",{"$f":"'4. Pesq'!$B336","v":0}]
["E-mail:",{"$f":"'4. Pesq'!$B337","v":0}]
["CPF (apenas para aluno de graduação):",{"$f":"'4. Pesq'!$B338","v":0}]
["Período de vinculação:",{"$f":"'4. Pesq'!$B339","v":0}]
["Tipo de bolsa (quando aplicável):",{"$f":"'4. Pesq'!$B340","v":0}]
["Pesquisa:",{"$f":"'4. Pesq'!$B341","v":0}]
["Datas de início e fim (mês / ano):",{"$f":"'4. Pesq'!$B342","v":0}]
["Carga horária semanal:",{"$f":"'4. Pesq'!$B343","v":0}]
["Carga horária total:",{"$f":"'4. Pesq'!$B344","v":0}]
["Vinculado a um ou mais grupos de pesquisa? Quais?",{"$f":"'4. Pesq'!$B345","v":0}]
["Vinculação institucional:",{"$f":"'4. Pesq'!$B346","v":0}]
["Outra instutuição (quando aplicável)",{"$f":"'4. Pesq'!$B347","v":0}]
["Financiamento? Qual?",{"$f":"'4. Pesq'!$B348","v":0}]
["Articulações? Quais?",{"$f":"'4. Pesq'!$B349","v":0}]
["Relação com Projeto de Extensão e/ou Atividade de Ensino? Qual?",{"$f":"'4. Pesq'!$B350","v":0}]
["Discentes vinculados:"]
["Nome:",{"$f":"'4. Pesq'!$B352","v":0}]
["Tipo:",{"$f":"'4. Pesq'!$B353","v":0}]
["E-mail:",{"$f":"'4. Pesq'!$B354","v":0}]
["CPF (apenas para aluno de graduação):",{"$f":"'4. Pesq'!$B355","v":0}]
["Período de vinculação:",{"$f":"'4. Pesq'!$B356","v":0}]
["Tipo de bolsa (quando aplicável):",{"$f":"'4. Pesq'!$B357","v":0}]
["Nome:",{"$f":"'4. Pesq'!$B358","v":0}]
["Tipo:",{"$f":"'4. Pesq'!$B359","v":0}]
["E-mail:",{"$f":"'4. Pesq'!$B360","v":0}]
["CPF (apenas para aluno de graduação):",{"$f":"'4. Pesq'!$B361","v":0}]
["Período de vinculação:",{"$f":"'4. Pesq'!$B362","v":0}]
["Tipo de bolsa (quando aplicável):",{"$f":"'4. Pesq'!$B363","v":0}]
["Nome:",{"$f":"'4. Pesq'!$B364","v":0}]
["Tipo:",{"$f":"'4. Pesq'!$B365","v":0}]
["E-mail:",{"$f":"'4. Pesq'!$B366","v":0}]
["CPF (apenas para aluno de graduação):",{"$f":"'4. Pesq'!$B367","v":0}]
["Período de vinculação:",{"$f":"'4. Pesq'!$B368","v":0}]
["Tipo de bolsa (quando aplicável):",{"$f":"'4. Pesq'!$B369","v":0}]
["Nome:",{"$f":"'4. Pesq'!$B370","v":0}]
["Tipo:",{"$f":"'4. Pesq'!$B371","v":0}]
["E-mail:",{"$f":"'4. Pesq'!$B372","v":0}]
["CPF (apenas para aluno de graduação):",{"$f":"'4. Pesq'!$B373","v":0}]
["Período de vinculação:",{"$f":"'4. Pesq'!$B374","v":0}]
["Tipo de bolsa (quando aplicável):",{"$f":"'4. Pesq'!$B375","v":0}]
["Nome:",{"$f":"'4. Pesq'!$B376","v":0}]
["Tipo:",{"$f":"'4. Pesq'!$B377","v":0}]
["E-mail:",{"$f":"'4. Pesq'!$B378","v":0}]
["CPF (apenas para aluno de graduação):",{"$f":"'4. Pesq'!$B379","v":0}]
["Período de vinculação:",{"$f":"'4. Pesq'!$B380","v":0}]
["Tipo de bolsa (quando aplicável):",{"$f":"'4. Pesq'!$B381","v":0}]
["Nome:",{"$f":"'4. Pesq'!$B382","v":0}]
["Tipo:",{"$f":"'4. Pesq'!$B383","v":0}]
["E-mail:",{"$f":"'4. Pesq'!$B384","v":0}]
["CPF (apenas para aluno de graduação):",{"$f":"'4. Pesq'!$B385","v":0}]
["Período de vinculação:",{"$f":"'4. Pesq'!$B386","v":0}]
["Tipo de bolsa (quando aplicável):",{"$f":"'4. Pesq'!$B387","v":0}]
["Pesquisa:",{"$f":"'4. Pesq'!$B388","v":0}]
["Datas de início e fim (mês / ano):",{"$f":"'4. Pesq'!$B389","v":0}]
["Carga horária semanal:",{"$f":"'4. Pesq'!$B390","v":0}]
["Carga horária total:",{"$f":"'4. Pesq'!$B391","v":0}]
["Vinculado a um ou mais grupos de pesquisa? Quais?",{"$f":"'4. Pesq'!$B392","v":0}]
["Vinculação institucional:",{"$f":"'4. Pesq'!$B393","v":0}]
["Outra instutuição (quando aplicável)",{"$f":"'4. Pesq'!$B394","v":0}]
["Financiamento? Qual?",{"$f":"'4. Pesq'!$B395","v":0}]
["Articulações? Quais?",{"$f":"'4. Pesq'!$B396","v":0}]
["Relação com Projeto de Extensão e/ou Atividade de Ensino? Qual?",{"$f":"'4. Pesq'!$B397","v":0}]
["Discentes vinculados:"]
["Nome:",{"$f":"'4. Pesq'!$B399","v":0}]
["Tipo:",{"$f":"'4. Pesq'!$B400","v":0}]
["E-mail:",{"$f":"'4. Pesq'!$B401","v":0}]
["CPF (apenas para aluno de graduação):",{"$f":"'4. Pesq'!$B402","v":0}]
["Período de vinculação:",{"$f":"'4. Pesq'!$B403","v":0}]
["Tipo de bolsa (quando aplicável):",{"$f":"'4. Pesq'!$B404","v":0}]
["Nome:",{"$f":"'4. Pesq'!$B405","v":0}]
["Tipo:",{"$f":"'4. Pesq'!$B406","v":0}]
["E-mail:",{"$f":"'4. Pesq'!$B407","v":0}]
["CPF (apenas para aluno de graduação):",{"$f":"'4. Pesq'!$B408","v":0}]
["Período de vinculação:",{"$f":"'4. Pesq'!$B409","v":0}]
["Tipo de bolsa (quando aplicável):",{"$f":"'4. Pesq'!$B410","v":0}]
["Nome:",{"$f":"'4. Pesq'!$B411","v":0}]
["Tipo:",{"$f":"'4. Pesq'!$B412","v":0}]
["E-mail:",{"$f":"'4. Pesq'!$B413","v":0}]
["CPF (apenas para aluno de graduação):",{"$f":"'4. Pesq'!$B414","v":0}]
["Período de vinculação:",{"$f":"'4. Pesq'!$B415","v":0}]
["Tipo de bolsa (quando aplicável):",{"$f":"'4. Pesq'!$B416","v":0}]
["Nome:",{"$f":"'4. Pesq'!$B417","v":0}]
["Tipo:",{"$f":"'4. Pesq'!$B418","v":0}]
["E-mail:",{"$f":"'4. Pesq'!$B419","v":0}]
["CPF (apenas para aluno de graduação):",{"$f":"'4. Pesq'!$B420","v":0}]
["Período de vinculação:",{"$f":"'4. Pesq'!$B421","v":0}]
["Tipo de bolsa (quando aplicável):",{"$f":"'4. Pesq'!$B422","v":0}]
["Nome:",{"$f":"'4. Pesq'!$B423","v":0}]
["Tipo:",{"$f":"'4. Pesq'!$B424","v":0}]
["E-mail:",{"$f":"'4. Pesq'!$B425","v":0}]
["CPF (apenas para aluno de graduação):",{"$f":"'4. Pesq'!$B426","v":0}]
["Período de vinculação:",{"$f":"'4. Pesq'!$B427","v":0}]
["Tipo de bolsa (quando aplicável):",{"$f":"'4. Pesq'!$B428","v":0}]
["Nome:",{"$f":"'4. Pesq'!$B429","v":0}]
["Tipo:",{"$f":"'4. Pesq'!$B430","v":0}]
["E-mail:",{"$f":"'4. Pesq'!$B431","v":0}]
["CPF (apenas para aluno de graduação):",{"$f":"'4. Pesq'!$B432","v":0}]
["Período de vinculação:",{"$f":"'4. Pesq'!$B433","v":0}]
["Tipo de bolsa (quando aplicável):",{"$f":"'4. Pesq'!$B434","v":0}]
["Pesquisa:",{"$f":"'4. Pesq'!$B435","v":0}]
["Datas de início e fim (mês / ano):",{"$f":"'4. Pesq'!$B436","v":0}]
["Carga horária semanal:",{"$f":"'4. Pesq'!$B437","v":0}]
["Carga horária total:",{"$f":"'4. Pesq'!$B438","v":0}]
["Vinculado a um ou mais grupos de pesquisa? Quais?",{"$f":"'4. Pesq'!$B439","v":0}]
["Vinculação institucional:",{"$f":"'4. Pesq'!$B440","v":0}]
["Outra instutuição (quando aplicável)",{"$f":"'4. Pesq'!$B441","v":0}]
["Financiamento? Qual?",{"$f":"'4. Pesq'!$B442","v":0}]
["Articulações? Quais?",{"$f":"'4. Pesq'!$B443","v":0}]
["Relação com Projeto de Extensão e/ou Atividade de Ensino? Qual?",{"$f":"'4. Pesq'!$B444","v":0}]
["Discentes vinculados:"]
["Nome:",{"$f":"'4. Pesq'!$B446","v":0}]
["Tipo:",{"$f":"'4. Pesq'!$B447","v":0}]
["E-mail:",{"$f":"'4. Pesq'!$B448","v":0}]
["CPF (apenas para aluno de graduação):",{"$f":"'4. Pesq'!$B449","v":0}]
["Período de vinculação:",{"$f":"'4. Pesq'!$B450","v":0}]
["Tipo de bolsa (quando aplicável):",{"$f":"'4. Pesq'!$B451","v":0}]
["Nome:",{"$f":"'4. Pesq'!$B452","v":0}]
["Tipo:",{"$f":"'4. Pesq'!$B453","v":0}]
["E-mail:",{"$f":"'4. Pesq'!$B454","v":0}]
["CPF (apenas para aluno de graduação):",{"$f":"'4. Pesq'!$B455","v":0}]
["Período de vinculação:",{"$f":"'4. Pesq'!$B456","v":0}]
["Tipo de bolsa (quando aplicável):",{"$f":"'4. Pesq'!$B457","v":0}]
["Nome:",{"$f":"'4. Pesq'!$B458","v":0}]
["Tipo:",{"$f":"'4. Pesq'!$B459","v":0}]
["E-mail:",{"$f":"'4. Pesq'!$B460","v":0}]
["CPF (apenas para aluno de graduação):",{"$f":"'4. Pesq'!$B461","v":0}]
["Período de vinculação:",{"$f":"'4. Pesq'!$B462","v":0}]
["Tipo de bolsa (quando aplicável):",{"$f":"'4. Pesq'!$B463","v":0}]
["Nome:",{"$f":"'4. Pesq'!$B464","v":0}]
["Tipo:",{"$f":"'4. Pesq'!$B465","v":0}]
["E-mail:",{"$f":"'4. Pesq'!$B466","v":0}]
["CPF (apenas para aluno de graduação):",{"$f":"'4. Pesq'!$B467","v":0}]
["Período de vinculação:",{"$f":"'4. Pesq'!$B468","v":0}]
["Tipo de bolsa (quando aplicável):",{"$f":"'4. Pesq'!$B469","v":0}]
["Nome:",{"$f":"'4. Pesq'!$B470","v":0}]
["Tipo:",{"$f":"'4. Pesq'!$B471","v":0}]
["E-mail:",{"$f":"'4. Pesq'!$B472","v":0}]
["CPF (apenas para aluno de graduação):",{"$f":"'4. Pesq'!$B473","v":0}]
["Período de vinculação:",{"$f":"'4. Pesq'!$B474","v":0}]
["Tipo de bolsa (quando aplicável):",{"$f":"'4. Pesq'!$B475","v":0}]
["Nome:",{"$f":"'4. Pesq'!$B476","v":0}]
["Tipo:",{"$f":"'4. Pesq'!$B477","v":0}]
["E-mail:",{"$f":"'4. Pesq'!$B478","v":0}]
["CPF (apenas para aluno de graduação):",{"$f":"'4. Pesq'!$B479","v":0}]
["Período de vinculação:",{"$f":"'4. Pesq'!$B480","v":0}]
["Tipo de bolsa (quando aplicável):",{"$f":"'4. Pesq'!$B481","v":0}]
["4.5. Participação em projetos de pesquisas"]
["4.5.1. Participação de pesquisas em andamento."]
["Pesquisa:",{"$f":"'4. Pesq'!$B484","v":0}]
["Data de início (mês / ano):",{"$f":"'4. Pesq'!$B485","v":0}]
["Carga horária semanal:",{"$f":"'4. Pesq'!$B486","v":0}]
["Carga horária total:",{"$f":"'4. Pesq'!$B487","v":0}]
["Vinculado a um ou mais grupos de pesquisa? Quais?",{"$f":"'4. Pesq'!$B488","v":0}]
["Vinculação institucional:",{"$f":"'4. Pesq'!$B489","v":0}]
["Outra instutuição (quando aplicável)",{"$f":"'4. Pesq'!$B490","v":0}]
["Financiamento? Qual?",{"$f":"'4. Pesq'!$B491","v":0}]
["Articulações? Quais?",{"$f":"'4. Pesq'!$B492","v":0}]
["Relação com Projeto de Extensão e/ou Atividade de Ensino? Qual?",{"$f":"'4. Pesq'!$B493","v":0}]
["Pesquisa:",{"$f":"'4. Pesq'!$B494","v":0}]
["Data de início (mês / ano):",{"$f":"'4. Pesq'!$B495","v":0}]
["Carga horária semanal:",{"$f":"'4. Pesq'!$B496","v":0}]
["Carga horária total:",{"$f":"'4. Pesq'!$B497","v":0}]
["Vinculado a um ou mais grupos de pesquisa? Quais?",{"$f":"'4. Pesq'!$B498","v":0}]
["Vinculação institucional:",{"$f":"'4. Pesq'!$B499","v":0}]
["Outra instutuição (quando aplicável)",{"$f":"'4. Pesq'!$B500","v":0}]
["Financiamento? Qual?",{"$f":"'4. Pesq'!$B501","v":0}]
["Articulações? Quais?",{"$f":"'4. Pesq'!$B502","v":0}]
["Relação com Projeto de Extensão e/ou Atividade de Ensino? Qual?",{"$f":"'4. Pesq'!$B503","v":0}]
["Pesquisa:",{"$f":"'4. Pesq'!$B504","v":0}]
["Data de início (mês / ano):",{"$f":"'4. Pesq'!$B505","v":0}]
["Carga horária semanal:",{"$f":"'4. Pesq'!$B506","v":0}]
["Carga horária total:",{"$f":"'4. Pesq'!$B507","v":0}]
["Vinculado a um ou mais grupos de pesquisa? Quais?",{"$f":"'4. Pesq'!$B508","v":0}]
["Vinculação institucional:",{"$f":"'4. Pesq'!$B509","v":0}]
["Outra instutuição (quando aplicável)",{"$f":"'4. Pesq'!$B510","v":0}]
["Financiamento? Qual?",{"$f":"'4. Pesq'!$B511","v":0}]
["Articulações? Quais?",{"$f":"'4. Pesq'!$B512","v":0}]
["Relação com Projeto de Extensão e/ou Atividade de Ensino? Qual?",{"$f":"'4. Pesq'!$B513","v":0}]
["Pesquisa:",{"$f":"'4. Pesq'!$B514","v":0}]
["Data de início (mês / ano):",{"$f":"'4. Pesq'!$B515","v":0}]
["Carga horária semanal:",{"$f":"'4. Pesq'!$B516","v":0}]
["Carga horária total:",{"$f":"'4. Pesq'!$B517","v":0}]
["Vinculado a um ou mais grupos de pesquisa? Quais?",{"$f":"'4. Pesq'!$B518","v":0}]
["Vinculação institucional:",{"$f":"'4. Pesq'!$B519","v":0}]
["Outra instutuição (quando aplicável)",{"$f":"'4. Pesq'!$B520","v":0}]
["Financiamento? Qual?",{"$f":"'4. Pesq'!$B521","v":0}]
["Articulações? Quais?",{"$f":"'4. Pesq'!$B522","v":0}]
["Relação com Projeto de Extensão e/ou Atividade de Ensino? Qual?",{"$f":"'4. Pesq'!$B523","v":0}]
["Pesquisa:",{"$f":"'4. Pesq'!$B524","v":0}]
["Data de início (mês / ano):",{"$f":"'4. Pesq'!$B525","v":0}]
["Carga horária semanal:",{"$f":"'4. Pesq'!$B526","v":0}]
["Carga horária total:",{"$f":"'4. Pesq'!$B527","v":0}]
["Vinculado a um ou mais grupos de pesquisa? Quais?",{"$f":"'4. Pesq'!$B528","v":0}]
["Vinculação institucional:",{"$f":"'4. Pesq'!$B529","v":0}]
["Outra instutuição (quando aplicável)",{"$f":"'4. Pesq'!$B530","v":0}]
["Financiamento? Qual?",{"$f":"'4. Pesq'!$B531","v":0}]
["Articulações? Quais?",{"$f":"'4. Pesq'!$B532","v":0}]
["Relação com Projeto de Extensão e/ou Atividade de Ensino? Qual?",{"$f":"'4. Pesq'!$B533","v":0}]
["4.5.2. Participação de pesquisas finalizadas em 2020."]
["Pesquisa:",{"$f":"'4. Pesq'!$B535","v":0}]
["Datas de início e fim (mês / ano):",{"$f":"'4. Pesq'!$B536","v":0}]
["Carga horária semanal:",{"$f":"'4. Pesq'!$B537","v":0}]
["Carga horária total:",{"$f":"'4. Pesq'!$B538","v":0}]
["Vinculado a um ou mais grupos de pesquisa? Quais?",{"$f":"'4. Pesq'!$B539","v":0}]
["Vinculação institucional:",{"$f":"'4. Pesq'!$B540","v":0}]
["Outra instutuição (quando aplicável)",{"$f":"'4. Pesq'!$B541","v":0}]
["Financiamento? Qual?",{"$f":"'4. Pesq'!$B542","v":0}]
["Articulações? Quais?",{"$f":"'4. Pesq'!$B543","v":0}]
["Relação com Projeto de Extensão e/ou Atividade de Ensino? Qual?",{"$f":"'4. Pesq'!$B544","v":0}]
["Pesquisa:",{"$f":"'4. Pesq'!$B545","v":0}]
["Datas de início e fim (mês / ano):",{"$f":"'4. Pesq'!$B546","v":0}]
["Carga horária semanal:",{"$f":"'4. Pesq'!$B547","v":0}]
["Carga horária total:",{"$f":"'4. Pesq'!$B548","v":0}]
["Vinculado a um ou mais grupos de pesquisa? Quais?",{"$f":"'4. Pesq'!$B549","v":0}]
["Vinculação institucional:",{"$f":"'4. Pesq'!$B550","v":0}]
["Outra instutuição (quando aplicável)",{"$f":"'4. Pesq'!$B551","v":0}]
["Financiamento? Qual?",{"$f":"'4. Pesq'!$B552","v":0}]
["Articulações? Quais?",{"$f":"'4. Pesq'!$B553","v":0}]
["Relação com Projeto de Extensão e/ou Atividade de Ensino? Qual?",{"$f":"'4. Pesq'!$B554","v":0}]
["Pesquisa:",{"$f":"'4. Pesq'!$B555","v":0}]
["Datas de início e fim (mês / ano):",{"$f":"'4. Pesq'!$B556","v":0}]
["Carga horária semanal:",{"$f":"'4. Pesq'!$B557","v":0}]
["Carga horária total:",{"$f":"'4. Pesq'!$B558","v":0}]
["Vinculado a um ou mais grupos de pesquisa? Quais?",{"$f":"'4. Pesq'!$B559","v":0}]
["Vinculação institucional:",{"$f":"'4. Pesq'!$B560","v":0}]
["Outra instutuição (quando aplicável)",{"$f":"'4. Pesq'!$B561","v":0}]
["Financiamento? Qual?",{"$f":"'4. Pesq'!$B562","v":0}]
["Articulações? Quais?",{"$f":"'4. Pesq'!$B563","v":0}]
["Relação com Projeto de Extensão e/ou Atividade de Ensino? Qual?",{"$f":"'4. Pesq'!$B564","v":0}]
["Pesquisa:",{"$f":"'4. Pesq'!$B565","v":0}]
["Datas de início e fim (mês / ano):",{"$f":"'4. Pesq'!$B566","v":0}]
["Carga horária semanal:",{"$f":"'4. Pesq'!$B567","v":0}]
["Carga horária total:",{"$f":"'4. Pesq'!$B568","v":0}]
["Vinculado a um ou mais grupos de pesquisa? Quais?",{"$f":"'4. Pesq'!$B569","v":0}]
["Vinculação institucional:",{"$f":"'4. Pesq'!$B570","v":0}]
["Outra instutuição (quando aplicável)",{"$f":"'4. Pesq'!$B571","v":0}]
["Financiamento? Qual?",{"$f":"'4. Pesq'!$B572","v":0}]
["Articulações? Quais?",{"$f":"'4. Pesq'!$B573","v":0}]
["Relação com Projeto de Extensão e/ou Atividade de Ensino? Qual?",{"$f":"'4. Pesq'!$B574","v":0}]
["Pesquisa:",{"$f":"'4. Pesq'!$B575","v":0}]
["Datas de início e fim (mês / ano):",{"$f":"'4. Pesq'!$B576","v":0}]
["Carga horária semanal:",{"$f":"'4. Pesq'!$B577","v":0}]
["Carga horária total:",{"$f":"'4. Pesq'!$B578","v":0}]
["Vinculado a um ou mais grupos de pesquisa? Quais?",{"$f":"'4. Pesq'!$B579","v":0}]
["Vinculação institucional:",{"$f":"'4. Pesq'!$B580","v":0}]
["Outra instutuição (quando aplicável)",{"$f":"'4. Pesq'!$B581","v":0}]
["Financiamento? Qual?",{"$f":"'4. Pesq'!$B582","v":0}]
["Articulações? Quais?",{"$f":"'4. Pesq'!$B583","v":0}]
["Relação com Projeto de Extensão e/ou Atividade de Ensino? Qual?",{"$f":"'4. Pesq'!$B584","v":0}]
["4.6. Consultorias, assessorias e assistências técnicas vinculadas às pesquisas"]
["Descrição:",{"$f":"'4. Pesq'!$B586","v":0}]
["4.7. Interfaces entre pesquisa/extensão e ensino (Criação, articulação ou promoção relacionada à pesquisa: de disciplinas, projetos de extensão, de Grupos ou linhas de pesquisa, de jornais, revistas, plataformas, observatórios, promoção de Seminários / eventos, debates em rede, grupos de estudos, outros)"]
["Descrição:",{"$f":"'4. Pesq'!$B588","v":0}]
["5. ATIVIDADES DE ORIENTAÇÃO"]
["5.1. Orientação de estudantes de graduação:"]
["TFG:"]
["Quatidade de alunos anual:",{"$f":"'5. Orient'!$B4","v":0}]
["Nome(s) do(s) aluno(s), título(s) do(s) trabalho(s) e semestre(s):",{"$f":"'5. Orient'!$B5","v":0}]
["Coorientação TFG:"]
["Quatidade de alunos anual:",{"$f":"'5. Orient'!$B7","v":0}]
["Nome(s) do(s) aluno(s), título(s) do(s) trabalho(s) e semestre(s):",{"$f":"'5. Orient'!$B8","v":0}]
["Monitoria:"]
["Quatidade de alunos anual:",{"$f":"'5. Orient'!$B10","v":0}]
["Nome(s) do(s) aluno(s), nome(s) da(s) disciplina(s) e semestre(s):",{"$f":"'5. Orient'!$B11","v":0}]
["PIBIC e afins:"]
["Quatidade de alunos anual:",{"$f":"'5. Orient'!$B13","v":0}]
["Extensão:"]
["Quatidade de alunos anual:",{"$f":"'5. Orient'!$B15","v":0}]
["Voluntários e colaboradores:"]
["Quatidade de alunos anual:",{"$f":"'5. Orient'!$B17","v":0}]
["5.2. Orientação de estudantes de pós-graduação "]
["Doutorado:"]
["Quatidade de alunos anual:",{"$f":"'5. Orient'!$B20","v":0}]
["Nome(s) do(s) aluno(s), título(s) do(s) trabalho(s) e semestre(s):",{"$f":"'5. Orient'!$B21","v":0}]
["Coorientação Doutorado:"]
["Quatidade de alunos anual:",{"$f":"'5. Orient'!$B23","v":0}]
["Nome(s) do(s) aluno(s), título(s) do(s) trabalho(s) e semestre(s):",{"$f":"'5. Orient'!$B24","v":0}]
["Mestrado:"]
["Quatidade de alunos anual:",{"$f":"'5. Orient'!$B26","v":0}]
["Nome(s) do(s) aluno(s), título(s) do(s) trabalho(s) e semestre(s):",{"$f":"'5. Orient'!$B27","v":0}]
["Coorientação Mestrado:"]
["Quatidade de alunos anual:",{"$f":"'5. Orient'!$B29","v":0}]
["Nome(s) do(s) aluno(s), título(s) do(s) trabalho(s) e semestre(s):",{"$f":"'5. Orient'!$B30","v":0}]
["Mestrado Profissional:"]
["Quatidade de alunos anual:",{"$f":"'5. Orient'!$B32","v":0}]
["Nome(s) do(s) aluno(s), título(s) do(s) trabalho(s) e semestre(s):",{"$f":"'5. Orient'!$B33","v":0}]
["Coorientação Mestrado Profissional:"]
["Quatidade de alunos anual:",{"$f":"'5. Orient'!$B35","v":0}]
["Nome(s) do(s) aluno(s), título(s) do(s) trabalho(s) e semestre(s):",{"$f":"'5. Orient'!$B36","v":0}]
["Residência AU+E:"]
["Quatidade de alunos anual:",{"$f":"'5. Orient'!$B38","v":0}]
["Nome(s) do(s) aluno(s), título(s) do(s) trabalho(s) e semestre(s):",{"$f":"'5. Orient'!$B39","v":0}]
["Coorientação Residência:"]
["Quatidade de alunos anual:",{"$f":"'5. Orient'!$B41","v":0}]
["Nome(s) do(s) aluno(s), título(s) do(s) trabalho(s) e semestre(s):",{"$f":"'5. Orient'!$B42","v":0}]
["Tirocínio Docente:"]
["Quatidade de alunos anual:",{"$f":"'5. Orient'!$B44","v":0}]
["Nome(s) do(s) aluno(s), nome(s) da(s) disciplina(s) e semestre(s):",{"$f":"'5. Orient'!$B45","v":0}]
["Tutor:"]
["Quatidade de alunos anual:",{"$f":"'5. Orient'!$B47","v":0}]
["Nome(s) do(s) aluno(s), nome(s) da(s) pesquisa(s) e semestre(s):",{"$f":"'5. Orient'!$B48","v":0}]
["6. PRODUÇÃO ACADÊMICA (preencher seguindo a norma ABNT 6023_2018; indicar claramente todos os autores envolvidos, em ordem de autoria; e identificar se a produção tem relação com alguma pesquisa e com qual)"]
["6.1. Autoria ou co-autoria de livro especializado (colocar ISBN)"]
[{"$f":"'6. Prod. Acad'!$A3","v":0}]
["6.2. Organização de livro (colocar ISBN)"]
[{"$f":"'6. Prod. Acad'!$A5","v":0}]
["6.3. Capítulo de Livro (colocar ISBN)"]
[{"$f":"'6. Prod. Acad'!$A7","v":0}]
["6.4. Publicação de artigo em periódico especializado em autoria ou co-autoria (colocar ISSN)"]
[{"$f":"'6. Prod. Acad'!$A9","v":0}]
["6.5. Publicação de trabalhos completos em anais de congressos ou simpósios, suplementos de periódicos ou cadernos especiais de jornais, na área de atuação do docente  em autoria ou co-autoria (colocar ISBN)"]
[{"$f":"'6. Prod. Acad'!$A11","v":0}]
["6.6. Obras artísticas, cientificas, técnicas ou outras na área de atuação do docente em autoria ou co-autoria"]
[{"$f":"'6. Prod. Acad'!$A13","v":0}]
["6.7. Publicações em sites e blogs na área de atuação do docente em autoria ou co-autoria"]
[{"$f":"'6. Prod. Acad'!$A15","v":0}]
["6.8. Formatação e/ou alimentação de sites vinculados às pesquisas individualmente ou em grupo"]
[{"$f":"'6. Prod. Acad'!$A17","v":0}]
["7. ATIVIDADES ADMINISTRATIVAS"]
["7.1. Exercício de cargo "]
["Cargo:",{"$f":"'7. At. Adm'!$B3","v":0}]
["Vigência:",{"$f":"'7. At. Adm'!$B4","v":0}]
["Cargo:",{"$f":"'7. At. Adm'!$B5","v":0}]
["Vigência:",{"$f":"'7. At. Adm'!$B6","v":0}]
["7.2. Representação Interna"]
["Representação:",{"$f":"'7. At. Adm'!$B8","v":0}]
["Vigência:",{"$f":"'7. At. Adm'!$B9","v":0}]
["Representação:",{"$f":"'7. At. Adm'!$B10","v":0}]
["Vigência:",{"$f":"'7. At. Adm'!$B11","v":0}]
["Representação:",{"$f":"'7. At. Adm'!$B12","v":0}]
["Vigência:",{"$f":"'7. At. Adm'!$B13","v":0}]
["Representação:",{"$f":"'7. At. Adm'!$B14","v":0}]
["Vigência:",{"$f":"'7. At. Adm'!$B15","v":0}]
["7.3. Representação Externa à UFBA"]
["Representação:",{"$f":"'7. At. Adm'!$B17","v":0}]
["Vigência:",{"$f":"'7. At. Adm'!$B18","v":0}]
["Representação:",{"$f":"'7. At. Adm'!$B19","v":0}]
["Vigência:",{"$f":"'7. At. Adm'!$B20","v":0}]
["Representação:",{"$f":"'7. At. Adm'!$B21","v":0}]
["Vigência:",{"$f":"'7. At. Adm'!$B22","v":0}]
["Representação:",{"$f":"'7. At. Adm'!$B23","v":0}]
["Vigência:",{"$f":"'7. At. Adm'!$B24","v":0}]
["7.4. Participação em Comissão "]
["Descrição:",{"$f":"'7. At. Adm'!$B26","v":0}]
["7.5. Outras atividades administrativas definidas pela Instituição "]
["Descrição:",{"$f":"'7. At. Adm'!$B28","v":0}]
["8. PARTICIPAÇÃO EM EVENTOS"]
["8.1. Coordenação geral (identificar se possui relação com pesquisa e qual)"]
["Descrição:",{"$f":"'8. Eventos'!$A4","v":0}]
["8.2. Participação de comissão organizadora (identificar se possui relação com pesquisa e qual)"]
["Descrição:",{"$f":"'8. Eventos'!$A6","v":0}]
["8.3. Participação em comitê científico"]
["Descrição:",{"$f":"'8. Eventos'!$A8","v":0}]
["8.4. Apresentação de palestra ou conferência (identificar se possui relação com pesquisa e qual)"]
["Descrição:",{"$f":"'8. Eventos'!$A10","v":0}]
["8.5. Coordenação de mesa "]
["Descrição:",{"$f":"'8. Eventos'!$A12","v":0}]
["8.6.  Participação de mesa como debatedor"]
["Descrição:",{"$f":"'8. Eventos'!$A14","v":0}]
["8.7. Apresentação de comunicação  (identificar se possui relação com pesquisa e qual)"]
["Descrição:",{"$f":"'8. Eventos'!$A16","v":0}]
["8.8. Participação em workshop ou similar"]
["Descrição:",{"$f":"'8. Eventos'!$A18","v":0}]
["8.9. Ouvinte (institucional)"]
["Descrição:",{"$f":"'8. Eventos'!$A20","v":0}]
["9. PARTICIPAÇÃO EM BANCAS EXAMINADORAS"]
["9.1. Trabalho Final de Graduação – TFG"]
["Descrição:",{"$f":"'9. Bancas'!$A3","v":0}]
["9.2. Dissertação de Mestrado"]
["Descrição:",{"$f":"'9. Bancas'!$A5","v":0}]
["9.3. Tese de Doutorado"]
["Descrição:",{"$f":"'9. Bancas'!$A7","v":0}]
["9.4. Concurso "]
["Descrição:",{"$f":"'9. Bancas'!$A9","v":0}]
["9.5. Processos seletivos na UFBA "]
["Descrição:",{"$f":"'9. Bancas'!$A11","v":0}]
["10. MEMBRO DE CORPO EDITORIAL E REVISOR DE PERIÓDICO"]
["10.1. Membro de corpo editorial"]
["Descrição:",{"$f":"'10. Periód'!$A3","v":0}]
["10.2. Revisor de periódico"]
["Descrição:",{"$f":"'10. Periód'!$A5","v":0}]
["11. INFORMAÇÕES COMPLEMENTARES"]
["Descrição:",{"$f":"'11. Info. Compl.'!$B2","v":0}]
["12. LOCAL/ DATA","13. ASSINATURA"]
[{"$f":"'11. Info. Compl.'!$A4","v":"Salvador, xx de dezembro de 2020"},{"$f":"'11. Info. Compl.'!$B4","v":0}]

{"sheet":"Planilha Síntese","index":12,"n_rows":13,"n_cols":1217,"rows_kept":13,"cut":false,"hidden":false,"merged":[[3,1213,5,1213],[3,1214,5,1214],[3,1208,5,1208],[3,1209,5,1209],[3,1210,5,1210],[3,1211,5,1211],[3,1212,5,1212],[3,1202,5,1202],[3,1203,5,1203],[3,1204,5,1204],[3,1205,5,1205],[3,1207,5,1207],[3,1206,5,1206],[4,1167,4,1168],[4,1165,4,1166],[4,1163,4,1164],[3,1169,5,1169],[3,1170,5,1170],[3,246,4,553],[3,574,4,576],[2,574,2,1139],[3,577,4,579],[3,580,4,582],[4,808,4,1037],[3,1138,5,1138],[3,1038,3,1137],[4,38,4,49],[4,50,4,61],[3,38,3,61],[3,62,4,225],[3,226,4,245],[3,6,3,37],[4,6,4,21],[4,22,4,37],[2,1215,5,1215],[2,1216,5,1216],[2,1208,2,1212],[2,1213,2,1214],[2,1199,2,1207],[2,1177,2,1198],[3,1177,4,1180],[3,1181,4,1188],[3,1197,5,1197],[3,1198,5,1198],[3,1199,5,1199],[3,1200,5,1200],[3,1201,5,1201],[2,1169,2,1176],[3,1189,4,1196],[3,1171,5,1171],[3,1172,5,1172],[3,1173,5,1173],[3,1174,5,1174],[3,1175,5,1175],[3,1176,5,1176],[4,1144,4,1145],[4,1149,4,1150],[4,1151,4,1152],[4,1153,4,1154],[4,1140,4,1141],[4,1142,4,1143],[0,0,0,5],[1,0,1,2],[3,0,5,0],[3,1,5,1],[3,2,5,2],[3,3,5,3],[3,4,5,4],[3,5,5,5],[4,1155,4,1156],[4,1157,4,1158],[4,1159,4,1160],[4,1161,4,1162],[2,0,2,5],[2,1140,2,1168],[3,1140,3,1148],[3,1149,3,1168],[3,554,4,573],[2,6,2,61],[2,185,2,573],[3,1139,5,1139],[4,1038,4,1087],[4,1088,4,1137],[4,583,4,807],[3,583,3,1037]]}
["RELATÓRIO INDIVIDUAL DE TRABALHO"]
["Interstício:",null,null,2020]
["1. IDENTIFICAÇÃO",null,null,null,null,null,"2. ATIVIDADES DE ENSINO",null,null,null,null,null,null,null,null,null,null,null,null,null,null,null,null,null,null,null,null,null,null,null,null,null,null,null,null,null,null,null,null,null,null,null,null,null,null,null,null,null,null,null,null,null,null,null,null,null,null,null,null,null,null,null,null,null,null,null,null,null,null,null,null,null,null,null,null,null,null,null,null,null,null,null,null,null,null,null,null,null,null,null,null,null,null,null,null,null,null,null,null,null,null,null,null,null,null,null,null,null,null,null,null,null,null,null,null,null,null,null,null,null,null,null,null,null,null,null,null,null,null,null,null,null,null,null,null,null,null,null,null,null,null,null,null,null,null,null,null,null,null,null,null,null,null,null,null,null,null,null,null,null,null,null,null,null,null,null,null,null,null,null,null,null,null,null,null,null,null,null,null,null,null,null,null,null,null,"3. ATIVIDADES DE EXTENSÃO",null,null,null,null,null,null,null,null,null,null,null,null,null,null,null,null,null,null,null,null,null,null,null,null,null,null,null,null,null,null,null,null,null,null,null,null,null,null,null,null,null,null,null,null,null,null,null,null,null,null,null,null,null,null,null,null,null,null,null,null,null,null,null,null,null,null,null,null,null,null,null,null,null,null,null,null,null,null,null,null,null,null,null,null,null,null,null,null,null,null,null,null,null,null,null,null,null,null,null,null,null,null,null,null,null,null,null,null,null,null,null,null,null,null,null,null,null,null,null,null,null,null,null,null,null,null,null,null,null,null,null,null,null,null,null,null,null,null,null,null,null,null,null,null,null,null,null,null,null,null,null,null,null,null,null,null,null,null,null,null,null,null,null,null,null,null,null,null,null,null,null,null,null,null,null,null,null,null,null,null,null,null,null,null,null,null,null,null,null,null,null,null,null,null,null,null,null,null,null,null,null,null,null,null,null,null,null,null,null,null,null,null,null,null,null,null,null,null,null,null,null,null,null,null,null,null,null,null,null,null,null,null,null,null,null,null,null,null,null,null,null,null,null,null,null,null,null,null,null,null,null,null,null,null,null,null,null,null,null,null,null,null,null,null,null,null,null,null,null,null,null,null,null,null,null,null,null,null,null,null,null,null,null,null,null,null,null,null,null,null,null,null,null,null,null,null,null,null,null,null,null,null,null,null,null,null,null,null,null,null,null,null,null,null,null,null,null,null,null,null,null,null,null,null,null,null,null,null,null,null,null,null,null,null,null,null,null,null,null,null,null,null,null,null,null,null,null,null,null,null,null,null,null,null,null,null,null,null,null,null,null,null,null,null,null,null,null,null,null,null,null,null,null,null,null,null,null,null,null,null,null,null,null,null,null,null,null,null,"4. ATIVIDADES DE PESQUISA",null,null,null,null,null,null,null,null,null,null,null,null,null,null,null,null,null,null,null,null,null,null,null,null,null,null,null,null,null,null,null,null,null,null,null,null,null,null,null,null,null,null,null,null,null,null,null,null,null,null,null,null,null,null,null,null,null,null,null,null,null,null,null,null,null,null,null,null,null,null,null,null,null,null,null,null,null,null,null,null,null,null,null,null,null,null,null,null,null,null,null,null,null,null,null,null,null,null,null,null,null,null,null,null,null,null,null,null,null,null,null,null,null,null,null,null,null,null,null,null,null,null,null,null,null,null,null,null,null,null,null,null,null,null,null,null,null,null,null,null,null,null,null,null,null,null,null,null,null,null,null,null,null,null,null,null,null,null,null,null,null,null,null,null,null,null,null,null,null,null,null,null,null,null,null,null,null,null,null,null,null,null,null,null,null,null,null,null,null,null,null,null,null,null,null,null,null,null,null,null,null,null,null,null,null,null,null,null,null,null,null,null,null,null,null,null,null,null,null,null,null,null,null,null,null,null,null,null,null,null,null,null,null,null,null,null,null,null,null,null,null,null,null,null,null,null,null,null,null,null,null,null,null,null,null,null,null,null,null,null,null,null,null,null,null,null,null,null,null,null,null,null,null,null,null,null,null,null,null,null,null,null,null,null,null,null,null,null,null,null,null,null,null,null,null,null,null,null,null,null,null,null,null,null,null,null,null,null,null,null,null,null,null,null,null,null,null,null,null,null,null,null,null,null,null,null,null,null,null,null,null,null,null,null,null,null,null,null,null,null,null,null,null,null,null,null,null,null,null,null,null,null,null,null,null,null,null,null,null,null,null,null,null,null,null,null,null,null,null,null,null,null,null,null,null,null,null,null,null,null,null,null,null,null,null,null,null,null,null,null,null,null,null,null,null,null,null,null,null,null,null,null,null,null,null,null,null,null,null,null,null,null,null,null,null,null,null,null,null,null,null,null,null,null,null,null,null,null,null,null,null,null,null,null,null,null,null,null,null,null,null,null,null,null,null,null,null,null,null,null,null,null,null,null,null,null,null,null,null,null,null,null,null,null,null,null,null,null,null,null,null,null,null,null,null,null,null,null,null,null,null,null,null,null,null,null,null,null,null,null,null,null,null,null,null,null,null,null,null,null,null,null,null,null,null,null,null,null,null,null,null,null,null,null,null,null,null,null,null,null,null,null,null,null,null,null,null,null,null,null,null,null,null,null,null,null,null,null,null,null,null,null,null,null,null,null,null,null,null,null,null,null,null,null,null,null,null,null,null,null,null,null,null,null,null,"5. ATIVIDADE DE ORIENTAÇÃO",null,null,null,null,null,null,null,null,null,null,null,null,null,null,null,null,null,null,null,null,null,null,null,null,null,null,null,null,"6. PRODUÇÃO ACADÊMICA (preencher seguindo a norma ABNT 6023_2018; indicar claramente todos os autores envolvidos, em ordem de autoria; e identificar se a produção tem relação com alguma pesquisa e com qual)",null,null,null,null,null,null,null,"7. ATIVIDADES ADMINISTRATIVAS",null,null,null,null,null,null,null,null,null,null,null,null,null,null,null,null,null,null,null,null,null,"8. PARTICIPAÇÃO EM EVENTOS",null,null,null,null,null,null,null,null,"9. PARTICIPAÇÃO EM BANCAS EXAMINADORAS",null,null,null,null,"10. MEMBRO DE CORPO EDITORIAL E REVISOR DE PERIÓDICO",null,"11. INFORMAÇÕES COMPLEMENTARES","12. LOCAL/ DATA"]
["Docente:","Regime de Trabalho: ","Graduação - Classe e Nível:","SIAPE:","Núcleo(s):","Programa(s) de Pós-Graduação ao qual está vinculado(a) e vínculo","2.1. Aulas presenciais na graduação",null,null,null,null,null,null,null,null,null,null,null,null,null,null,null,null,null,null,null,null,null,null,null,null,null,null,null,null,null,null,null,"2.2. Aulas presenciais na pós-graduação",null,null,null,null,null,null,null,null,null,null,null,null,null,null,null,null,null,null,null,null,null,null,null,"3.1. Coordenação de projetos de extensão de caráter permanente",null,null,null,null,null,null,null,null,null,null,null,null,null,null,null,null,null,null,null,null,null,null,null,null,null,null,null,null,null,null,null,null,null,null,null,null,null,null,null,null,null,null,null,null,null,null,null,null,null,null,null,null,null,null,null,null,null,null,null,null,null,null,null,null,null,null,null,null,null,null,null,null,null,null,null,null,null,null,null,null,null,null,null,null,null,null,null,null,null,null,null,null,null,null,null,null,null,null,null,null,null,null,null,null,null,null,null,null,null,null,null,null,null,null,null,null,null,null,null,null,null,null,null,null,null,null,null,null,null,null,null,null,null,null,null,null,null,null,null,null,null,null,null,null,null,null,null,null,null,null,null,null,null,null,null,null,null,null,null,null,null,null,null,"3.2. Participação em projetos de extensão de caráter permanente",null,null,null,null,null,null,null,null,null,null,null,null,null,null,null,null,null,null,null,"3.3. Coordenação de projetos de extensão de caráter eventual",null,null,null,null,null,null,null,null,null,null,null,null,null,null,null,null,null,null,null,null,null,null,null,null,null,null,null,null,null,null,null,null,null,null,null,null,null,null,null,null,null,null,null,null,null,null,null,null,null,null,null,null,null,null,null,null,null,null,null,null,null,null,null,null,null,null,null,null,null,null,null,null,null,null,null,null,null,null,null,null,null,null,null,null,null,null,null,null,null,null,null,null,null,null,null,null,null,null,null,null,null,null,null,null,null,null,null,null,null,null,null,null,null,null,null,null,null,null,null,null,null,null,null,null,null,null,null,null,null,null,null,null,null,null,null,null,null,null,null,null,null,null,null,null,null,null,null,null,null,null,null,null,null,null,null,null,null,null,null,null,null,null,null,null,null,null,null,null,null,null,null,null,null,null,null,null,null,null,null,null,null,null,null,null,null,null,null,null,null,null,null,null,null,null,null,null,null,null,null,null,null,null,null,null,null,null,null,null,null,null,null,null,null,null,null,null,null,null,null,null,null,null,null,null,null,null,null,null,null,null,null,null,null,null,null,null,null,null,null,null,null,null,null,null,null,null,null,null,null,null,null,null,null,null,null,null,null,null,null,null,null,null,null,null,null,null,null,null,null,null,null,null,null,null,null,null,null,null,null,null,null,null,null,null,null,null,null,null,null,null,null,null,null,null,null,null,null,null,null,null,null,null,null,null,null,null,null,"3.4. Participação em projetos de extensão de caráter eventual",null,null,null,null,null,null,null,null,null,null,null,null,null,null,null,null,null,null,null,"4.1. Coordenação de grupo de pesquisa registrado no CNPq",null,null,"4.2. Participação em grupo(s) de pesquisa registrado(s) no CNPq – informar o(s) nome(s) do(s) grupo(s)",null,null,"4.3. Coordenação de laboratório",null,null,"4.4. Coordenação de projetos de pesquisas",null,null,null,null,null,null,null,null,null,null,null,null,null,null,null,null,null,null,null,null,null,null,null,null,null,null,null,null,null,null,null,null,null,null,null,null,null,null,null,null,null,null,null,null,null,null,null,null,null,null,null,null,null,null,null,null,null,null,null,null,null,null,null,null,null,null,null,null,null,null,null,null,null,null,null,null,null,null,null,null,null,null,null,null,null,null,null,null,null,null,null,null,null,null,null,null,null,null,null,null,null,null,null,null,null,null,null,null,null,null,null,null,null,null,null,null,null,null,null,null,null,null,null,null,null,null,null,null,null,null,null,null,null,null,null,null,null,null,null,null,null,null,null,null,null,null,null,null,null,null,null,null,null,null,null,null,null,null,null,null,null,null,null,null,null,null,null,null,null,null,null,null,null,null,null,null,null,null,null,null,null,null,null,null,null,null,null,null,null,null,null,null,null,null,null,null,null,null,null,null,null,null,null,null,null,null,null,null,null,null,null,null,null,null,null,null,null,null,null,null,null,null,null,null,null,null,null,null,null,null,null,null,null,null,null,null,null,null,null,null,null,null,null,null,null,null,null,null,null,null,null,null,null,null,null,null,null,null,null,null,null,null,null,null,null,null,null,null,null,null,null,null,null,null,null,null,null,null,null,null,null,null,null,null,null,null,null,null,null,null,null,null,null,null,null,null,null,null,null,null,null,null,null,null,null,null,null,null,null,null,null,null,null,null,null,null,null,null,null,null,null,null,null,null,null,null,null,null,null,null,null,null,null,null,null,null,null,null,null,null,null,null,null,null,null,null,null,null,null,null,null,null,null,null,null,null,null,null,null,null,null,null,null,null,null,null,null,null,null,null,null,null,null,null,null,null,null,null,null,null,null,null,null,null,null,null,null,null,null,null,null,null,null,null,null,null,null,null,null,null,null,null,null,null,null,null,null,null,null,null,null,null,null,null,null,null,null,null,null,null,null,null,null,null,null,null,null,null,null,null,null,null,null,null,null,null,null,null,null,null,null,null,null,null,null,null,null,null,null,null,null,null,null,null,"4.5. Participação em projetos de pesquisas",null,null,null,null,null,null,null,null,null,null,null,null,null,null,null,null,null,null,null,null,null,null,null,null,null,null,null,null,null,null,null,null,null,null,null,null,null,null,null,null,null,null,null,null,null,null,null,null,null,null,null,null,null,null,null,null,null,null,null,null,null,null,null,null,null,null,null,null,null,null,null,null,null,null,null,null,null,null,null,null,null,null,null,null,null,null,null,null,null,null,null,null,null,null,null,null,null,null,null,"4.6. Consultorias, assessorias e assistências técnicas vinculadas às pesquisas","4.7. Interfaces entre pesquisa/extensão e ensino (Criação, articulação ou promoção relacionada à pesquisa: de disciplinas, projetos de extensão, de Grupos ou linhas de pesquisa, de jornais, revistas, plataformas, observatórios, promoção de Seminários / eventos, debates em rede, grupos de estudos, outros)","5.1. Orientação de estudantes de graduação:",null,null,null,null,null,null,null,null,"5.2. Orientação de estudantes de pós-graduação ",null,null,null,null,null,null,null,null,null,null,null,null,null,null,null,null,null,null,null,"6.1. Autoria ou co-autoria de livro especializado (colocar ISBN)","6.2. Organização de livro (colocar ISBN)","6.3. Capítulo de Livro (colocar ISBN)","6.4. Publicação de artigo em periódico especializado em autoria ou co-autoria (colocar ISSN)","6.5. Publicação de trabalhos completos em anais de congressos ou simpósios, suplementos de periódicos ou cadernos especiais de jornais, na área de atuação do docente  em autoria ou co-autoria (colocar ISBN)","6.6. Obras artísticas, cientificas, técnicas ou outras na área de atuação do docente em autoria ou co-autoria","6.7. Publicações em sites e blogs na área de atuação do docente em autoria ou co-autoria","6.8. Formatação e/ou alimentação de sites vinculados às pesquisas individualmente ou em grupo","7.1. Exercício de cargo ",null,null,null,"7.2. Representação Interna",null,null,null,null,null,null,null,"7.3. Representação Externa à UFBA",null,null,null,null,null,null,null,"7.4. Participação em Comissão ","7.5. Outras atividades administrativas definidas pela Instituição ","8.1. Coordenação geral (identificar se possui relação com pesquisa e qual)","8.2. Participação de comissão organizadora (identificar se possui relação com pesquisa e qual)","8.3. Participação em comitê científico","8.4. Apresentação de palestra ou conferência (identificar se possui relação com pesquisa e qual)","8.5. Coordenação de mesa ","8.6.  Participação de mesa como debatedor","8.7. Apresentação de comunicação  (identificar se possui relação com pesquisa e qual)","8.8. Participação em workshop ou similar","8.9. Ouvinte (institucional)","9.1. Trabalho Final de Graduação – TFG","9.2. Dissertação de Mestrado","9.3. Tese de Doutorado","9.4. Concurso ","9.5. Processos seletivos na UFBA ","10.1. Membro de corpo editorial","10.2. Revisor de periódico"]
[null,null,null,null,null,null,"2020.1",null,null,null,null,null,null,null,null,null,null,null,null,null,null,null,"2019.2",null,null,null,null,null,null,null,null,null,null,null,null,null,null,null,"2019.1",null,null,null,null,null,null,null,null,null,null,null,"2019.2",null,null,null,null,null,null,null,null,null,null,null,null,null,null,null,null,null,null,null,null,null,null,null,null,null,null,null,null,null,null,null,null,null,null,null,null,null,null,null,null,null,null,null,null,null,null,null,null,null,null,null,null,null,null,null,null,null,null,null,null,null,null,null,null,null,null,null,null,null,null,null,null,null,null,null,null,null,null,null,null,null,null,null,null,null,null,null,null,null,null,null,null,null,null,null,null,null,null,null,null,null,null,null,null,null,null,null,null,null,null,null,null,null,null,null,null,null,null,null,null,null,null,null,null,null,null,null,null,null,null,null,null,null,null,null,null,null,null,null,null,null,null,null,null,null,null,null,null,null,null,null,null,null,null,null,null,null,null,null,null,null,null,null,null,null,null,null,null,null,null,null,null,null,null,null,null,null,null,null,null,null,null,null,null,null,null,null,null,null,null,null,null,null,null,null,null,null,null,null,null,null,null,null,null,null,null,null,null,null,null,null,null,null,null,null,null,null,null,null,null,null,null,null,null,null,null,null,null,null,null,null,null,null,null,null,null,null,null,null,null,null,null,null,null,null,null,null,null,null,null,null,null,null,null,null,null,null,null,null,null,null,null,null,null,null,null,null,null,null,null,null,null,null,null,null,null,null,null,null,null,null,null,null,null,null,null,null,null,null,null,null,null,null,null,null,null,null,null,null,null,null,null,null,null,null,null,null,null,null,null,null,null,null,null,null,null,null,null,null,null,null,null,null,null,null,null,null,null,null,null,null,null,null,null,null,null,null,null,null,null,null,null,null,null,null,null,null,null,null,null,null,null,null,null,null,null,null,null,null,null,null,null,null,null,null,null,null,null,null,null,null,null,null,null,null,null,null,null,null,null,null,null,null,null,null,null,null,null,null,null,null,null,null,null,null,null,null,null,null,null,null,null,null,null,null,null,null,null,null,null,null,null,null,null,null,null,null,null,null,null,null,null,null,null,null,null,null,null,null,null,null,null,null,null,null,null,null,null,null,null,null,null,null,null,null,null,null,null,null,null,null,null,null,null,null,null,null,null,null,null,null,null,null,null,null,null,null,null,null,null,null,null,null,null,null,null,null,null,null,null,null,null,null,null,null,null,null,null,null,null,null,null,null,null,null,null,null,null,null,null,null,null,null,null,null,null,null,null,null,null,null,null,null,null,null,null,null,null,null,null,null,null,null,null,null,null,null,null,null,null,null,null,"4.4.1. Coordenação de pesquisas em andamento.",null,null,null,null,null,null,null,null,null,null,null,null,null,null,null,null,null,null,null,null,null,null,null,null,null,null,null,null,null,null,null,null,null,null,null,null,null,null,null,null,null,null,null,null,null,null,null,null,null,null,null,null,null,null,null,null,null,null,null,null,null,null,null,null,null,null,null,null,null,null,null,null,null,null,null,null,null,null,null,null,null,null,null,null,null,null,null,null,null,null,null,null,null,null,null,null,null,null,null,null,null,null,null,null,null,null,null,null,null,null,null,null,null,null,null,null,null,null,null,null,null,null,null,null,null,null,null,null,null,null,null,null,null,null,null,null,null,null,null,null,null,null,null,null,null,null,null,null,null,null,null,null,null,null,null,null,null,null,null,null,null,null,null,null,null,null,null,null,null,null,null,null,null,null,null,null,null,null,null,null,null,null,null,null,null,null,null,null,null,null,null,null,null,null,null,null,null,null,null,null,null,null,null,null,null,null,null,null,null,null,null,null,null,null,null,null,null,null,null,null,null,null,null,null,"4.4.2. Coordenação de pesquisas finalizadas em 2019",null,null,null,null,null,null,null,null,null,null,null,null,null,null,null,null,null,null,null,null,null,null,null,null,null,null,null,null,null,null,null,null,null,null,null,null,null,null,null,null,null,null,null,null,null,null,null,null,null,null,null,null,null,null,null,null,null,null,null,null,null,null,null,null,null,null,null,null,null,null,null,null,null,null,null,null,null,null,null,null,null,null,null,null,null,null,null,null,null,null,null,null,null,null,null,null,null,null,null,null,null,null,null,null,null,null,null,null,null,null,null,null,null,null,null,null,null,null,null,null,null,null,null,null,null,null,null,null,null,null,null,null,null,null,null,null,null,null,null,null,null,null,null,null,null,null,null,null,null,null,null,null,null,null,null,null,null,null,null,null,null,null,null,null,null,null,null,null,null,null,null,null,null,null,null,null,null,null,null,null,null,null,null,null,null,null,null,null,null,null,null,null,null,null,null,null,null,null,null,null,null,null,null,null,null,null,null,null,null,null,null,null,null,null,null,null,null,null,null,null,null,null,null,null,null,null,null,null,null,"4.5.1. Participação de pesquisas em andamento.",null,null,null,null,null,null,null,null,null,null,null,null,null,null,null,null,null,null,null,null,null,null,null,null,null,null,null,null,null,null,null,null,null,null,null,null,null,null,null,null,null,null,null,null,null,null,null,null,null,"4.5.2. Participação de pesquisas finalizadas em 2019",null,null,null,null,null,null,null,null,null,null,null,null,null,null,null,null,null,null,null,null,null,null,null,null,null,null,null,null,null,null,null,null,null,null,null,null,null,null,null,null,null,null,null,null,null,null,null,null,null,null,null,"TFG:",null,"Coorientação TFG:",null,"Monitoria:",null,"PIBIC e afins:","Extensão:","Voluntários e colaboradores:","Doutorado:",null,"Coorientação Doutorado:",null,"Mestrado:",null,"Coorientação Mestrado:",null,"Mestrado Profissional:",null,"Coorientação Mestrado Profissional:",null,"Residência:",null,"Coorientação Residência:",null,"Tirocínio Docente:",null,"Tutor:"]
[null,null,null,null,null,null,"Código e nome da disciplina:","Número de turmas: ","Carga horária semanal:","Carga horária semestral:","Código e nome da disciplina:","Número de turmas: ","Carga horária semanal:","Carga horária semestral:","Código e nome da disciplina:","Número de turmas: ","Carga horária semanal:","Carga horária semestral:","Código e nome da disciplina:","Número de turmas: ","Carga horária semanal:","Carga horária semestral:","Código e nome da disciplina:","Número de turmas: ","Carga horária semanal:","Carga horária semestral:","Código e nome da disciplina:","Número de turmas: ","Carga horária semanal:","Carga horária semestral:","Código e nome da disciplina:","Número de turmas: ","Carga horária semanal:","Carga horária semestral:","Código e nome da disciplina:","Número de turmas: ","Carga horária semanal:","Carga horária semestral:","Código e nome da disciplina:","Número de turmas: ","Carga horária semanal:","Carga horária semestral:","Código e nome da disciplina:","Número de turmas: ","Carga horária semanal:","Carga horária semestral:","Código e nome da disciplina:","Número de turmas: ","Carga horária semanal:","Carga horária semestral:","Código e nome da disciplina:","Número de turmas: ","Carga horária semanal:","Carga horária semestral:","Código e nome da disciplina:","Número de turmas: ","Carga horária semanal:","Carga horária semestral:","Código e nome da disciplina:","Número de turmas: ","Carga horária semanal:","Carga horária semestral:","Projeto:","Datas de início e fim (mês / ano):","Carga horária semanal:","Carga horária total:","Relação com Projeto de Pesquisa e/ou Atividade de Ensino? Qual?","Nome:","Tipo:","E-mail:","CPF (apenas para aluno de graduação):","Período de vinculação (mês/ano):","Tipo de bolsa (quando aplicável):","Nome:","Tipo:","E-mail:","CPF (apenas para aluno de graduação):","Período de vinculação (mês/ano):","Tipo de bolsa (quando aplicável):","Nome:","Tipo:","E-mail:","CPF (apenas para aluno de graduação):","Período de vinculação (mês/ano):","Tipo de bolsa (quando aplicável):","Nome:","Tipo:","E-mail:","CPF (apenas para aluno de graduação):","Período de vinculação (mês/ano):","Tipo de bolsa (quando aplicável):","Nome:","Tipo:","E-mail:","CPF (apenas para aluno de graduação):","Período de vinculação (mês/ano):","Tipo de bolsa (quando aplicável):","Nome:","Tipo:","E-mail:","CPF (apenas para aluno de graduação):","Período de vinculação (mês/ano):","Tipo de bolsa (quando aplicável):","Projeto:","Datas de início e fim (mês / ano):","Carga horária semanal:","Carga horária total:","Relação com Projeto de Pesquisa e/ou Atividade de Ensino? Qual?","Nome:","Tipo:","E-mail:","CPF (apenas para aluno de graduação):","Período de vinculação (mês/ano):","Tipo de bolsa (quando aplicável):","Nome:","Tipo:","E-mail:","CPF (apenas para aluno de graduação):","Período de vinculação (mês/ano):","Tipo de bolsa (quando aplicável):","Nome:","Tipo:","E-mail:","CPF (apenas para aluno de graduação):","Período de vinculação (mês/ano):","Tipo de bolsa (quando aplicável):","Nome:","Tipo:","E-mail:","CPF (apenas para aluno de graduação):","Período de vinculação (mês/ano):","Tipo de bolsa (quando aplicável):","Nome:","Tipo:","E-mail:","CPF (apenas para aluno de graduação):","Período de vinculação (mês/ano):","Tipo de bolsa (quando aplicável):","Nome:","Tipo:","E-mail:","CPF (apenas para aluno de graduação):","Período de vinculação (mês/ano):","Tipo de bolsa (quando aplicável):","Projeto:","Datas de início e fim (mês / ano):","Carga horária semanal:","Carga horária total:","Relação com Projeto de Pesquisa e/ou Atividade de Ensino? Qual?","Nome:","Tipo:","E-mail:","CPF (apenas para aluno de graduação):","Período de vinculação (mês/ano):","Tipo de bolsa (quando aplicável):","Nome:","Tipo:","E-mail:","CPF (apenas para aluno de graduação):","Período de vinculação (mês/ano):","Tipo de bolsa (quando aplicável):","Nome:","Tipo:","E-mail:","CPF (apenas para aluno de graduação):","Período de vinculação (mês/ano):","Tipo de bolsa (quando aplicável):","Nome:","Tipo:","E-mail:","CPF (apenas para aluno de graduação):","Período de vinculação (mês/ano):","Tipo de bolsa (quando aplicável):","Nome:","Tipo:","E-mail:","CPF (apenas para aluno de graduação):","Período de vinculação (mês/ano):","Tipo de bolsa (quando aplicável):","Nome:","Tipo:","E-mail:","CPF (apenas para aluno de graduação):","Período de vinculação (mês/ano):","Tipo de bolsa (quando aplicável):","Projeto:","Datas de início e fim (mês / ano):","Carga horária semanal:","Carga horária total:","Relação com Projeto de Pesquisa e/ou Atividade de Ensino? Qual?","Nome:","Tipo:","E-mail:","CPF (apenas para aluno de graduação):","Período de vinculação (mês/ano):","Tipo de bolsa (quando aplicável):","Nome:","Tipo:","E-mail:","CPF (apenas para aluno de graduação):","Período de vinculação (mês/ano):","Tipo de bolsa (quando aplicável):","Nome:","Tipo:","E-mail:","CPF (apenas para aluno de graduação):","Período de vinculação (mês/ano):","Tipo de bolsa (quando aplicável):","Nome:","Tipo:","E-mail:","CPF (apenas para aluno de graduação):","Período de vinculação (mês/ano):","Tipo de bolsa (quando aplicável):","Nome:","Tipo:","E-mail:","CPF (apenas para aluno de graduação):","Período de vinculação (mês/ano):","Tipo de bolsa (quando aplicável):","Nome:","Tipo:","E-mail:","CPF (apenas para aluno de graduação):","Período de vinculação (mês/ano):","Tipo de bolsa (quando aplicável):","Projeto:","Datas de início e fim (mês / ano):","Carga horária semanal:","Carga horária total:","Relação com Projeto de Pesquisa e/ou Atividade de Ensino? Qual?","Projeto:","Datas de início e fim (mês / ano):","Carga horária semanal:","Carga horária total:","Relação com Projeto de Pesquisa e/ou Atividade de Ensino? Qual?","Projeto:","Datas de início e fim (mês / ano):","Carga horária semanal:","Carga horária total:","Relação com Projeto de Pesquisa e/ou Atividade de Ensino? Qual?","Projeto:","Datas de início e fim (mês / ano):","Carga horária semanal:","Carga horária total:","Relação com Projeto de Pesquisa e/ou Atividade de Ensino? Qual?","Projeto:","Datas de início e fim (mês / ano):","Carga horária semanal:","Carga horária total:","Relação com Projeto de Pesquisa e/ou Atividade de Ensino? Qual?","Nome:","Tipo:","E-mail:","CPF (apenas para aluno de graduação):","Período de vinculação (mês/ano):","Tipo de bolsa (quando aplicável):","Nome:","Tipo:","E-mail:","CPF (apenas para aluno de graduação):","Período de vinculação (mês/ano):","Tipo de bolsa (quando aplicável):","Nome:","Tipo:","E-mail:","CPF (apenas para aluno de graduação):","Período de vinculação (mês/ano):","Tipo de bolsa (quando aplicável):","Nome:","Tipo:","E-mail:","CPF (apenas para aluno de graduação):","Período de vinculação (mês/ano):","Tipo de bolsa (quando aplicável):","Nome:","Tipo:","E-mail:","CPF (apenas para aluno de graduação):","Período de vinculação (mês/ano):","Tipo de bolsa (quando aplicável):","Nome:","Tipo:","E-mail:","CPF (apenas para aluno de graduação):","Período de vinculação (mês/ano):","Tipo de bolsa (quando aplicável):","Nome:","Tipo:","E-mail:","CPF (apenas para aluno de graduação):","Período de vinculação:","Tipo de bolsa (quando aplicável):","Nome:","Tipo:","E-mail:","CPF (apenas para aluno de graduação):","Período de vinculação:","Tipo de bolsa (quando aplicável):","Nome:","Tipo:","E-mail:","CPF (apenas para aluno de graduação):","Período de vinculação:","Tipo de bolsa (quando aplicável):","Nome:","Tipo:","E-mail:","CPF (apenas para aluno de graduação):","Período de vinculação:","Tipo de bolsa (quando aplicável):","Nome:","Tipo:","E-mail:","CPF (apenas para aluno de graduação):","Período de vinculação:","Tipo de bolsa (quando aplicável):","Nome:","Tipo:","E-mail:","CPF (apenas para aluno de graduação):","Período de vinculação:","Tipo de bolsa (quando aplicável):","Projeto:","Datas de início e fim (mês / ano):","Carga horária semanal:","Carga horária total:","Relação com Projeto de Pesquisa e/ou Atividade de Ensino? Qual?","Nome:","Tipo:","E-mail:","CPF (apenas para aluno de graduação):","Período de vinculação (mês/ano):","Tipo de bolsa (quando aplicável):","Nome:","Tipo:","E-mail:","CPF (apenas para aluno de graduação):","Período de vinculação (mês/ano):","Tipo de bolsa (quando aplicável):","Nome:","Tipo:","E-mail:","CPF (apenas para aluno de graduação):","Período de vinculação (mês/ano):","Tipo de bolsa (quando aplicável):","Nome:","Tipo:","E-mail:","CPF (apenas para aluno de graduação):","Período de vinculação (mês/ano):","Tipo de bolsa (quando aplicável):","Nome:","Tipo:","E-mail:","CPF (apenas para aluno de graduação):","Período de vinculação (mês/ano):","Tipo de bolsa (quando aplicável):","Nome:","Tipo:","E-mail:","CPF (apenas para aluno de graduação):","Período de vinculação (mês/ano):","Tipo de bolsa (quando aplicável):","Nome:","Tipo:","E-mail:","CPF (apenas para aluno de graduação):","Período de vinculação:","Tipo de bolsa (quando aplicável):","Nome:","Tipo:","E-mail:","CPF (apenas para aluno de graduação):","Período de vinculação:","Tipo de bolsa (quando aplicável):","Nome:","Tipo:","E-mail:","CPF (apenas para aluno de graduação):","Período de vinculação:","Tipo de bolsa (quando aplicável):","Nome:","Tipo:","E-mail:","CPF (apenas para aluno de graduação):","Período de vinculação:","Tipo de bolsa (quando aplicável):","Nome:","Tipo:","E-mail:","CPF (apenas para aluno de graduação):","Período de vinculação:","Tipo de bolsa (quando aplicável):","Nome:","Tipo:","E-mail:","CPF (apenas para aluno de graduação):","Período de vinculação:","Tipo de bolsa (quando aplicável):","Projeto:","Datas de início e fim (mês / ano):","Carga horária semanal:","Carga horária total:","Relação com Projeto de Pesquisa e/ou Atividade de Ensino? Qual?","Nome:","Tipo:","E-mail:","CPF (apenas para aluno de graduação):","Período de vinculação (mês/ano):","Tipo de bolsa (quando aplicável):","Nome:","Tipo:","E-mail:","CPF (apenas para aluno de graduação):","Período de vinculação (mês/ano):","Tipo de bolsa (quando aplicável):","Nome:","Tipo:","E-mail:","CPF (apenas para aluno de graduação):","Período de vinculação (mês/ano):","Tipo de bolsa (quando aplicável):","Nome:","Tipo:","E-mail:","CPF (apenas para aluno de graduação):","Período de vinculação (mês/ano):","Tipo de bolsa (quando aplicável):","Nome:","Tipo:","E-mail:","CPF (apenas para aluno de graduação):","Período de vinculação (mês/ano):","Tipo de bolsa (quando aplicável):","Nome:","Tipo:","E-mail:","CPF (apenas para aluno de graduação):","Período de vinculação (mês/ano):","Tipo de bolsa (quando aplicável):","Nome:","Tipo:","E-mail:","CPF (apenas para aluno de graduação):","Período de vinculação:","Tipo de bolsa (quando aplicável):","Nome:","Tipo:","E-mail:","CPF (apenas para aluno de graduação):","Período de vinculação:","Tipo de bolsa (quando aplicável):","Nome:","Tipo:","E-mail:","CPF (apenas para aluno de graduação):","Período de vinculação:","Tipo de bolsa (quando aplicável):","Nome:","Tipo:","E-mail:","CPF (apenas para aluno de graduação):","Período de vinculação:","Tipo de bolsa (quando aplicável):","Nome:","Tipo:","E-mail:","CPF (apenas para aluno de graduação):","Período de vinculação:","Tipo de bolsa (quando aplicável):","Nome:","Tipo:","E-mail:","CPF (apenas para aluno de graduação):","Período de vinculação:","Tipo de bolsa (quando aplicável):","Projeto:","Datas de início e fim (mês / ano):","Carga horária semanal:","Carga horária total:","Relação com Projeto de Pesquisa e/ou Atividade de Ensino? Qual?","Nome:","Tipo:","E-mail:","CPF (apenas para aluno de graduação):","Período de vinculação (mês/ano):","Tipo de bolsa (quando aplicável):","Nome:","Tipo:","E-mail:","CPF (apenas para aluno de graduação):","Período de vinculação (mês/ano):","Tipo de bolsa (quando aplicável):","Nome:","Tipo:","E-mail:","CPF (apenas para aluno de graduação):","Período de vinculação (mês/ano):","Tipo de bolsa (quando aplicável):","Nome:","Tipo:","E-mail:","CPF (apenas para aluno de graduação):","Período de vinculação (mês/ano):","Tipo de bolsa (quando aplicável):","Nome:","Tipo:","E-mail:","CPF (apenas para aluno de graduação):","Período de vinculação (mês/ano):","Tipo de bolsa (quando aplicável):","Nome:","Tipo:","E-mail:","CPF (apenas para aluno de graduação):","Período de vinculação (mês/ano):","Tipo de bolsa (quando aplicável):","Nome:","Tipo:","E-mail:","CPF (apenas para aluno de graduação):","Período de vinculação:","Tipo de bolsa (quando aplicável):","Nome:","Tipo:","E-mail:","CPF (apenas para aluno de graduação):","Período de vinculação:","Tipo de bolsa (quando aplicável):","Nome:","Tipo:","E-mail:","CPF (apenas para aluno de graduação):","Período de vinculação:","Tipo de bolsa (quando aplicável):","Nome:","Tipo:","E-mail:","CPF (apenas para aluno de graduação):","Período de vinculação:","Tipo de bolsa (quando aplicável):","Nome:","Tipo:","E-mail:","CPF (apenas para aluno de graduação):","Período de vinculação:","Tipo de bolsa (quando aplicável):","Nome:","Tipo:","E-mail:","CPF (apenas para aluno de graduação):","Período de vinculação:","Tipo de bolsa (quando aplicável):","Projeto:","Datas de início e fim (mês / ano):","Carga horária semanal:","Carga horária total:","Relação com Projeto de Pesquisa e/ou Atividade de Ensino? Qual?","Projeto:","Datas de início e fim (mês / ano):","Carga horária semanal:","Carga horária total:","Relação com Projeto de Pesquisa e/ou Atividade de Ensino? Qual?","Projeto:","Datas de início e fim (mês / ano):","Carga horária semanal:","Carga horária total:","Relação com Projeto de Pesquisa e/ou Atividade de Ensino? Qual?","Projeto:","Datas de início e fim (mês / ano):","Carga horária semanal:","Carga horária total:","Relação com Projeto de Pesquisa e/ou Atividade de Ensino? Qual?","Nome e descrição do grupo de pesquisa:","Nome e descrição do grupo de pesquisa:","Nome e descrição do grupo de pesquisa:","Nome do grupo de pesquisa e instituição:","Nome do grupo de pesquisa e instituição:","Nome do grupo de pesquisa e instituição:","Nome e descrição do laboratório:","Nome e descrição do laboratório:","Nome e descrição do laboratório:","Pesquisa:","Data de início (mês/ano):","Carga horária semanal:","Vinculado a um ou mais grupos de pesquisa? Quais?","Vinculação institucional:","Outra instutuição (quando aplicável)","Financiamento(s)? Quais?","Cooperações; Redes ou articulações interinstitucionais de pesquisa; Redes formalizadas ou informais? Quais?","Relação com Projeto de Extensão e/ou Atividade de Ensino? Qual?","Nome:","Tipo:","E-mail:","CPF (apenas para aluno de graduação):","Período de vinculação (mês/ano):","Tipo de bolsa (quando aplicável):","Nome:","Tipo:","E-mail:","CPF (apenas para aluno de graduação):","Período de vinculação (mês/ano):","Tipo de bolsa (quando aplicável):","Nome:","Tipo:","E-mail:","CPF (apenas para aluno de graduação):","Período de vinculação (mês/ano):","Tipo de bolsa (quando aplicável):","Nome:","Tipo:","E-mail:","CPF (apenas para aluno de graduação):","Período de vinculação (mês/ano):","Tipo de bolsa (quando aplicável):","Nome:","Tipo:","E-mail:","CPF (apenas para aluno de graduação):","Período de vinculação (mês/ano):","Tipo de bolsa (quando aplicável):","Nome:","Tipo:","E-mail:","CPF (apenas para aluno de graduação):","Período de vinculação (mês/ano):","Tipo de bolsa (quando aplicável):","Pesquisa:","Data de início (mês/ano):","Carga horária semanal:","Vinculado a um ou mais grupos de pesquisa? Quais?","Vinculação institucional:","Outra instutuição (quando aplicável)","Financiamento(s)? Quais?","Cooperações; Redes ou articulações interinstitucionais de pesquisa; Redes formalizadas ou informais? Quais?","Relação com Projeto de Extensão e/ou Atividade de Ensino? Qual?","Nome:","Tipo:","E-mail:","CPF (apenas para aluno de graduação):","Período de vinculação (mês/ano):","Tipo de bolsa (quando aplicável):","Nome:","Tipo:","E-mail:","CPF (apenas para aluno de graduação):","Período de vinculação (mês/ano):","Tipo de bolsa (quando aplicável):","Nome:","Tipo:","E-mail:","CPF (apenas para aluno de graduação):","Período de vinculação (mês/ano):","Tipo de bolsa (quando aplicável):","Nome:","Tipo:","E-mail:","CPF (apenas para aluno de graduação):","Período de vinculação (mês/ano):","Tipo de bolsa (quando aplicável):","Nome:","Tipo:","E-mail:","CPF (apenas para aluno de graduação):","Período de vinculação (mês/ano):","Tipo de bolsa (quando aplicável):","Nome:","Tipo:","E-mail:","CPF (apenas para aluno de graduação):","Período de vinculação (mês/ano):","Tipo de bolsa (quando aplicável):","Pesquisa:","Data de início (mês/ano):","Carga horária semanal:","Vinculado a um ou mais grupos de pesquisa? Quais?","Vinculação institucional:","Outra instutuição (quando aplicável)","Financiamento(s)? Quais?","Cooperações; Redes ou articulações interinstitucionais de pesquisa; Redes formalizadas ou informais? Quais?","Relação com Projeto de Extensão e/ou Atividade de Ensino? Qual?","Nome:","Tipo:","E-mail:","CPF (apenas para aluno de graduação):","Período de vinculação (mês/ano):","Tipo de bolsa (quando aplicável):","Nome:","Tipo:","E-mail:","CPF (apenas para aluno de graduação):","Período de vinculação (mês/ano):","Tipo de bolsa (quando aplicável):","Nome:","Tipo:","E-mail:","CPF (apenas para aluno de graduação):","Período de vinculação (mês/ano):","Tipo de bolsa (quando aplicável):","Nome:","Tipo:","E-mail:","CPF (apenas para aluno de graduação):","Período de vinculação (mês/ano):","Tipo de bolsa (quando aplicável):","Nome:","Tipo:","E-mail:","CPF (apenas para aluno de graduação):","Período de vinculação (mês/ano):","Tipo de bolsa (quando aplicável):","Nome:","Tipo:","E-mail:","CPF (apenas para aluno de graduação):","Período de vinculação (mês/ano):","Tipo de bolsa (quando aplicável):","Pesquisa:","Data de início (mês/ano):","Carga horária semanal:","Vinculado a um ou mais grupos de pesquisa? Quais?","Vinculação institucional:","Outra instutuição (quando aplicável)","Financiamento(s)? Quais?","Cooperações; Redes ou articulações interinstitucionais de pesquisa; Redes formalizadas ou informais? Quais?","Relação com Projeto de Extensão e/ou Atividade de Ensino? Qual?","Nome:","Tipo:","E-mail:","CPF (apenas para aluno de graduação):","Período de vinculação (mês/ano):","Tipo de bolsa (quando aplicável):","Nome:","Tipo:","E-mail:","CPF (apenas para aluno de graduação):","Período de vinculação (mês/ano):","Tipo de bolsa (quando aplicável):","Nome:","Tipo:","E-mail:","CPF (apenas para aluno de graduação):","Período de vinculação (mês/ano):","Tipo de bolsa (quando aplicável):","Nome:","Tipo:","E-mail:","CPF (apenas para aluno de graduação):","Período de vinculação (mês/ano):","Tipo de bolsa (quando aplicável):","Nome:","Tipo:","E-mail:","CPF (apenas para aluno de graduação):","Período de vinculação (mês/ano):","Tipo de bolsa (quando aplicável):","Nome:","Tipo:","E-mail:","CPF (apenas para aluno de graduação):","Período de vinculação (mês/ano):","Tipo de bolsa (quando aplicável):","Pesquisa:","Data de início (mês/ano):","Carga horária semanal:","Vinculado a um ou mais grupos de pesquisa? Quais?","Vinculação institucional:","Outra instutuição (quando aplicável)","Financiamento(s)? Quais?","Cooperações; Redes ou articulações interinstitucionais de pesquisa; Redes formalizadas ou informais? Quais?","Relação com Projeto de Extensão e/ou Atividade de Ensino? Qual?","Nome:","Tipo:","E-mail:","CPF (apenas para aluno de graduação):","Período de vinculação (mês/ano):","Tipo de bolsa (quando aplicável):","Nome:","Tipo:","E-mail:","CPF (apenas para aluno de graduação):","Período de vinculação (mês/ano):","Tipo de bolsa (quando aplicável):","Nome:","Tipo:","E-mail:","CPF (apenas para aluno de graduação):","Período de vinculação (mês/ano):","Tipo de bolsa (quando aplicável):","Nome:","Tipo:","E-mail:","CPF (apenas para aluno de graduação):","Período de vinculação (mês/ano):","Tipo de bolsa (quando aplicável):","Nome:","Tipo:","E-mail:","CPF (apenas para aluno de graduação):","Período de vinculação (mês/ano):","Tipo de bolsa (quando aplicável):","Nome:","Tipo:","E-mail:","CPF (apenas para aluno de graduação):","Período de vinculação (mês/ano):","Tipo de bolsa (quando aplicável):","Pesquisa:","Datas de início e fim (mês / ano):","Carga horária semanal:","Carga horária total:","Vinculado a um ou mais grupos de pesquisa? Quais?","Vinculação institucional:","Outra instutuição (quando aplicável)","Financiamento? Qual?","Articulações? Quais?","Relação com Projeto de Extensão e/ou Atividade de Ensino? Qual?","Nome:","Tipo:","E-mail:","CPF (apenas para aluno de graduação):","Período de vinculação:","Tipo de bolsa (quando aplicável):","Nome:","Tipo:","E-mail:","CPF (apenas para aluno de graduação):","Período de vinculação:","Tipo de bolsa (quando aplicável):","Nome:","Tipo:","E-mail:","CPF (apenas para aluno de graduação):","Período de vinculação:","Tipo de bolsa (quando aplicável):","Nome:","Tipo:","E-mail:","CPF (apenas para aluno de graduação):","Período de vinculação:","Tipo de bolsa (quando aplicável):","Nome:","Tipo:","E-mail:","CPF (apenas para aluno de graduação):","Período de vinculação:","Tipo de bolsa (quando aplicável):","Nome:","Tipo:","E-mail:","CPF (apenas para aluno de graduação):","Período de vinculação:","Tipo de bolsa (quando aplicável):","Pesquisa:","Datas de início e fim (mês / ano):","Carga horária semanal:","Carga horária total:","Vinculado a um ou mais grupos de pesquisa? Quais?","Vinculação institucional:","Outra instutuição (quando aplicável)","Financiamento? Qual?","Articulações? Quais?","Relação com Projeto de Extensão e/ou Atividade de Ensino? Qual?","Nome:","Tipo:","E-mail:","CPF (apenas para aluno de graduação):","Período de vinculação:","Tipo de bolsa (quando aplicável):","Nome:","Tipo:","E-mail:","CPF (apenas para aluno de graduação):","Período de vinculação:","Tipo de bolsa (quando aplicável):","Nome:","Tipo:","E-mail:","CPF (apenas para aluno de graduação):","Período de vinculação:","Tipo de bolsa (quando aplicável):","Nome:","Tipo:","E-mail:","CPF (apenas para aluno de graduação):","Período de vinculação:","Tipo de bolsa (quando aplicável):","Nome:","Tipo:","E-mail:","CPF (apenas para aluno de graduação):","Período de vinculação:","Tipo de bolsa (quando aplicável):","Nome:","Tipo:","E-mail:","CPF (apenas para aluno de graduação):","Período de vinculação:","Tipo de bolsa (quando aplicável):","Pesquisa:","Datas de início e fim (mês / ano):","Carga horária semanal:","Carga horária total:","Vinculado a um ou mais grupos de pesquisa? Quais?","Vinculação institucional:","Outra instutuição (quando aplicável)","Financiamento? Qual?","Articulações? Quais?","Relação com Projeto de Extensão e/ou Atividade de Ensino? Qual?","Nome:","Tipo:","E-mail:","CPF (apenas para aluno de graduação):","Período de vinculação:","Tipo de bolsa (quando aplicável):","Nome:","Tipo:","E-mail:","CPF (apenas para aluno de graduação):","Período de vinculação:","Tipo de bolsa (quando aplicável):","Nome:","Tipo:","E-mail:","CPF (apenas para aluno de graduação):","Período de vinculação:","Tipo de bolsa (quando aplicável):","Nome:","Tipo:","E-mail:","CPF (apenas para aluno de graduação):","Período de vinculação:","Tipo de bolsa (quando aplicável):","Nome:","Tipo:","E-mail:","CPF (apenas para aluno de graduação):","Período de vinculação:","Tipo de bolsa (quando aplicável):","Nome:","Tipo:","E-mail:","CPF (apenas para aluno de graduação):","Período de vinculação:","Tipo de bolsa (quando aplicável):","Pesquisa:","Datas de início e fim (mês / ano):","Carga horária semanal:","Carga horária total:","Vinculado a um ou mais grupos de pesquisa? Quais?","Vinculação institucional:","Outra instutuição (quando aplicável)","Financiamento? Qual?","Articulações? Quais?","Relação com Projeto de Extensão e/ou Atividade de Ensino? Qual?","Nome:","Tipo:","E-mail:","CPF (apenas para aluno de graduação):","Período de vinculação:","Tipo de bolsa (quando aplicável):","Nome:","Tipo:","E-mail:","CPF (apenas para aluno de graduação):","Período de vinculação:","Tipo de bolsa (quando aplicável):","Nome:","Tipo:","E-mail:","CPF (apenas para aluno de graduação):","Período de vinculação:","Tipo de bolsa (quando aplicável):","Nome:","Tipo:","E-mail:","CPF (apenas para aluno de graduação):","Período de vinculação:","Tipo de bolsa (quando aplicável):","Nome:","Tipo:","E-mail:","CPF (apenas para aluno de graduação):","Período de vinculação:","Tipo de bolsa (quando aplicável):","Nome:","Tipo:","E-mail:","CPF (apenas para aluno de graduação):","Período de vinculação:","Tipo de bolsa (quando aplicável):","Pesquisa:","Datas de início e fim (mês / ano):","Carga horária semanal:","Carga horária total:","Vinculado a um ou mais grupos de pesquisa? Quais?","Vinculação institucional:","Outra instutuição (quando aplicável)","Financiamento? Qual?","Articulações? Quais?","Relação com Projeto de Extensão e/ou Atividade de Ensino? Qual?","Nome:","Tipo:","E-mail:","CPF (apenas para aluno de graduação):","Período de vinculação:","Tipo de bolsa (quando aplicável):","Nome:","Tipo:","E-mail:","CPF (apenas para aluno de graduação):","Período de vinculação:","Tipo de bolsa (quando aplicável):","Nome:","Tipo:","E-mail:","CPF (apenas para aluno de graduação):","Período de vinculação:","Tipo de bolsa (quando aplicável):","Nome:","Tipo:","E-mail:","CPF (apenas para aluno de graduação):","Período de vinculação:","Tipo de bolsa (quando aplicável):","Nome:","Tipo:","E-mail:","CPF (apenas para aluno de graduação):","Período de vinculação:","Tipo de bolsa (quando aplicável):","Nome:","Tipo:","E-mail:","CPF (apenas para aluno de graduação):","Período de vinculação:","Tipo de bolsa (quando aplicável):","Pesquisa:","Data de início (mês / ano):","Carga horária semanal:","Carga horária total:","Vinculado a um ou mais grupos de pesquisa? Quais?","Vinculação institucional:","Outra instutuição (quando aplicável)","Financiamento? Qual?","Articulações? Quais?","Relação com Projeto de Extensão e/ou Atividade de Ensino? Qual?","Pesquisa:","Data de início (mês / ano):","Carga horária semanal:","Carga horária total:","Vinculado a um ou mais grupos de pesquisa? Quais?","Vinculação institucional:","Outra instutuição (quando aplicável)","Financiamento? Qual?","Articulações? Quais?","Relação com Projeto de Extensão e/ou Atividade de Ensino? Qual?","Pesquisa:","Data de início (mês / ano):","Carga horária semanal:","Carga horária total:","Vinculado a um ou mais grupos de pesquisa? Quais?","Vinculação institucional:","Outra instutuição (quando aplicável)","Financiamento? Qual?","Articulações? Quais?","Relação com Projeto de Extensão e/ou Atividade de Ensino? Qual?","Pesquisa:","Data de início (mês / ano):","Carga horária semanal:","Carga horária total:","Vinculado a um ou mais grupos de pesquisa? Quais?","Vinculação institucional:","Outra instutuição (quando aplicável)","Financiamento? Qual?","Articulações? Quais?","Relação com Projeto de Extensão e/ou Atividade de Ensino? Qual?","Pesquisa:","Data de início (mês / ano):","Carga horária semanal:","Carga horária total:","Vinculado a um ou mais grupos de pesquisa? Quais?","Vinculação institucional:","Outra instutuição (quando aplicável)","Financiamento? Qual?","Articulações? Quais?","Relação com Projeto de Extensão e/ou Atividade de Ensino? Qual?","Pesquisa:","Datas de início e fim (mês / ano):","Carga horária semanal:","Carga horária total:","Vinculado a um ou mais grupos de pesquisa? Quais?","Vinculação institucional:","Outra instutuição (quando aplicável)","Financiamento? Qual?","Articulações? Quais?","Relação com Projeto de Extensão e/ou Atividade de Ensino? Qual?","Pesquisa:","Datas de início e fim (mês / ano):","Carga horária semanal:","Carga horária total:","Vinculado a um ou mais grupos de pesquisa? Quais?","Vinculação institucional:","Outra instutuição (quando aplicável)","Financiamento? Qual?","Articulações? Quais?","Relação com Projeto de Extensão e/ou Atividade de Ensino? Qual?","Pesquisa:","Datas de início e fim (mês / ano):","Carga horária semanal:","Carga horária total:","Vinculado a um ou mais grupos de pesquisa? Quais?","Vinculação institucional:","Outra instutuição (quando aplicável)","Financiamento? Qual?","Articulações? Quais?","Relação com Projeto de Extensão e/ou Atividade de Ensino? Qual?","Pesquisa:","Datas de início e fim (mês / ano):","Carga horária semanal:","Carga horária total:","Vinculado a um ou mais grupos de pesquisa? Quais?","Vinculação institucional:","Outra instutuição (quando aplicável)","Financiamento? Qual?","Articulações? Quais?","Relação com Projeto de Extensão e/ou Atividade de Ensino? Qual?","Pesquisa:","Datas de início e fim (mês / ano):","Carga horária semanal:","Carga horária total:","Vinculado a um ou mais grupos de pesquisa? Quais?","Vinculação institucional:","Outra instutuição (quando aplicável)","Financiamento? Qual?","Articulações? Quais?","Relação com Projeto de Extensão e/ou Atividade de Ensino? Qual?",null,null,"Quatidade de alunos anual:","Nome(s) do(s) aluno(s), título(s) do(s) trabalho(s) e semestre(s):","Quatidade de alunos anual:","Nome(s) do(s) aluno(s), título(s) do(s) trabalho(s) e semestre(s):","Quatidade de alunos anual:","Nome(s) do(s) aluno(s), nome(s) da(s) disciplina(s) e semestre(s):","Quatidade de alunos anual:","Quatidade de alunos anual:","Quatidade de alunos anual:","Quatidade de alunos anual:","Nome(s) do(s) aluno(s), título(s) do(s) trabalho(s) e semestre(s):","Quatidade de alunos anual:","Nome(s) do(s) aluno(s), título(s) do(s) trabalho(s) e semestre(s):","Quatidade de alunos anual:","Nome(s) do(s) aluno(s), título(s) do(s) trabalho(s) e semestre(s):","Quatidade de alunos anual:","Nome(s) do(s) aluno(s), título(s) do(s) trabalho(s) e semestre(s):","Quatidade de alunos anual:","Nome(s) do(s) aluno(s), título(s) do(s) trabalho(s) e semestre(s):","Quatidade de alunos anual:","Nome(s) do(s) aluno(s), título(s) do(s) trabalho(s) e semestre(s):","Quatidade de alunos anual:","Nome(s) do(s) aluno(s), título(s) do(s) trabalho(s) e semestre(s):","Quatidade de alunos anual:","Nome(s) do(s) aluno(s), título(s) do(s) trabalho(s) e semestre(s):","Quatidade de alunos anual:","Nome(s) do(s) aluno(s), nome(s) da(s) disciplina(s) e semestre(s):","Quatidade de alunos anual:","Nome(s) do(s) aluno(s), nome(s) da(s) pesquisa(s) e semestre(s):",null,null,null,null,null,null,null,null,"Cargo:","Vigência:","Cargo:","Vigência:","Cargo:","Vigência:","Cargo:","Vigência:","Cargo:","Vigência:","Cargo:","Vigência:","Cargo:","Vigência:","Cargo:","Vigência:","Cargo:","Vigência:","Cargo:","Vigência:"]
[{"$f":"'1. Id'!B4","v":0},{"$f":"'1. Id'!B5","v":0},{"$f":"'1. Id'!B6","v":0},{"$f":"'1. Id'!B7","v":0},{"$f":"'1. Id'!B8","v":0},{"$f":"'1. Id'!B9","v":0},{"$f":"'2. Ensino'!$B4","v":0},{"$f":"'2. Ensino'!$B5","v":0},{"$f":"'2. Ensino'!$B6","v":0},{"$f":"'2. Ensino'!$B7","v":0},{"$f":"'2. Ensino'!$B8","v":0},{"$f":"'2. Ensino'!$B9","v":0},{"$f":"'2. Ensino'!$B10","v":0},{"$f":"'2. Ensino'!$B11","v":0},{"$f":"'2. Ensino'!$B12","v":0},{"$f":"'2. Ensino'!$B13","v":0},{"$f":"'2. Ensino'!$B14","v":0},{"$f":"'2. Ensino'!$B15","v":0},{"$f":"'2. Ensino'!$B16","v":0},{"$f":"'2. Ensino'!$B17","v":0},{"$f":"'2. Ensino'!$B18","v":0},{"$f":"'2. Ensino'!$B19","v":0},{"$f":"'2. Ensino'!$B21","v":0},{"$f":"'2. Ensino'!$B22","v":0},{"$f":"'2. Ensino'!$B23","v":0},{"$f":"'2. Ensino'!$B24","v":0},{"$f":"'2. Ensino'!$B25","v":0},{"$f":"'2. Ensino'!$B26","v":0},{"$f":"'2. Ensino'!$B27","v":0},{"$f":"'2. Ensino'!$B28","v":0},{"$f":"'2. Ensino'!$B29","v":0},{"$f":"'2. Ensino'!$B30","v":0},{"$f":"'2. Ensino'!$B31","v":0},{"$f":"'2. Ensino'!$B32","v":0},{"$f":"'2. Ensino'!$B33","v":0},{"$f":"'2. Ensino'!$B34","v":0},{"$f":"'2. Ensino'!$B35","v":0},{"$f":"'2. Ensino'!$B36","v":0},{"$f":"'2. Ensino'!$B39","v":0},{"$f":"'2. Ensino'!$B40","v":0},{"$f":"'2. Ensino'!$B41","v":0},{"$f":"'2. Ensino'!$B42","v":0},{"$f":"'2. Ensino'!$B43","v":0},{"$f":"'2. Ensino'!$B44","v":0},{"$f":"'2. Ensino'!$B45","v":0},{"$f":"'2. Ensino'!$B46","v":0},{"$f":"'2. Ensino'!$B47","v":0},{"$f":"'2. Ensino'!$B48","v":0},{"$f":"'2. Ensino'!$B49","v":0},{"$f":"'2. Ensino'!$B50","v":0},{"$f":"'2. Ensino'!$B52","v":0},{"$f":"'2. Ensino'!$B53","v":0},{"$f":"'2. Ensino'!$B54","v":0},{"$f":"'2. Ensino'!$B55","v":0},{"$f":"'2. Ensino'!$B56","v":0},{"$f":"'2. Ensino'!$B57","v":0},{"$f":"'2. Ensino'!$B58","v":0},{"$f":"'2. Ensino'!$B59","v":0},{"$f":"'2. Ensino'!$B60","v":0},{"$f":"'2. Ensino'!$B61","v":0},{"$f":"'2. Ensino'!$B62","v":0},{"$f":"'2. Ensino'!$B63","v":0},{"$f":"'3. Ext'!$B3","v":0},{"$f":"'3. Ext'!$B4","v":0},{"$f":"'3. Ext'!$B5","v":0},{"$f":"'3. Ext'!$B6","v":0},{"$f":"'3. Ext'!$B7","v":0},{"$f":"'3. Ext'!$B9","v":0},{"$f":"'3. Ext'!$B10","v":0},{"$f":"'3. Ext'!$B11","v":0},{"$f":"'3. Ext'!$B12","v":0},{"$f":"'3. Ext'!$B13","v":0},{"$f":"'3. Ext'!$B14","v":0},{"$f":"'3. Ext'!$B15","v":0},{"$f":"'3. Ext'!$B16","v":0},{"$f":"'3. Ext'!$B17","v":0},{"$f":"'3. Ext'!$B18","v":0},{"$f":"'3. Ext'!$B19","v":0},{"$f":"'3. Ext'!$B20","v":0},{"$f":"'3. Ext'!$B21","v":0},{"$f":"'3. Ext'!$B22","v":0},{"$f":"'3. Ext'!$B23","v":0},{"$f":"'3. Ext'!$B24","v":0},{"$f":"'3. Ext'!$B25","v":0},{"$f":"'3. Ext'!$B26","v":0},{"$f":"'3. Ext'!$B27","v":0},{"$f":"'3. Ext'!$B28","v":0},{"$f":"'3. Ext'!$B29","v":0},{"$f":"'3. Ext'!$B30","v":0},{"$f":"'3. Ext'!$B31","v":0},{"$f":"'3. Ext'!$B32","v":0},{"$f":"'3. Ext'!$B33","v":0},{"$f":"'3. Ext'!$B34","v":0},{"$f":"'3. Ext'!$B35","v":0},{"$f":"'3. Ext'!$B36","v":0},{"$f":"'3. Ext'!$B37","v":0},{"$f":"'3. Ext'!$B38","v":0},{"$f":"'3. Ext'!$B39","v":0},{"$f":"'3. Ext'!$B40","v":0},{"$f":"'3. Ext'!$B41","v":0},{"$f":"'3. Ext'!$B42","v":0},{"$f":"'3. Ext'!$B43","v":0},{"$f":"'3. Ext'!$B44","v":0},{"$f":"'3. Ext'!$B45","v":0},{"$f":"'3. Ext'!$B46","v":0},{"$f":"'3. Ext'!$B47","v":0},{"$f":"'3. Ext'!$B48","v":0},{"$f":"'3. Ext'!$B49","v":0},{"$f":"'3. Ext'!$B51","v":0},{"$f":"'3. Ext'!$B52","v":0},{"$f":"'3. Ext'!$B53","v":0},{"$f":"'3. Ext'!$B54","v":0},{"$f":"'3. Ext'!$B55","v":0},{"$f":"'3. Ext'!$B56","v":0},{"$f":"'3. Ext'!$B57","v":0},{"$f":"'3. Ext'!$B58","v":0},{"$f":"'3. Ext'!$B59","v":0},{"$f":"'3. Ext'!$B60","v":0},{"$f":"'3. Ext'!$B61","v":0},{"$f":"'3. Ext'!$B62","v":0},{"$f":"'3. Ext'!$B63","v":0},{"$f":"'3. Ext'!$B64","v":0},{"$f":"'3. Ext'!$B65","v":0},{"$f":"'3. Ext'!$B66","v":0},{"$f":"'3. Ext'!$B67","v":0},{"$f":"'3. Ext'!$B68","v":0},{"$f":"'3. Ext'!$B69","v":0},{"$f":"'3. Ext'!$B70","v":0},{"$f":"'3. Ext'!$B71","v":0},{"$f":"'3. Ext'!$B72","v":0},{"$f":"'3. Ext'!$B73","v":0},{"$f":"'3. Ext'!$B74","v":0},{"$f":"'3. Ext'!$B75","v":0},{"$f":"'3. Ext'!$B76","v":0},{"$f":"'3. Ext'!$B77","v":0},{"$f":"'3. Ext'!$B78","v":0},{"$f":"'3. Ext'!$B79","v":0},{"$f":"'3. Ext'!$B80","v":0},{"$f":"'3. Ext'!$B81","v":0},{"$f":"'3. Ext'!$B82","v":0},{"$f":"'3. Ext'!$B83","v":0},{"$f":"'3. Ext'!$B84","v":0},{"$f":"'3. Ext'!$B85","v":0},{"$f":"'3. Ext'!$B86","v":0},{"$f":"'3. Ext'!$B87","v":0},{"$f":"'3. Ext'!$B88","v":0},{"$f":"'3. Ext'!$B89","v":0},{"$f":"'3. Ext'!$B90","v":0},{"$f":"'3. Ext'!$B91","v":0},{"$f":"'3. Ext'!$B93","v":0},{"$f":"'3. Ext'!$B94","v":0},{"$f":"'3. Ext'!$B95","v":0},{"$f":"'3. Ext'!$B96","v":0},{"$f":"'3. Ext'!$B97","v":0},{"$f":"'3. Ext'!$B98","v":0},{"$f":"'3. Ext'!$B99","v":0},{"$f":"'3. Ext'!$B100","v":0},{"$f":"'3. Ext'!$B101","v":0},{"$f":"'3. Ext'!$B102","v":0},{"$f":"'3. Ext'!$B103","v":0},{"$f":"'3. Ext'!$B104","v":0},{"$f":"'3. Ext'!$B105","v":0},{"$f":"'3. Ext'!$B106","v":0},{"$f":"'3. Ext'!$B107","v":0},{"$f":"'3. Ext'!$B108","v":0},{"$f":"'3. Ext'!$B109","v":0},{"$f":"'3. Ext'!$B110","v":0},{"$f":"'3. Ext'!$B111","v":0},{"$f":"'3. Ext'!$B112","v":0},{"$f":"'3. Ext'!$B113","v":0},{"$f":"'3. Ext'!$B114","v":0},{"$f":"'3. Ext'!$B115","v":0},{"$f":"'3. Ext'!$B116","v":0},{"$f":"'3. Ext'!$B117","v":0},{"$f":"'3. Ext'!$B118","v":0},{"$f":"'3. Ext'!$B119","v":0},{"$f":"'3. Ext'!$B120","v":0},{"$f":"'3. Ext'!$B121","v":0},{"$f":"'3. Ext'!$B122","v":0},{"$f":"'3. Ext'!$B123","v":0},{"$f":"'3. Ext'!$B124","v":0},{"$f":"'3. Ext'!$B125","v":0},{"$f":"'3. Ext'!$B126","v":0},{"$f":"'3. Ext'!$B127","v":0},{"$f":"'3. Ext'!$B128","v":0},{"$f":"'3. Ext'!$B129","v":0},{"$f":"'3. Ext'!$B130","v":0},{"$f":"'3. Ext'!$B131","v":0},{"$f":"'3. Ext'!$B132","v":0},{"$f":"'3. Ext'!$B133","v":0},{"$f":"'3. Ext'!$B135","v":0},{"$f":"'3. Ext'!$B136","v":0},{"$f":"'3. Ext'!$B137","v":0},{"$f":"'3. Ext'!$B138","v":0},{"$f":"'3. Ext'!$B139","v":0},{"$f":"'3. Ext'!$B140","v":0},{"$f":"'3. Ext'!$B141","v":0},{"$f":"'3. Ext'!$B142","v":0},{"$f":"'3. Ext'!$B143","v":0},{"$f":"'3. Ext'!$B144","v":0},{"$f":"'3. Ext'!$B145","v":0},{"$f":"'3. Ext'!$B146","v":0},{"$f":"'3. Ext'!$B147","v":0},{"$f":"'3. Ext'!$B148","v":0},{"$f":"'3. Ext'!$B149","v":0},{"$f":"'3. Ext'!$B150","v":0},{"$f":"'3. Ext'!$B151","v":0},{"$f":"'3. Ext'!$B152","v":0},{"$f":"'3. Ext'!$B153","v":0},{"$f":"'3. Ext'!$B154","v":0},{"$f":"'3. Ext'!$B155","v":0},{"$f":"'3. Ext'!$B156","v":0},{"$f":"'3. Ext'!$B157","v":0},{"$f":"'3. Ext'!$B158","v":0},{"$f":"'3. Ext'!$B159","v":0},{"$f":"'3. Ext'!$B160","v":0},{"$f":"'3. Ext'!$B161","v":0},{"$f":"'3. Ext'!$B162","v":0},{"$f":"'3. Ext'!$B163","v":0},{"$f":"'3. Ext'!$B164","v":0},{"$f":"'3. Ext'!$B165","v":0},{"$f":"'3. Ext'!$B166","v":0},{"$f":"'3. Ext'!$B167","v":0},{"$f":"'3. Ext'!$B168","v":0},{"$f":"'3. Ext'!$B169","v":0},{"$f":"'3. Ext'!$B170","v":0},{"$f":"'3. Ext'!$B172","v":0},{"$f":"'3. Ext'!$B173","v":0},{"$f":"'3. Ext'!$B174","v":0},{"$f":"'3. Ext'!$B175","v":0},{"$f":"'3. Ext'!$B176","v":0},{"$f":"'3. Ext'!$B177","v":0},{"$f":"'3. Ext'!$B178","v":0},{"$f":"'3. Ext'!$B179","v":0},{"$f":"'3. Ext'!$B180","v":0},{"$f":"'3. Ext'!$B181","v":0},{"$f":"'3. Ext'!$B182","v":0},{"$f":"'3. Ext'!$B183","v":0},{"$f":"'3. Ext'!$B184","v":0},{"$f":"'3. Ext'!$B185","v":0},{"$f":"'3. Ext'!$B186","v":0},{"$f":"'3. Ext'!$B187","v":0},{"$f":"'3. Ext'!$B188","v":0},{"$f":"'3. Ext'!$B189","v":0},{"$f":"'3. Ext'!$B190","v":0},{"$f":"'3. Ext'!$B191","v":0},{"$f":"'3. Ext'!$B193","v":0},{"$f":"'3. Ext'!$B194","v":0},{"$f":"'3. Ext'!$B195","v":0},{"$f":"'3. Ext'!$B196","v":0},{"$f":"'3. Ext'!$B197","v":0},{"$f":"'3. Ext'!$B199","v":0},{"$f":"'3. Ext'!$B200","v":0},{"$f":"'3. Ext'!$B201","v":0},{"$f":"'3. Ext'!$B202","v":0},{"$f":"'3. Ext'!$B203","v":0},{"$f":"'3. Ext'!$B204","v":0},{"$f":"'3. Ext'!$B205","v":0},{"$f":"'3. Ext'!$B206","v":0},{"$f":"'3. Ext'!$B207","v":0},{"$f":"'3. Ext'!$B208","v":0},{"$f":"'3. Ext'!$B209","v":0},{"$f":"'3. Ext'!$B210","v":0},{"$f":"'3. Ext'!$B211","v":0},{"$f":"'3. Ext'!$B212","v":0},{"$f":"'3. Ext'!$B213","v":0},{"$f":"'3. Ext'!$B214","v":0},{"$f":"'3. Ext'!$B215","v":0},{"$f":"'3. Ext'!$B216","v":0},{"$f":"'3. Ext'!$B217","v":0},{"$f":"'3. Ext'!$B218","v":0},{"$f":"'3. Ext'!$B219","v":0},{"$f":"'3. Ext'!$B220","v":0},{"$f":"'3. Ext'!$B221","v":0},{"$f":"'3. Ext'!$B222","v":0},{"$f":"'3. Ext'!$B223","v":0},{"$f":"'3. Ext'!$B224","v":0},{"$f":"'3. Ext'!$B225","v":0},{"$f":"'3. Ext'!$B226","v":0},{"$f":"'3. Ext'!$B227","v":0},{"$f":"'3. Ext'!$B228","v":0},{"$f":"'3. Ext'!$B229","v":0},{"$f":"'3. Ext'!$B230","v":0},{"$f":"'3. Ext'!$B231","v":0},{"$f":"'3. Ext'!$B232","v":0},{"$f":"'3. Ext'!$B233","v":0},{"$f":"'3. Ext'!$B234","v":0},{"$f":"'3. Ext'!$B235","v":0},{"$f":"'3. Ext'!$B236","v":0},{"$f":"'3. Ext'!$B237","v":0},{"$f":"'3. Ext'!$B238","v":0},{"$f":"'3. Ext'!$B239","v":0},{"$f":"'3. Ext'!$B240","v":0},{"$f":"'3. Ext'!$B241","v":0},{"$f":"'3. Ext'!$B242","v":0},{"$f":"'3. Ext'!$B243","v":0},{"$f":"'3. Ext'!$B244","v":0},{"$f":"'3. Ext'!$B245","v":0},{"$f":"'3. Ext'!$B246","v":0},{"$f":"'3. Ext'!$B247","v":0},{"$f":"'3. Ext'!$B248","v":0},{"$f":"'3. Ext'!$B249","v":0},{"$f":"'3. Ext'!$B250","v":0},{"$f":"'3. Ext'!$B251","v":0},{"$f":"'3. Ext'!$B252","v":0},{"$f":"'3. Ext'!$B253","v":0},{"$f":"'3. Ext'!$B254","v":0},{"$f":"'3. Ext'!$B255","v":0},{"$f":"'3. Ext'!$B256","v":0},{"$f":"'3. Ext'!$B257","v":0},{"$f":"'3. Ext'!$B258","v":0},{"$f":"'3. Ext'!$B259","v":0},{"$f":"'3. Ext'!$B260","v":0},{"$f":"'3. Ext'!$B261","v":0},{"$f":"'3. Ext'!$B262","v":0},{"$f":"'3. Ext'!$B263","v":0},{"$f":"'3. Ext'!$B264","v":0},{"$f":"'3. Ext'!$B265","v":0},{"$f":"'3. Ext'!$B266","v":0},{"$f":"'3. Ext'!$B267","v":0},{"$f":"'3. Ext'!$B268","v":0},{"$f":"'3. Ext'!$B269","v":0},{"$f":"'3. Ext'!$B270","v":0},{"$f":"'3. Ext'!$B271","v":0},{"$f":"'3. Ext'!$B272","v":0},{"$f":"'3. Ext'!$B273","v":0},{"$f":"'3. Ext'!$B274","v":0},{"$f":"'3. Ext'!$B275","v":0},{"$f":"'3. Ext'!$B277","v":0},{"$f":"'3. Ext'!$B278","v":0},{"$f":"'3. Ext'!$B279","v":0},{"$f":"'3. Ext'!$B280","v":0},{"$f":"'3. Ext'!$B281","v":0},{"$f":"'3. Ext'!$B282","v":0},{"$f":"'3. Ext'!$B283","v":0},{"$f":"'3. Ext'!$B284","v":0},{"$f":"'3. Ext'!$B285","v":0},{"$f":"'3. Ext'!$B286","v":0},{"$f":"'3. Ext'!$B287","v":0},{"$f":"'3. Ext'!$B288","v":0},{"$f":"'3. Ext'!$B289","v":0},{"$f":"'3. Ext'!$B290","v":0},{"$f":"'3. Ext'!$B291","v":0},{"$f":"'3. Ext'!$B292","v":0},{"$f":"'3. Ext'!$B293","v":0},{"$f":"'3. Ext'!$B294","v":0},{"$f":"'3. Ext'!$B295","v":0},{"$f":"'3. Ext'!$B296","v":0},{"$f":"'3. Ext'!$B297","v":0},{"$f":"'3. Ext'!$B298","v":0},{"$f":"'3. Ext'!$B299","v":0},{"$f":"'3. Ext'!$B300","v":0},{"$f":"'3. Ext'!$B301","v":0},{"$f":"'3. Ext'!$B302","v":0},{"$f":"'3. Ext'!$B303","v":0},{"$f":"'3. Ext'!$B304","v":0},{"$f":"'3. Ext'!$B305","v":0},{"$f":"'3. Ext'!$B306","v":0},{"$f":"'3. Ext'!$B307","v":0},{"$f":"'3. Ext'!$B308","v":0},{"$f":"'3. Ext'!$B309","v":0},{"$f":"'3. Ext'!$B310","v":0},{"$f":"'3. Ext'!$B311","v":0},{"$f":"'3. Ext'!$B312","v":0},{"$f":"'3. Ext'!$B313","v":0},{"$f":"'3. Ext'!$B314","v":0},{"$f":"'3. Ext'!$B315","v":0},{"$f":"'3. Ext'!$B316","v":0},{"$f":"'3. Ext'!$B317","v":0},{"$f":"'3. Ext'!$B318","v":0},{"$f":"'3. Ext'!$B319","v":0},{"$f":"'3. Ext'!$B320","v":0},{"$f":"'3. Ext'!$B321","v":0},{"$f":"'3. Ext'!$B322","v":0},{"$f":"'3. Ext'!$B323","v":0},{"$f":"'3. Ext'!$B324","v":0},{"$f":"'3. Ext'!$B325","v":0},{"$f":"'3. Ext'!$B326","v":0},{"$f":"'3. Ext'!$B327","v":0},{"$f":"'3. Ext'!$B328","v":0},{"$f":"'3. Ext'!$B329","v":0},{"$f":"'3. Ext'!$B330","v":0},{"$f":"'3. Ext'!$B331","v":0},{"$f":"'3. Ext'!$B332","v":0},{"$f":"'3. Ext'!$B333","v":0},{"$f":"'3. Ext'!$B334","v":0},{"$f":"'3. Ext'!$B335","v":0},{"$f":"'3. Ext'!$B336","v":0},{"$f":"'3. Ext'!$B337","v":0},{"$f":"'3. Ext'!$B338","v":0},{"$f":"'3. Ext'!$B339","v":0},{"$f":"'3. Ext'!$B340","v":0},{"$f":"'3. Ext'!$B341","v":0},{"$f":"'3. Ext'!$B342","v":0},{"$f":"'3. Ext'!$B343","v":0},{"$f":"'3. Ext'!$B344","v":0},{"$f":"'3. Ext'!$B345","v":0},{"$f":"'3. Ext'!$B346","v":0},{"$f":"'3. Ext'!$B347","v":0},{"$f":"'3. Ext'!$B348","v":0},{"$f":"'3. Ext'!$B349","v":0},{"$f":"'3. Ext'!$B350","v":0},{"$f":"'3. Ext'!$B351","v":0},{"$f":"'3. Ext'!$B352","v":0},{"$f":"'3. Ext'!$B353","v":0},{"$f":"'3. Ext'!$B355","v":0},{"$f":"'3. Ext'!$B356","v":0},{"$f":"'3. Ext'!$B357","v":0},{"$f":"'3. Ext'!$B358","v":0},{"$f":"'3. Ext'!$B359","v":0},{"$f":"'3. Ext'!$B360","v":0},{"$f":"'3. Ext'!$B361","v":0},{"$f":"'3. Ext'!$B362","v":0},{"$f":"'3. Ext'!$B363","v":0},{"$f":"'3. Ext'!$B364","v":0},{"$f":"'3. Ext'!$B365","v":0},{"$f":"'3. Ext'!$B366","v":0},{"$f":"'3. Ext'!$B367","v":0},{"$f":"'3. Ext'!$B368","v":0},{"$f":"'3. Ext'!$B369","v":0},{"$f":"'3. Ext'!$B370","v":0},{"$f":"'3. Ext'!$B371","v":0},{"$f":"'3. Ext'!$B372","v":0},{"$f":"'3. Ext'!$B373","v":0},{"$f":"'3. Ext'!$B374","v":0},{"$f":"'3. Ext'!$B375","v":0},{"$f":"'3. Ext'!$B376","v":0},{"$f":"'3. Ext'!$B377","v":0},{"$f":"'3. Ext'!$B378","v":0},{"$f":"'3. Ext'!$B379","v":0},{"$f":"'3. Ext'!$B380","v":0},{"$f":"'3. Ext'!$B381","v":0},{"$f":"'3. Ext'!$B382","v":0},{"$f":"'3. Ext'!$B383","v":0},{"$f":"'3. Ext'!$B384","v":0},{"$f":"'3. Ext'!$B385","v":0},{"$f":"'3. Ext'!$B386","v":0},{"$f":"'3. Ext'!$B387","v":0},{"$f":"'3. Ext'!$B388","v":0},{"$f":"'3. Ext'!$B389","v":0},{"$f":"'3. Ext'!$B390","v":0},{"$f":"'3. Ext'!$B391","v":0},{"$f":"'3. Ext'!$B392","v":0},{"$f":"'3. Ext'!$B393","v":0},{"$f":"'3. Ext'!$B394","v":0},{"$f":"'3. Ext'!$B395","v":0},{"$f":"'3. Ext'!$B396","v":0},{"$f":"'3. Ext'!$B397","v":0},{"$f":"'3. Ext'!$B398","v":0},{"$f":"'3. Ext'!$B399","v":0},{"$f":"'3. Ext'!$B400","v":0},{"$f":"'3. Ext'!$B401","v":0},{"$f":"'3. Ext'!$B402","v":0},{"$f":"'3. Ext'!$B403","v":0},{"$f":"'3. Ext'!$B404","v":0},{"$f":"'3. Ext'!$B405","v":0},{"$f":"'3. Ext'!$B406","v":0},{"$f":"'3. Ext'!$B407","v":0},{"$f":"'3. Ext'!$B408","v":0},{"$f":"'3. Ext'!$B409","v":0},{"$f":"'3. Ext'!$B410","v":0},{"$f":"'3. Ext'!$B411","v":0},{"$f":"'3. Ext'!$B412","v":0},{"$f":"'3. Ext'!$B413","v":0},{"$f":"'3. Ext'!$B414","v":0},{"$f":"'3. Ext'!$B415","v":0},{"$f":"'3. Ext'!$B416","v":0},{"$f":"'3. Ext'!$B417","v":0},{"$f":"'3. Ext'!$B418","v":0},{"$f":"'3. Ext'!$B419","v":0},{"$f":"'3. Ext'!$B420","v":0},{"$f":"'3. Ext'!$B421","v":0},{"$f":"'3. Ext'!$B422","v":0},{"$f":"'3. Ext'!$B423","v":0},{"$f":"'3. Ext'!$B424","v":0},{"$f":"'3. Ext'!$B425","v":0},{"$f":"'3. Ext'!$B426","v":0},{"$f":"'3. Ext'!$B427","v":0},{"$f":"'3. Ext'!$B428","v":0},{"$f":"'3. Ext'!$B429","v":0},{"$f":"'3. Ext'!$B430","v":0},{"$f":"'3. Ext'!$B431","v":0},{"$f":"'3. Ext'!$B433","v":0},{"$f":"'3. Ext'!$B434","v":0},{"$f":"'3. Ext'!$B435","v":0},{"$f":"'3. Ext'!$B436","v":0},{"$f":"'3. Ext'!$B437","v":0},{"$f":"'3. Ext'!$B438","v":0},{"$f":"'3. Ext'!$B439","v":0},{"$f":"'3. Ext'!$B440","v":0},{"$f":"'3. Ext'!$B441","v":0},{"$f":"'3. Ext'!$B442","v":0},{"$f":"'3. Ext'!$B443","v":0},{"$f":"'3. Ext'!$B444","v":0},{"$f":"'3. Ext'!$B445","v":0},{"$f":"'3. Ext'!$B446","v":0},{"$f":"'3. Ext'!$B447","v":0},{"$f":"'3. Ext'!$B448","v":0},{"$f":"'3. Ext'!$B449","v":0},{"$f":"'3. Ext'!$B450","v":0},{"$f":"'3. Ext'!$B451","v":0},{"$f":"'3. Ext'!$B452","v":0},{"$f":"'3. Ext'!$B453","v":0},{"$f":"'3. Ext'!$B454","v":0},{"$f":"'3. Ext'!$B455","v":0},{"$f":"'3. Ext'!$B456","v":0},{"$f":"'3. Ext'!$B457","v":0},{"$f":"'3. Ext'!$B458","v":0},{"$f":"'3. Ext'!$B459","v":0},{"$f":"'3. Ext'!$B460","v":0},{"$f":"'3. Ext'!$B461","v":0},{"$f":"'3. Ext'!$B462","v":0},{"$f":"'3. Ext'!$B463","v":0},{"$f":"'3. Ext'!$B464","v":0},{"$f":"'3. Ext'!$B465","v":0},{"$f":"'3. Ext'!$B466","v":0},{"$f":"'3. Ext'!$B467","v":0},{"$f":"'3. Ext'!$B468","v":0},{"$f":"'3. Ext'!$B469","v":0},{"$f":"'3. Ext'!$B470","v":0},{"$f":"'3. Ext'!$B471","v":0},{"$f":"'3. Ext'!$B472","v":0},{"$f":"'3. Ext'!$B473","v":0},{"$f":"'3. Ext'!$B474","v":0},{"$f":"'3. Ext'!$B475","v":0},{"$f":"'3. Ext'!$B476","v":0},{"$f":"'3. Ext'!$B477","v":0},{"$f":"'3. Ext'!$B478","v":0},{"$f":"'3. Ext'!$B479","v":0},{"$f":"'3. Ext'!$B480","v":0},{"$f":"'3. Ext'!$B481","v":0},{"$f":"'3. Ext'!$B482","v":0},{"$f":"'3. Ext'!$B483","v":0},{"$f":"'3. Ext'!$B484","v":0},{"$f":"'3. Ext'!$B485","v":0},{"$f":"'3. Ext'!$B486","v":0},{"$f":"'3. Ext'!$B487","v":0},{"$f":"'3. Ext'!$B488","v":0},{"$f":"'3. Ext'!$B489","v":0},{"$f":"'3. Ext'!$B490","v":0},{"$f":"'3. Ext'!$B491","v":0},{"$f":"'3. Ext'!$B492","v":0},{"$f":"'3. Ext'!$B493","v":0},{"$f":"'3. Ext'!$B494","v":0},{"$f":"'3. Ext'!$B495","v":0},{"$f":"'3. Ext'!$B496","v":0},{"$f":"'3. Ext'!$B497","v":0},{"$f":"'3. Ext'!$B498","v":0},{"$f":"'3. Ext'!$B499","v":0},{"$f":"'3. Ext'!$B500","v":0},{"$f":"'3. Ext'!$B501","v":0},{"$f":"'3. Ext'!$B502","v":0},{"$f":"'3. Ext'!$B503","v":0},{"$f":"'3. Ext'!$B504","v":0},{"$f":"'3. Ext'!$B506","v":0},{"$f":"'3. Ext'!$B507","v":0},{"$f":"'3. Ext'!$B508","v":0},{"$f":"'3. Ext'!$B509","v":0},{"$f":"'3. Ext'!$B510","v":0},{"$f":"'3. Ext'!$B511","v":0},{"$f":"'3. Ext'!$B512","v":0},{"$f":"'3. Ext'!$B513","v":0},{"$f":"'3. Ext'!$B514","v":0},{"$f":"'3. Ext'!$B515","v":0},{"$f":"'3. Ext'!$B516","v":0},{"$f":"'3. Ext'!$B517","v":0},{"$f":"'3. Ext'!$B518","v":0},{"$f":"'3. Ext'!$B519","v":0},{"$f":"'3. Ext'!$B520","v":0},{"$f":"'3. Ext'!$B521","v":0},{"$f":"'3. Ext'!$B522","v":0},{"$f":"'3. Ext'!$B523","v":0},{"$f":"'3. Ext'!$B524","v":0},{"$f":"'3. Ext'!$B525","v":0},{"$f":"'4. Pesq'!$B3","v":0},{"$f":"'4. Pesq'!$B4","v":0},{"$f":"'4. Pesq'!$B5","v":0},{"$f":"'4. Pesq'!$B7","v":0},{"$f":"'4. Pesq'!$B8","v":0},{"$f":"'4. Pesq'!$B9","v":0},{"$f":"'4. Pesq'!$B11","v":0},{"$f":"'4. Pesq'!$B12","v":0},{"$f":"'4. Pesq'!$B13","v":0},{"$f":"'4. Pesq'!$B16","v":0},{"$f":"'4. Pesq'!$B17","v":0},{"$f":"'4. Pesq'!$B18","v":0},{"$f":"'4. Pesq'!$B19","v":0},{"$f":"'4. Pesq'!$B20","v":0},{"$f":"'4. Pesq'!$B21","v":0},{"$f":"'4. Pesq'!$B22","v":0},{"$f":"'4. Pesq'!$B23","v":0},{"$f":"'4. Pesq'!$B24","v":0},{"$f":"'4. Pesq'!$B26","v":0},{"$f":"'4. Pesq'!$B27","v":0},{"$f":"'4. Pesq'!$B28","v":0},{"$f":"'4. Pesq'!$B29","v":0},{"$f":"'4. Pesq'!$B30","v":0},{"$f":"'4. Pesq'!$B31","v":0},{"$f":"'4. Pesq'!$B32","v":0},{"$f":"'4. Pesq'!$B33","v":0},{"$f":"'4. Pesq'!$B34","v":0},{"$f":"'4. Pesq'!$B35","v":0},{"$f":"'4. Pesq'!$B36","v":0},{"$f":"'4. Pesq'!$B37","v":0},{"$f":"'4. Pesq'!$B38","v":0},{"$f":"'4. Pesq'!$B39","v":0},{"$f":"'4. Pesq'!$B40","v":0},{"$f":"'4. Pesq'!$B41","v":0},{"$f":"'4. Pesq'!$B42","v":0},{"$f":"'4. Pesq'!$B43","v":0},{"$f":"'4. Pesq'!$B44","v":0},{"$f":"'4. Pesq'!$B45","v":0},{"$f":"'4. Pesq'!$B46","v":0},{"$f":"'4. Pesq'!$B47","v":0},{"$f":"'4. Pesq'!$B48","v":0},{"$f":"'4. Pesq'!$B49","v":0},{"$f":"'4. Pesq'!$B50","v":0},{"$f":"'4. Pesq'!$B51","v":0},{"$f":"'4. Pesq'!$B52","v":0},{"$f":"'4. Pesq'!$B53","v":0},{"$f":"'4. Pesq'!$B54","v":0},{"$f":"'4. Pesq'!$B55","v":0},{"$f":"'4. Pesq'!$B56","v":0},{"$f":"'4. Pesq'!$B57","v":0},{"$f":"'4. Pesq'!$B58","v":0},{"$f":"'4. Pesq'!$B59","v":0},{"$f":"'4. Pesq'!$B60","v":0},{"$f":"'4. Pesq'!$B61","v":0},{"$f":"'4. Pesq'!$B62","v":0},{"$f":"'4. Pesq'!$B63","v":0},{"$f":"'4. Pesq'!$B64","v":0},{"$f":"'4. Pesq'!$B65","v":0},{"$f":"'4. Pesq'!$B66","v":0},{"$f":"'4. Pesq'!$B67","v":0},{"$f":"'4. Pesq'!$B68","v":0},{"$f":"'4. Pesq'!$B69","v":0},{"$f":"'4. Pesq'!$B70","v":0},{"$f":"'4. Pesq'!$B72","v":0},{"$f":"'4. Pesq'!$B73","v":0},{"$f":"'4. Pesq'!$B74","v":0},{"$f":"'4. Pesq'!$B75","v":0},{"$f":"'4. Pesq'!$B76","v":0},{"$f":"'4. Pesq'!$B77","v":0},{"$f":"'4. Pesq'!$B78","v":0},{"$f":"'4. Pesq'!$B79","v":0},{"$f":"'4. Pesq'!$B80","v":0},{"$f":"'4. Pesq'!$B81","v":0},{"$f":"'4. Pesq'!$B82","v":0},{"$f":"'4. Pesq'!$B83","v":0},{"$f":"'4. Pesq'!$B84","v":0},{"$f":"'4. Pesq'!$B85","v":0},{"$f":"'4. Pesq'!$B86","v":0},{"$f":"'4. Pesq'!$B87","v":0},{"$f":"'4. Pesq'!$B88","v":0},{"$f":"'4. Pesq'!$B89","v":0},{"$f":"'4. Pesq'!$B90","v":0},{"$f":"'4. Pesq'!$B91","v":0},{"$f":"'4. Pesq'!$B92","v":0},{"$f":"'4. Pesq'!$B93","v":0},{"$f":"'4. Pesq'!$B94","v":0},{"$f":"'4. Pesq'!$B95","v":0},{"$f":"'4. Pesq'!$B96","v":0},{"$f":"'4. Pesq'!$B97","v":0},{"$f":"'4. Pesq'!$B98","v":0},{"$f":"'4. Pesq'!$B99","v":0},{"$f":"'4. Pesq'!$B100","v":0},{"$f":"'4. Pesq'!$B101","v":0},{"$f":"'4. Pesq'!$B102","v":0},{"$f":"'4. Pesq'!$B103","v":0},{"$f":"'4. Pesq'!$B104","v":0},{"$f":"'4. Pesq'!$B105","v":0},{"$f":"'4. Pesq'!$B106","v":0},{"$f":"'4. Pesq'!$B107","v":0},{"$f":"'4. Pesq'!$B108","v":0},{"$f":"'4. Pesq'!$B109","v":0},{"$f":"'4. Pesq'!$B110","v":0},{"$f":"'4. Pesq'!$B111","v":0},{"$f":"'4. Pesq'!$B112","v":0},{"$f":"'4. Pesq'!$B113","v":0},{"$f":"'4. Pesq'!$B114","v":0},{"$f":"'4. Pesq'!$B115","v":0},{"$f":"'4. Pesq'!$B116","v":0},{"$f":"'4. Pesq'!$B118","v":0},{"$f":"'4. Pesq'!$B119","v":0},{"$f":"'4. Pesq'!$B120","v":0},{"$f":"'4. Pesq'!$B121","v":0},{"$f":"'4. Pesq'!$B122","v":0},{"$f":"'4. Pesq'!$B123","v":0},{"$f":"'4. Pesq'!$B124","v":0},{"$f":"'4. Pesq'!$B125","v":0},{"$f":"'4. Pesq'!$B126","v":0},{"$f":"'4. Pesq'!$B127","v":0},{"$f":"'4. Pesq'!$B128","v":0},{"$f":"'4. Pesq'!$B129","v":0},{"$f":"'4. Pesq'!$B130","v":0},{"$f":"'4. Pesq'!$B131","v":0},{"$f":"'4. Pesq'!$B132","v":0},{"$f":"'4. Pesq'!$B133","v":0},{"$f":"'4. Pesq'!$B134","v":0},{"$f":"'4. Pesq'!$B135","v":0},{"$f":"'4. Pesq'!$B136","v":0},{"$f":"'4. Pesq'!$B137","v":0},{"$f":"'4. Pesq'!$B138","v":0},{"$f":"'4. Pesq'!$B139","v":0},{"$f":"'4. Pesq'!$B140","v":0},{"$f":"'4. Pesq'!$B141","v":0},{"$f":"'4. Pesq'!$B142","v":0},{"$f":"'4. Pesq'!$B143","v":0},{"$f":"'4. Pesq'!$B144","v":0},{"$f":"'4. Pesq'!$B145","v":0},{"$f":"'4. Pesq'!$B146","v":0},{"$f":"'4. Pesq'!$B147","v":0},{"$f":"'4. Pesq'!$B148","v":0},{"$f":"'4. Pesq'!$B149","v":0},{"$f":"'4. Pesq'!$B150","v":0},{"$f":"'4. Pesq'!$B151","v":0},{"$f":"'4. Pesq'!$B152","v":0},{"$f":"'4. Pesq'!$B153","v":0},{"$f":"'4. Pesq'!$B154","v":0},{"$f":"'4. Pesq'!$B155","v":0},{"$f":"'4. Pesq'!$B156","v":0},{"$f":"'4. Pesq'!$B157","v":0},{"$f":"'4. Pesq'!$B158","v":0},{"$f":"'4. Pesq'!$B159","v":0},{"$f":"'4. Pesq'!$B160","v":0},{"$f":"'4. Pesq'!$B161","v":0},{"$f":"'4. Pesq'!$B162","v":0},{"$f":"'4. Pesq'!$B164","v":0},{"$f":"'4. Pesq'!$B165","v":0},{"$f":"'4. Pesq'!$B166","v":0},{"$f":"'4. Pesq'!$B167","v":0},{"$f":"'4. Pesq'!$B168","v":0},{"$f":"'4. Pesq'!$B169","v":0},{"$f":"'4. Pesq'!$B170","v":0},{"$f":"'4. Pesq'!$B171","v":0},{"$f":"'4. Pesq'!$B172","v":0},{"$f":"'4. Pesq'!$B173","v":0},{"$f":"'4. Pesq'!$B174","v":0},{"$f":"'4. Pesq'!$B175","v":0},{"$f":"'4. Pesq'!$B176","v":0},{"$f":"'4. Pesq'!$B177","v":0},{"$f":"'4. Pesq'!$B178","v":0},{"$f":"'4. Pesq'!$B179","v":0},{"$f":"'4. Pesq'!$B180","v":0},{"$f":"'4. Pesq'!$B181","v":0},{"$f":"'4. Pesq'!$B182","v":0},{"$f":"'4. Pesq'!$B183","v":0},{"$f":"'4. Pesq'!$B184","v":0},{"$f":"'4. Pesq'!$B185","v":0},{"$f":"'4. Pesq'!$B186","v":0},{"$f":"'4. Pesq'!$B187","v":0},{"$f":"'4. Pesq'!$B188","v":0},{"$f":"'4. Pesq'!$B189","v":0},{"$f":"'4. Pesq'!$B190","v":0},{"$f":"'4. Pesq'!$B191","v":0},{"$f":"'4. Pesq'!$B192","v":0},{"$f":"'4. Pesq'!$B193","v":0},{"$f":"'4. Pesq'!$B194","v":0},{"$f":"'4. Pesq'!$B195","v":0},{"$f":"'4. Pesq'!$B196","v":0},{"$f":"'4. Pesq'!$B197","v":0},{"$f":"'4. Pesq'!$B198","v":0},{"$f":"'4. Pesq'!$B199","v":0},{"$f":"'4. Pesq'!$B200","v":0},{"$f":"'4. Pesq'!$B201","v":0},{"$f":"'4. Pesq'!$B202","v":0},{"$f":"'4. Pesq'!$B203","v":0},{"$f":"'4. Pesq'!$B204","v":0},{"$f":"'4. Pesq'!$B205","v":0},{"$f":"'4. Pesq'!$B206","v":0},{"$f":"'4. Pesq'!$B207","v":0},{"$f":"'4. Pesq'!$B208","v":0},{"$f":"'4. Pesq'!$B210","v":0},{"$f":"'4. Pesq'!$B211","v":0},{"$f":"'4. Pesq'!$B212","v":0},{"$f":"'4. Pesq'!$B213","v":0},{"$f":"'4. Pesq'!$B214","v":0},{"$f":"'4. Pesq'!$B215","v":0},{"$f":"'4. Pesq'!$B216","v":0},{"$f":"'4. Pesq'!$B217","v":0},{"$f":"'4. Pesq'!$B218","v":0},{"$f":"'4. Pesq'!$B219","v":0},{"$f":"'4. Pesq'!$B220","v":0},{"$f":"'4. Pesq'!$B221","v":0},{"$f":"'4. Pesq'!$B222","v":0},{"$f":"'4. Pesq'!$B223","v":0},{"$f":"'4. Pesq'!$B224","v":0},{"$f":"'4. Pesq'!$B225","v":0},{"$f":"'4. Pesq'!$B226","v":0},{"$f":"'4. Pesq'!$B227","v":0},{"$f":"'4. Pesq'!$B228","v":0},{"$f":"'4. Pesq'!$B229","v":0},{"$f":"'4. Pesq'!$B230","v":0},{"$f":"'4. Pesq'!$B231","v":0},{"$f":"'4. Pesq'!$B232","v":0},{"$f":"'4. Pesq'!$B233","v":0},{"$f":"'4. Pesq'!$B234","v":0},{"$f":"'4. Pesq'!$B235","v":0},{"$f":"'4. Pesq'!$B236","v":0},{"$f":"'4. Pesq'!$B237","v":0},{"$f":"'4. Pesq'!$B238","v":0},{"$f":"'4. Pesq'!$B239","v":0},{"$f":"'4. Pesq'!$B240","v":0},{"$f":"'4. Pesq'!$B241","v":0},{"$f":"'4. Pesq'!$B242","v":0},{"$f":"'4. Pesq'!$B243","v":0},{"$f":"'4. Pesq'!$B244","v":0},{"$f":"'4. Pesq'!$B245","v":0},{"$f":"'4. Pesq'!$B247","v":0},{"$f":"'4. Pesq'!$B248","v":0},{"$f":"'4. Pesq'!$B249","v":0},{"$f":"'4. Pesq'!$B250","v":0},{"$f":"'4. Pesq'!$B251","v":0},{"$f":"'4. Pesq'!$B252","v":0},{"$f":"'4. Pesq'!$B253","v":0},{"$f":"'4. Pesq'!$B254","v":0},{"$f":"'4. Pesq'!$B255","v":0},{"$f":"'4. Pesq'!$B256","v":0},{"$f":"'4. Pesq'!$B258","v":0},{"$f":"'4. Pesq'!$B259","v":0},{"$f":"'4. Pesq'!$B260","v":0},{"$f":"'4. Pesq'!$B261","v":0},{"$f":"'4. Pesq'!$B262","v":0},{"$f":"'4. Pesq'!$B263","v":0},{"$f":"'4. Pesq'!$B264","v":0},{"$f":"'4. Pesq'!$B265","v":0},{"$f":"'4. Pesq'!$B266","v":0},{"$f":"'4. Pesq'!$B267","v":0},{"$f":"'4. Pesq'!$B268","v":0},{"$f":"'4. Pesq'!$B269","v":0},{"$f":"'4. Pesq'!$B270","v":0},{"$f":"'4. Pesq'!$B271","v":0},{"$f":"'4. Pesq'!$B272","v":0},{"$f":"'4. Pesq'!$B273","v":0},{"$f":"'4. Pesq'!$B274","v":0},{"$f":"'4. Pesq'!$B275","v":0},{"$f":"'4. Pesq'!$B276","v":0},{"$f":"'4. Pesq'!$B277","v":0},{"$f":"'4. Pesq'!$B278","v":0},{"$f":"'4. Pesq'!$B279","v":0},{"$f":"'4. Pesq'!$B280","v":0},{"$f":"'4. Pesq'!$B281","v":0},{"$f":"'4. Pesq'!$B282","v":0},{"$f":"'4. Pesq'!$B283","v":0},{"$f":"'4. Pesq'!$B284","v":0},{"$f":"'4. Pesq'!$B285","v":0},{"$f":"'4. Pesq'!$B286","v":0},{"$f":"'4. Pesq'!$B287","v":0},{"$f":"'4. Pesq'!$B288","v":0},{"$f":"'4. Pesq'!$B289","v":0},{"$f":"'4. Pesq'!$B290","v":0},{"$f":"'4. Pesq'!$B291","v":0},{"$f":"'4. Pesq'!$B292","v":0},{"$f":"'4. Pesq'!$B293","v":0},{"$f":"'4. Pesq'!$B294","v":0},{"$f":"'4. Pesq'!$B295","v":0},{"$f":"'4. Pesq'!$B296","v":0},{"$f":"'4. Pesq'!$B297","v":0},{"$f":"'4. Pesq'!$B298","v":0},{"$f":"'4. Pesq'!$B299","v":0},{"$f":"'4. Pesq'!$B300","v":0},{"$f":"'4. Pesq'!$B301","v":0},{"$f":"'4. Pesq'!$B302","v":0},{"$f":"'4. Pesq'!$B303","v":0},{"$f":"'4. Pesq'!$B305","v":0},{"$f":"'4. Pesq'!$B306","v":0},{"$f":"'4. Pesq'!$B307","v":0},{"$f":"'4. Pesq'!$B308","v":0},{"$f":"'4. Pesq'!$B309","v":0},{"$f":"'4. Pesq'!$B310","v":0},{"$f":"'4. Pesq'!$B311","v":0},{"$f":"'4. Pesq'!$B312","v":0},{"$f":"'4. Pesq'!$B313","v":0},{"$f":"'4. Pesq'!$B314","v":0},{"$f":"'4. Pesq'!$B315","v":0},{"$f":"'4. Pesq'!$B316","v":0},{"$f":"'4. Pesq'!$B317","v":0},{"$f":"'4. Pesq'!$B318","v":0},{"$f":"'4. Pesq'!$B319","v":0},{"$f":"'4. Pesq'!$B320","v":0},{"$f":"'4. Pesq'!$B321","v":0},{"$f":"'4. Pesq'!$B322","v":0},{"$f":"'4. Pesq'!$B323","v":0},{"$f":"'4. Pesq'!$B324","v":0},{"$f":"'4. Pesq'!$B325","v":0},{"$f":"'4. Pesq'!$B326","v":0},{"$f":"'4. Pesq'!$B327","v":0},{"$f":"'4. Pesq'!$B328","v":0},{"$f":"'4. Pesq'!$B329","v":0},{"$f":"'4. Pesq'!$B330","v":0},{"$f":"'4. Pesq'!$B331","v":0},{"$f":"'4. Pesq'!$B332","v":0},{"$f":"'4. Pesq'!$B333","v":0},{"$f":"'4. Pesq'!$B334","v":0},{"$f":"'4. Pesq'!$B335","v":0},{"$f":"'4. Pesq'!$B336","v":0},{"$f":"'4. Pesq'!$B337","v":0},{"$f":"'4. Pesq'!$B338","v":0},{"$f":"'4. Pesq'!$B339","v":0},{"$f":"'4. Pesq'!$B340","v":0},{"$f":"'4. Pesq'!$B341","v":0},{"$f":"'4. Pesq'!$B342","v":0},{"$f":"'4. Pesq'!$B343","v":0},{"$f":"'4. Pesq'!$B344","v":0},{"$f":"'4. Pesq'!$B345","v":0},{"$f":"'4. Pesq'!$B346","v":0},{"$f":"'4. Pesq'!$B347","v":0},{"$f":"'4. Pesq'!$B348","v":0},{"$f":"'4. Pesq'!$B349","v":0},{"$f":"'4. Pesq'!$B350","v":0},{"$f":"'4. Pesq'!$B352","v":0},{"$f":"'4. Pesq'!$B353","v":0},{"$f":"'4. Pesq'!$B354","v":0},{"$f":"'4. Pesq'!$B355","v":0},{"$f":"'4. Pesq'!$B356","v":0},{"$f":"'4. Pesq'!$B357","v":0},{"$f":"'4. Pesq'!$B358","v":0},{"$f":"'4. Pesq'!$B359","v":0},{"$f":"'4. Pesq'!$B360","v":0},{"$f":"'4. Pesq'!$B361","v":0},{"$f":"'4. Pesq'!$B362","v":0},{"$f":"'4. Pesq'!$B363","v":0},{"$f":"'4. Pesq'!$B364","v":0},{"$f":"'4. Pesq'!$B365","v":0},{"$f":"'4. Pesq'!$B366","v":0},{"$f":"'4. Pesq'!$B367","v":0},{"$f":"'4. Pesq'!$B368","v":0},{"$f":"'4. Pesq'!$B369","v":0},{"$f":"'4. Pesq'!$B370","v":0},{"$f":"'4. Pesq'!$B371","v":0},{"$f":"'4. Pesq'!$B372","v":0},{"$f":"'4. Pesq'!$B373","v":0},{"$f":"'4. Pesq'!$B374","v":0},{"$f":"'4. Pesq'!$B375","v":0},{"$f":"'4. Pesq'!$B376","v":0},{"$f":"'4. Pesq'!$B377","v":0},{"$f":"'4. Pesq'!$B378","v":0},{"$f":"'4. Pesq'!$B379","v":0},{"$f":"'4. Pesq'!$B380","v":0},{"$f":"'4. Pesq'!$B381","v":0},{"$f":"'4. Pesq'!$B382","v":0},{"$f":"'4. Pesq'!$B383","v":0},{"$f":"'4. Pesq'!$B384","v":0},{"$f":"'4. Pesq'!$B385","v":0},{"$f":"'4. Pesq'!$B386","v":0},{"$f":"'4. Pesq'!$B387","v":0},{"$f":"'4. Pesq'!$B388","v":0},{"$f":"'4. Pesq'!$B389","v":0},{"$f":"'4. Pesq'!$B390","v":0},{"$f":"'4. Pesq'!$B391","v":0},{"$f":"'4. Pesq'!$B392","v":0},{"$f":"'4. Pesq'!$B393","v":0},{"$f":"'4. Pesq'!$B394","v":0},{"$f":"'4. Pesq'!$B395","v":0},{"$f":"'4. Pesq'!$B396","v":0},{"$f":"'4. Pesq'!$B397","v":0},{"$f":"'4. Pesq'!$B399","v":0},{"$f":"'4. Pesq'!$B400","v":0},{"$f":"'4. Pesq'!$B401","v":0},{"$f":"'4. Pesq'!$B402","v":0},{"$f":"'4. Pesq'!$B403","v":0},{"$f":"'4. Pesq'!$B404","v":0},{"$f":"'4. Pesq'!$B405","v":0},{"$f":"'4. Pesq'!$B406","v":0},{"$f":"'4. Pesq'!$B407","v":0},{"$f":"'4. Pesq'!$B408","v":0},{"$f":"'4. Pesq'!$B409","v":0},{"$f":"'4. Pesq'!$B410","v":0},{"$f":"'4. Pesq'!$B411","v":0},{"$f":"'4. Pesq'!$B412","v":0},{"$f":"'4. Pesq'!$B413","v":0},{"$f":"'4. Pesq'!$B414","v":0},{"$f":"'4. Pesq'!$B415","v":0},{"$f":"'4. Pesq'!$B416","v":0},{"$f":"'4. Pesq'!$B417","v":0},{"$f":"'4. Pesq'!$B418","v":0},{"$f":"'4. Pesq'!$B419","v":0},{"$f":"'4. Pesq'!$B420","v":0},{"$f":"'4. Pesq'!$B421","v":0},{"$f":"'4. Pesq'!$B422","v":0},{"$f":"'4. Pesq'!$B423","v":0},{"$f":"'4. Pesq'!$B424","v":0},{"$f":"'4. Pesq'!$B425","v":0},{"$f":"'4. Pesq'!$B426","v":0},{"$f":"'4. Pesq'!$B427","v":0},{"$f":"'4. Pesq'!$B428","v":0},{"$f":"'4. Pesq'!$B429","v":0},{"$f":"'4. Pesq'!$B430","v":0},{"$f":"'4. Pesq'!$B431","v":0},{"$f":"'4. Pesq'!$B432","v":0},{"$f":"'4. Pesq'!$B433","v":0},{"$f":"'4. Pesq'!$B434","v":0},{"$f":"'4. Pesq'!$B435","v":0},{"$f":"'4. Pesq'!$B436","v":0},{"$f":"'4. Pesq'!$B437","v":0},{"$f":"'4. Pesq'!$B438","v":0},{"$f":"'4. Pesq'!$B439","v":0},{"$f":"'4. Pesq'!$B440","v":0},{"$f":"'4. Pesq'!$B441","v":0},{"$f":"'4. Pesq'!$B442","v":0},{"$f":"'4. Pesq'!$B443","v":0},{"$f":"'4. Pesq'!$B444","v":0},{"$f":"'4. Pesq'!$B446","v":0},{"$f":"'4. Pesq'!$B447","v":0},{"$f":"'4. Pesq'!$B448","v":0},{"$f":"'4. Pesq'!$B449","v":0},{"$f":"'4. Pesq'!$B450","v":0},{"$f":"'4. Pesq'!$B451","v":0},{"$f":"'4. Pesq'!$B452","v":0},{"$f":"'4. Pesq'!$B453","v":0},{"$f":"'4. Pesq'!$B454","v":0},{"$f":"'4. Pesq'!$B455","v":0},{"$f":"'4. Pesq'!$B456","v":0},{"$f":"'4. Pesq'!$B457","v":0},{"$f":"'4. Pesq'!$B458","v":0},{"$f":"'4. Pesq'!$B459","v":0},{"$f":"'4. Pesq'!$B460","v":0},{"$f":"'4. Pesq'!$B461","v":0},{"$f":"'4. Pesq'!$B462","v":0},{"$f":"'4. Pesq'!$B463","v":0},{"$f":"'4. Pesq'!$B464","v":0},{"$f":"'4. Pesq'!$B465","v":0},{"$f":"'4. Pesq'!$B466","v":0},{"$f":"'4. Pesq'!$B467","v":0},{"$f":"'4. Pesq'!$B468","v":0},{"$f":"'4. Pesq'!$B469","v":0},{"$f":"'4. Pesq'!$B470","v":0},{"$f":"'4. Pesq'!$B471","v":0},{"$f":"'4. Pesq'!$B472","v":0},{"$f":"'4. Pesq'!$B473","v":0},{"$f":"'4. Pesq'!$B474","v":0},{"$f":"'4. Pesq'!$B475","v":0},{"$f":"'4. Pesq'!$B476","v":0},{"$f":"'4. Pesq'!$B477","v":0},{"$f":"'4. Pesq'!$B478","v":0},{"$f":"'4. Pesq'!$B479","v":0},{"$f":"'4. Pesq'!$B480","v":0},{"$f":"'4. Pesq'!$B481","v":0},{"$f":"'4. Pesq'!$B484","v":0},{"$f":"'4. Pesq'!$B485","v":0},{"$f":"'4. Pesq'!$B486","v":0},{"$f":"'4. Pesq'!$B487","v":0},{"$f":"'4. Pesq'!$B488","v":0},{"$f":"'4. Pesq'!$B489","v":0},{"$f":"'4. Pesq'!$B490","v":0},{"$f":"'4. Pesq'!$B491","v":0},{"$f":"'4. Pesq'!$B492","v":0},{"$f":"'4. Pesq'!$B493","v":0},{"$f":"'4. Pesq'!$B494","v":0},{"$f":"'4. Pesq'!$B495","v":0},{"$f":"'4. Pesq'!$B496","v":0},{"$f":"'4. Pesq'!$B497","v":0},{"$f":"'4. Pesq'!$B498","v":0},{"$f":"'4. Pesq'!$B499","v":0},{"$f":"'4. Pesq'!$B500","v":0},{"$f":"'4. Pesq'!$B501","v":0},{"$f":"'4. Pesq'!$B502","v":0},{"$f":"'4. Pesq'!$B503","v":0},{"$f":"'4. Pesq'!$B504","v":0},{"$f":"'4. Pesq'!$B505","v":0},{"$f":"'4. Pesq'!$B506","v":0},{"$f":"'4. Pesq'!$B507","v":0},{"$f":"'4. Pesq'!$B508","v":0},{"$f":"'4. Pesq'!$B509","v":0},{"$f":"'4. Pesq'!$B510","v":0},{"$f":"'4. Pesq'!$B511","v":0},{"$f":"'4. Pesq'!$B512","v":0},{"$f":"'4. Pesq'!$B513","v":0},{"$f":"'4. Pesq'!$B514","v":0},{"$f":"'4. Pesq'!$B515","v":0},{"$f":"'4. Pesq'!$B516","v":0},{"$f":"'4. Pesq'!$B517","v":0},{"$f":"'4. Pesq'!$B518","v":0},{"$f":"'4. Pesq'!$B519","v":0},{"$f":"'4. Pesq'!$B520","v":0},{"$f":"'4. Pesq'!$B521","v":0},{"$f":"'4. Pesq'!$B522","v":0},{"$f":"'4. Pesq'!$B523","v":0},{"$f":"'4. Pesq'!$B524","v":0},{"$f":"'4. Pesq'!$B525","v":0},{"$f":"'4. Pesq'!$B526","v":0},{"$f":"'4. Pesq'!$B527","v":0},{"$f":"'4. Pesq'!$B528","v":0},{"$f":"'4. Pesq'!$B529","v":0},{"$f":"'4. Pesq'!$B530","v":0},{"$f":"'4. Pesq'!$B531","v":0},{"$f":"'4. Pesq'!$B532","v":0},{"$f":"'4. Pesq'!$B533","v":0},{"$f":"'4. Pesq'!$B535","v":0},{"$f":"'4. Pesq'!$B536","v":0},{"$f":"'4. Pesq'!$B537","v":0},{"$f":"'4. Pesq'!$B538","v":0},{"$f":"'4. Pesq'!$B539","v":0},{"$f":"'4. Pesq'!$B540","v":0},{"$f":"'4. Pesq'!$B541","v":0},{"$f":"'4. Pesq'!$B542","v":0},{"$f":"'4. Pesq'!$B543","v":0},{"$f":"'4. Pesq'!$B544","v":0},{"$f":"'4. Pesq'!$B545","v":0},{"$f":"'4. Pesq'!$B546","v":0},{"$f":"'4. Pesq'!$B547","v":0},{"$f":"'4. Pesq'!$B548","v":0},{"$f":"'4. Pesq'!$B549","v":0},{"$f":"'4. Pesq'!$B550","v":0},{"$f":"'4. Pesq'!$B551","v":0},{"$f":"'4. Pesq'!$B552","v":0},{"$f":"'4. Pesq'!$B553","v":0},{"$f":"'4. Pesq'!$B554","v":0},{"$f":"'4. Pesq'!$B555","v":0},{"$f":"'4. Pesq'!$B556","v":0},{"$f":"'4. Pesq'!$B557","v":0},{"$f":"'4. Pesq'!$B558","v":0},{"$f":"'4. Pesq'!$B559","v":0},{"$f":"'4. Pesq'!$B560","v":0},{"$f":"'4. Pesq'!$B561","v":0},{"$f":"'4. Pesq'!$B562","v":0},{"$f":"'4. Pesq'!$B563","v":0},{"$f":"'4. Pesq'!$B564","v":0},{"$f":"'4. Pesq'!$B565","v":0},{"$f":"'4. Pesq'!$B566","v":0},{"$f":"'4. Pesq'!$B567","v":0},{"$f":"'4. Pesq'!$B568","v":0},{"$f":"'4. Pesq'!$B569","v":0},{"$f":"'4. Pesq'!$B570","v":0},{"$f":"'4. Pesq'!$B571","v":0},{"$f":"'4. Pesq'!$B572","v":0},{"$f":"'4. Pesq'!$B573","v":0},{"$f":"'4. Pesq'!$B574","v":0},{"$f":"'4. Pesq'!$B575","v":0},{"$f":"'4. Pesq'!$B576","v":0},{"$f":"'4. Pesq'!$B577","v":0},{"$f":"'4. Pesq'!$B578","v":0},{"$f":"'4. Pesq'!$B579","v":0},{"$f":"'4. Pesq'!$B580","v":0},{"$f":"'4. Pesq'!$B581","v":0},{"$f":"'4. Pesq'!$B582","v":0},{"$f":"'4. Pesq'!$B583","v":0},{"$f":"'4. Pesq'!$B584","v":0},{"$f":"'4. Pesq'!$B586","v":0},{"$f":"'4. Pesq'!$B588","v":0},{"$f":"'5. Orient'!$B4","v":0},{"$f":"'5. Orient'!$B5","v":0},{"$f":"'5. Orient'!$B7","v":0},{"$f":"'5. Orient'!$B8","v":0},{"$f":"'5. Orient'!$B10","v":0},{"$f":"'5. Orient'!$B11","v":0},{"$f":"'5. Orient'!J15","v":0},{"$f":"'5. Orient'!L15","v":0},{"$f":"'5. Orient'!N15","v":0},{"$f":"'5. Orient'!$B20","v":0},{"$f":"'5. Orient'!$B21","v":0},{"$f":"'5. Orient'!$B23","v":0},{"$f":"'5. Orient'!$B24","v":0},{"$f":"'5. Orient'!$B26","v":0},{"$f":"'5. Orient'!$B27","v":0},{"$f":"'5. Orient'!$B29","v":0},{"$f":"'5. Orient'!$B30","v":0},{"$f":"'5. Orient'!$B32","v":0},{"$f":"'5. Orient'!$B33","v":0},{"$f":"'5. Orient'!$B35","v":0},{"$f":"'5. Orient'!$B36","v":0},{"$f":"'5. Orient'!$B38","v":0},{"$f":"'5. Orient'!$B39","v":0},{"$f":"'5. Orient'!$B41","v":0},{"$f":"'5. Orient'!$B42","v":0},{"$f":"'5. Orient'!$B44","v":0},{"$f":"'5. Orient'!$B45","v":0},{"$f":"'5. Orient'!$B47","v":0},{"$f":"'5. Orient'!$B48","v":0},{"$f":"'6. Prod. Acad'!$A3","v":0},{"$f":"'6. Prod. Acad'!$A5","v":0},{"$f":"'6. Prod. Acad'!$A7","v":0},{"$f":"'6. Prod. Acad'!$A9","v":0},{"$f":"'6. Prod. Acad'!$A11","v":0},{"$f":"'6. Prod. Acad'!$A13","v":0},{"$f":"'6. Prod. Acad'!$A15","v":0},{"$f":"'6. Prod. Acad'!$A17","v":0},{"$f":"'7. At. Adm'!$B3","v":0},{"$f":"'7. At. Adm'!$B4","v":0},{"$f":"'7. At. Adm'!$B5","v":0},{"$f":"'7. At. Adm'!$B6","v":0},{"$f":"'7. At. Adm'!$B8","v":0},{"$f":"'7. At. Adm'!$B9","v":0},{"$f":"'7. At. Adm'!$B10","v":0},{"$f":"'7. At. Adm'!$B11","v":0},{"$f":"'7. At. Adm'!$B12","v":0},{"$f":"'7. At. Adm'!$B13","v":0},{"$f":"'7. At. Adm'!$B14","v":0},{"$f":"'7. At. Adm'!$B15","v":0},{"$f":"'7. At. Adm'!$B17","v":0},{"$f":"'7. At. Adm'!$B18","v":0},{"$f":"'7. At. Adm'!$B19","v":0},{"$f":"'7. At. Adm'!$B20","v":0},{"$f":"'7. At. Adm'!$B21","v":0},{"$f":"'7. At. Adm'!$B22","v":0},{"$f":"'7. At. Adm'!$B23","v":0},{"$f":"'7. At. Adm'!$B24","v":0},{"$f":"'7. At. Adm'!$B26","v":0},{"$f":"'7. At. Adm'!$B28","v":0},{"$f":"'8. Eventos'!$A4","v":0},{"$f":"'8. Eventos'!$A6","v":0},{"$f":"'8. Eventos'!$A8","v":0},{"$f":"'8. Eventos'!$A10","v":0},{"$f":"'8. Eventos'!$A12","v":0},{"$f":"'8. Eventos'!$A14","v":0},{"$f":"'8. Eventos'!$A16","v":0},{"$f":"'8. Eventos'!$A18","v":0},{"$f":"'8. Eventos'!$A20","v":0},{"$f":"'9. Bancas'!$A3","v":0},{"$f":"'9. Bancas'!$A5","v":0},{"$f":"'9. Bancas'!$A7","v":0},{"$f":"'9. Bancas'!$A9","v":0},{"$f":"'9. Bancas'!$A11","v":0},{"$f":"'10. Periód'!$A3","v":0},{"$f":"'10. Periód'!$A5","v":0},{"$f":"'11. Info. Compl.'!$B2","v":0},{"$f":"'11. Info. Compl.'!$A4","v":"Salvador, xx de dezembro de 2020"}]
[]
[]
[]
[]
[]
[null,{"$f":"'Planilha Síntese'!K7='2. Ensino'!$B4","v":true}]